Workbook

Sheet Data_Main (hidden)
B4: Year | C4: 2022 | D4: Enter
B5: Year_Long | C5: =m_year&"/"&m_year+1 -> 2022/2023 | D5: Calculated
B6: Year_Short | C6: =RIGHT(m_year,2)&"/"&RIGHT(m_year,2)+1 -> 22/23 | D6: Calculated
B9: MODEL VERSION | C9: 7
B11: show_disclaimer | C11: TRUE | D11: Calculated

Sheet Data_Sheets (hidden)
E8: Reference only
E9: Michaels Sheet Names
B10: Sheet | C10: State(show to keep sheet visible or blank to hide)
B11: Data_Main
B12: Data_Sheets
B13: DV_TABLES
B14: Instructions | C14: Show
B15: Main | C15: Show
B16: Summary | C16: Show
B17: Prime Lambs Input | E17: PRIME LAMBS- HIGH RAINFALL
B18: Prime Lambs
B19: Prime Lambs Maternal Input
B20: Prime Lambs Maternal
B21: Prime Lambs Merino Ewes Input | E21: PRIME LAMBS- CEREAL ZONE
B22: Prime Lambs Merino Ewes
B23: Lamb Trading Input | E23: LAMB TRADING - HIGH RAINFALL
B24: Lamb Trading
B25: GM_INFO
B26: Merino SR Input | E26: MERINO S.R. - CEREAL ZONE
B27: Merino SR
B28: Wethers Input | E28: WETHERS - CEREAL ZONE
B29: Wethers
B30: Cleanskin Sheep Input | E30: Cleanskin Cereal Zone
B31: Cleanskin Sheep
B32: Beef Input | E32: BEEF - CEREAL ZONE
B33: Beef
B34: Beef Trading Input | E34: BEEF Trading- HIGH RAINFALL
B35: Beef Trading
B36: Beef Feed Lot Input | E36: Beef Feed Lot
B37: Beef Feed Lot

Sheet DV_TABLES (hidden)

Sheet Instructions
B7: ="Livestock Farm Gross Margin Guide -"&TEXT(m_year,"0000") -> Livestock Farm Gross Margin Guide -2022
B8: This spreadsheet can take a few moments to load
B9: PLEASE NOTE:THIS VERSION WILL ONLY WORK WITH EXCEL VERSIONS 2007 & ABOVE FOR WINDOWS ONLY. It will not work with Excel for Mac, Ipad, Android, tablets etc.
B11: Before You Start
B12: Before you start you will need to enable macros.
B13: This may appear as a Security Warning at the top of your page. To do this, click on “Enable Content”.
B14: Clicking “Enable Content” allows you to enter data into the Excel Worksheet.
B22: You may also see a message about "PROTECTED VIEW". Please click "Enable Editing".
B29: Yellow cells = data entry (some yellow cells contain formulas, these usually represent default
B30: values but may be over written. To revert back to the default value formula click the blue 'Reset…'
B31: link next to the cell.
B32: Blue cells contain formulas, are protected and can not be overwritten.
B46: Start in the “Main” sheet and select “Livestock types” you want to use:
B74: Pasture costs are not included as part of the Gross Margins. To include pasture and overhead costs,
B75: download the “RSA Crops Gross Margin Guide” and select the appropriate pasture types.
B76: The Livestock Gross Margin figures can be input as the “Income” for the Pasture Gross Margins.
B79: For technical support or to report errors/omissions regarding this spreadsheet please
B80: email Michael Wurst at:
C81: michael.wurst@sa.gov.au

Sheet Main
C3: ="FARM GROSS MARGIN GUIDE - "&TEXT(m_year,"0000") -> FARM GROSS MARGIN GUIDE - 2022 | G3: ="Version-"&TEXT(MODEL_VERSION,"0.0") -> Version-7.0
C6: by clicking checkboxes or All or None buttons
B7: FALSE | C7: Prime Lambs 1st Cross Ewes | E7: High rainfall and cereal zones
B8: FALSE | C8: Prime Lambs Maternal | E8: High rainfall zone
B9: FALSE | C9: Prime Lambs Merino Ewes | E9: All production zones | F9: - will need to adjust wool type, lambing percentage and inputs
B10: FALSE | C10: Lamb Trading High Rainfall | E10: High rainfall and cereal zones
B11: FALSE | C11: Merino SR | E11: All production zones | F11: - will need to adjust wool type, lambing percentage and inputs
B12: FALSE | C12: Wethers | E12: All production zones | F12: - will need to adjust wool type, lambing percentage and inputs
B13: FALSE | C13: Cleanskin Sheep | E13: Cereal and pastoral zones | F13: - will need to adjust lambing percentage and inputs
B14: FALSE | C14: Beef | E14: All production zones | F14: - will need to adjust cattle sale type, calving percentage and inputs
B15: FALSE | C15: Beef Trading | E15: High rainfall zone
B16: FALSE | C16: Beef Feed Lot

Sheet GM_INFO (hidden)
A1: G.M. LINK SHEET
A3: COMMENT: spreadsheet is protected EXCEPT for highlighted cells,
A4: i.e. those cells which can be changed.
A6: DATE | B6: =m_year -> 2022
A10: _______________________________________________________________________________________________________________________
A11: Todays Date: | B11: =NOW() -> 2022-01-14T15:15:56.880
A14: ="FARM COSTS - "&m_year -> FARM COSTS - 2022
A17: SHEEP
A19: Drench
A20: Name | B20: Price1 | C20: UOM1 | D20: Price2 | E20: UOM2
A21: Avomec Dual | B21: 45.62 | C21: /litre | D21: 0.54744 | E21: /12ml dose
A22: Cydectin | B22: 24.91 | C22: /litre | D22: 0.29892 | E22: /12ml dose
A23: Cydectin Long Act Injectable | B23: 236.5 | C23: /500ml | D23: 1.419 | E23: /3ml dose
A24: Dynamax Capsules | B24: 381 | C24: /100 capsules | D24: 3.81 | E24: /capsule
A25: Q-Drench | B25: 55.25 | C25: /litre | D25: 0.663 | E25: /12ml dose
A26: Startect | B26: 92.29 | C26: /litre | D26: 1.10748 | E26: /12ml dose
A27: Triguard | B27: 34.75 | C27: /litre | D27: 0.417 | E27: /12ml dose
A28: Zolvix Plus | B28: 190.17 | C28: /litre | D28: 1.14102 | E28: /6ml dose
A32: Vaccine
A33: Name | B33: Price1 | C33: UOM1 | D33: Price2 | E33: UOM2
A34: Cobalife Vit B12 | B34: 55.98 | C34: /500ml | D34: 0.11196 | E34: /1ml dose
A35: Cobalife Vit B12 + S | B35: 63 | C35: /500mls | D35: 0.126 | E35: /1ml dose
A36: Eryvac | B36: 162.66 | C36: /250ml | D36: 0.65064 | E36: /1ml dose
A37: Eweguard B12 + S | B37: 278 | C37: /500ml | D37: 1.39 | E37: /2.5ml dose
A38: Glanvac 3 | B38: 54.4 | C38: /250ml | D38: 0.2176 | E38: /1ml dose
A39: Glanvac 3B12 | B39: 105 | C39: /250ml | D39: 0.42 | E39: /1ml dose
A40: Glanvac 3SB12 | B40: 114.1 | C40: /250ml dose | D40: 0.4564 | E40: /1ml dose
A41: Glanvac 6 | B41: 74.73 | C41: /250ml | D41: 0.29892 | E41: /1ml dose
A42: Glanvac 6B12 | B42: 140.12 | C42: /250ml | D42: 0.56048 | E42: /1ml dose
A43: Glanvac 6SB12 | B43: 146.74 | C43: /250ml | D43: 0.58696 | E43: /1ml dose
A44: Gudiar | B44: 670 | C44: /250ml | D44: 2.68 | E44: /1ml dose
A45: Multimin Injection | B45: 382.82 | C45: /500ml | D45: 1.9141 | E45: /5ml dose
A46: Scabigard | B46: 100.58 | C46: /5ml | D46: 0.40232 | E46: /0.02ml dose
A47: Ultravac 5 in 1 | B47: 55.59 | C47: /250ml | D47: 0.22236 | E47: /1ml dose
A48: Ultravac 5 in 1 with B12 | B48: 90 | C48: /500ml | D48: 0.36 | E48: /2ml dose
A49: Vit ADE | B49: 190.04 | C49: /500ml | D49: 0.9502 | E49: /5ml dose
A50: Weanerguard B12 + S | B50: 203.45 | C50: /500ml | D50: 1.2207 | E50: /3ml dose
A53: Blowfly Control
A54: Name | B54: Price1 | C54: UOM1 | D54: Price2 | E54: UOM2
A55: Clik | B55: 51.94 | C55: /litre | D55: 1.24656 | E55: /24 ml dose
A56: Vetrazin Spray On | B56: 10.84 | C56: /litre | D56: 0.71544 | E56: /66ml dose
A65: Lice Control | B65: Avenge | C65: 16.14 | D65: /litre
C66: 1.695 | D66: /80ml dose
A67: Drench | B67: Triguard | C67: 34.75 | D67: /litre
C68: 0.829 | D68: /10ml dose
C69: 0.552
B70: Qdrench | C70: 0.663
A71: Vaccine | B71: Glanvac 3 | C71: 54.4 | D71: /250ml
C72: 0.28 | D72: /1ml dose
B73: Glanvac 6 | C73: 74.73 | D73: 250ml
C74: 0.376 | D74: /1ml dose
A75: Blowfly Control | B75: Clik | C75: 51.94 | D75: /litre
C76: 1.434 | D76: /24 ml dose
A77: Wool packs | B77: nylon | C77: 16 | D77: ea
A79: Shearing | B79: Sheep | C79: 331.98 | D79: /100
B80: rams | C80: 663.96 | D80: /100
B81: shed labour | C81: 250.95 | D81: /day
B82: wool classer | C82: 319.91 | D82: day
B83: superannuation | C83: 0.1 | D83: wages
B84: Work Cover-Allow | C84: 0.04 | D84: total
B85: shed sundries | C85: 0.2 | D85: /head
A87: Crutching | B87: sheep | C87: 96.27 | D87: /100
B88: rams | C88: 192.54 | D88: /100
A90: lamb marking | B90: mulesing / materials | C90: 1.5 | D90: /head
B91: marking only | C91: 1.25 | D91: /head
B92: ear tags | C92: 0.3 | D92: /head
A93: Tri-Solfen | B93: pain relief | C93: 1.392 | D93: /head
B94: pain relief | C94: 1.624 | D94: /head | E94: Merino SR only
A95: Stock purchaces | B95: purchase rams | C95: 1000 | D95: /head
B96: purchase wethers | C96: 80 | D96: /head
A98: Stock selling | B98: commission/insurance | C98: 0.055
B99: yard fees | C99: 0.85 | D99: /head
B100: sheep transaction levy | C100: 0.2 | D100: /head
B101: lamb transaction levy | C101: 1.5 | D101: /head
B102: SA sheep industry levy | C102: 0.67 | D102: /head
B103: wool brokerage / testing / insurance | C103: 0.27 | D103: /kg
B104: wool levy | C104: 0.015
A110: BEEF | H110: BEEF FEEDLOT
A111: Drench (backline) | B111: Genesis Pour-on | D111: 83.62 | E111: /litre | H111: Drench, Dectomax | I111: 5.64 | J111: /head
D112: 6.25 | E112: /25ml dose | H112: Ear Tags | I112: 0.5 | J112: /tag
A113: 5 in 1 vaccine | D113: 100.46 | E113: /500 ml | H113: HGP implant , Synovex | I113: 2.5 | J113: /dose
D114: 0.80368 | E114: /4ml dose | H114: Lice Treatments | I114: 0 | J114: /dose
H115: Vaccine | I115: 0.58 | J115: /dose
H116: Veterinary | I116: 1.25 | J116: /head
A117: Trace Element treatments | D117: 3 | E117: /head | H117: Vitamin injection | I117: 1.5 | J117: /head
A118: HGP implant | D118: 1.75 | H118: Premix cost per tonne mixed feed | I118: 50 | J118: /tonne
A119: Vitamin injection | D119: 1.3 | H119: Milling costs + Labour | I119: 28 | J119: /head
H120: Water | I120: 20 | J120: /head
H121: Insurance | I121: 3
H122: Transport In | I122: 15
A123: NLIS Breeder Tags (incl levy) | D123: 4.75 | E123: each | H123: Transport Out | I123: 30
H124: Commission | I124: 0.055
B125: freight cattle in | D125: 30 | E125: /head | H125: Levies | I125: 5
B126: freight cattle out | D126: 30 | E126: /head | H126: Losses | I126: 0.006 | J126: %
B127: Cattle levy | D127: 5 | E127: /head
D128: Prime Lambs | E128: Prime Lambs Cereal | F128: Merino SR Cereal | G128: Wethers Cereal | H128: Cleanskin | I128: Beef Cereal | J128: Beef Trading | K128: Lamb trading
A129: FEED & OTHER COSTS | B129: water | C129: /DSE | D129: 1.5 | E129: 2.5 | F129: 2.5 | G129: 2.5 | H129: 2.5 | I129: 2.5 | J129: 1.5 | K129: 1.5
B130: Veh fuel, R&M | C130: /DSE | D130: 1.2 | E130: 1.2 | F130: 1.2 | G130: 1 | H130: 0.8 | I130: 1.2 | J130: 1.2 | K130: 1
B131: other | C131: /DSE | D131: 0.5 | E131: 0.5 | F131: 0.5 | G131: 0.5 | H131: 0.5 | I131: 0.5 | J131: 0.5 | K131: 0.5
B132: hay | C132: /tonne incl freight | D132: 160
B133: Feed Cereal grain | C133: /tonne incl freight | D133: 300
B134: Lamb Feedlot Mix | C134: /tonne incl freight | D134: 300
B135: Blocks/ Mineral Mix | D135: 5.5
A139: ="FARM COSTS - "&m_year -> FARM COSTS - 2022
A143: STOCK RETURNS | F143: Budget Base (Greasy)
A144: WOOL- High Rainfall 28 mic 70%Yield | F144: 420
A145: - High Rainfall 19.5 mic 70% Yld | F145: 1500
A146: - Med Rainfall 21 mic 68% Yield | F146: 1200
A147: - Low Rainfall 22 mic 63% Yield | F147: 1150
A148: - Crossbred Ram 32 mic | F148: 210
A151: ="FARM COSTS - "&m_year -> FARM COSTS - 2022
A155: INSURANCE COSTS
A156: Livestock
A157: Sheep and cattle | B157: 2 | C157: /$1,000 insured
A160: FREIGHT COSTS | B160: Prime Lambs
A161: culls | B161: 4
A162: ewes | B162: 4
A163: prime lambs | B163: 4
A164: bales | B164: 15
A165: rams | B165: 4
A166: hoggets | B166: 4
A167: vealers | B167: 30
A169: BEEF
A170: Vealers | B170: 280 | C170: kg liveweight @ | D170: 6.05 | E170: /kg L/W
A171: Yearling | B171: 400 | C171: kg liveweight @ | D171: 5 | E171: /kg L/W
A172: Cows | B172: 550 | C172: kg liveweight @ | D172: 3 | E172: /kg L/W
A174: BEEF TRADING
A175: Vealers | B175: 280 | C175: kg liveweight @ | D175: 3 | E175: /kg L/W
A176: Yearling | B176: 420 | C176: kg liveweight @ | D176: 2.8 | E176: /kg L/W

Sheet Summary
B2: ="GROSS MARGINS SUMMARY - "&TEXT(m_year,"0000") -> GROSS MARGINS SUMMARY - 2022
D4: Gross Margin
B5: Type | C5: No of head
B6: Prime Lambs 1st Cross Ewes | C6: ='Prime Lambs Input'!E7*rng_Prime_Lambs_DATA -> 0 | D6: ='Prime Lambs'!Q174*rng_Prime_Lambs_DATA -> 0 | E6: ='Prime Lambs'!Q172*rng_Prime_Lambs_DATA -> 0 | F6: ='Prime Lambs'!Q37*rng_Prime_Lambs_DATA -> 0 | G6: ='Prime Lambs'!Q170*rng_Prime_Lambs_DATA -> 0
B7: Prime Lambs Maternal | C7: ='Prime Lambs Maternal Input'!E7*rng_Prime_Lambs_Maternal_DATA -> 0 | D7: ='Prime Lambs Maternal'!Q174*rng_Prime_Lambs_Maternal_DATA -> 0 | E7: ='Prime Lambs Maternal'!Q172*rng_Prime_Lambs_Maternal_DATA -> 0 | F7: ='Prime Lambs Maternal'!Q37*rng_Prime_Lambs_Maternal_DATA -> 0 | G7: ='Prime Lambs Maternal'!Q170*rng_Prime_Lambs_Maternal_DATA -> 0
B8: Prime Lambs Merino Ewes | C8: ='Prime Lambs Merino Ewes Input'!E7*rng_Prime_LambsMerino_DATA -> 0 | D8: ='Prime Lambs Merino Ewes'!Q174*rng_Prime_LambsMerino_DATA -> 0 | E8: ='Prime Lambs Merino Ewes'!Q172*rng_Prime_LambsMerino_DATA -> 0 | F8: ='Prime Lambs Merino Ewes'!Q37*rng_Prime_LambsMerino_DATA -> 0 | G8: ='Prime Lambs Merino Ewes'!Q170*rng_Prime_LambsMerino_DATA -> 0
B9: Lamb Trading High Rainfall | C9: ='Lamb Trading Input'!E7*rng_Lambtrading_DATA -> 0 | D9: ='Lamb Trading'!Q174*rng_Lambtrading_DATA -> 0 | E9: ='Lamb Trading'!Q172*rng_Lambtrading_DATA -> 0 | F9: ='Lamb Trading'!Q37*rng_Lambtrading_DATA -> 0 | G9: ='Lamb Trading'!Q170*rng_Lambtrading_DATA -> 0
B10: Merino SR | C10: ='Merino SR Input'!E8*rng_Merino_SR_DATA -> 0 | D10: ='Merino SR'!Q174*rng_Merino_SR_DATA -> 0 | E10: ='Merino SR'!Q172*rng_Merino_SR_DATA -> 0 | F10: ='Merino SR'!Q37*rng_Merino_SR_DATA -> 0 | G10: ='Merino SR'!Q170*rng_Merino_SR_DATA -> 0
B11: Wethers | C11: ='Wethers Input'!E7*rng_Whethers_DATA -> 0 | D11: =Wethers!Q7*rng_Whethers_DATA -> 0 | E11: =Wethers!Q172*rng_Whethers_DATA -> 0 | F11: =Wethers!Q37*rng_Whethers_DATA -> 0 | G11: =Wethers!Q170*rng_Whethers_DATA -> 0
B12: Cleanskin Sheep | C12: ='Cleanskin Sheep Input'!E7*rng_Cleanskin_Sheep_DATA -> 0 | D12: ='Cleanskin Sheep'!Q174*rng_Cleanskin_Sheep_DATA -> 0 | E12: ='Cleanskin Sheep'!Q172*rng_Cleanskin_Sheep_DATA -> 0 | F12: ='Cleanskin Sheep'!Q37*rng_Cleanskin_Sheep_DATA -> 0 | G12: ='Cleanskin Sheep'!Q170*rng_Cleanskin_Sheep_DATA -> 0
B13: Beef | C13: ='Beef Input'!E15*rng_Beef_DATA -> 0 | D13: =Beef!Q174*rng_Beef_DATA -> 0 | E13: =Beef!Q172*rng_Beef_DATA -> 0 | F13: =Beef!Q41*rng_Beef_DATA -> 0 | G13: =Beef!Q170*rng_Beef_DATA -> 0
B14: Beef Trading | C14: ='Beef Trading Input'!E10*rng_Beeftrading_DATA -> 0 | D14: ='Beef Trading'!Q174*rng_Beeftrading_DATA -> 0 | E14: ='Beef Trading'!Q172*rng_Beeftrading_DATA -> 0 | F14: ='Beef Trading'!Q41*rng_Beeftrading_DATA -> 0 | G14: ='Beef Trading'!Q170*rng_Beeftrading_DATA -> 0
B15: Beef Feed Lot | C15: =100*rng_Beeffeedlot_DATA -> 0 | D15: ='Beef Feed Lot'!Q172*rng_Beeffeedlot_DATA -> 0 | E15: =C15*D15*rng_Beeffeedlot_DATA -> 0 | F15: ='Beef Feed Lot'!Q41*C15*rng_Beeffeedlot_DATA -> 0 | G15: ='Beef Feed Lot'!Q170*C15*rng_Beeffeedlot_DATA -> 0
B16: TOTAL | E16: =SUM(E6:E15) -> 0 | F16: =SUM(F6:F15) -> 0 | G16: =SUM(G6:G15) -> 0

Sheet Prime Lambs Input (hidden)
C1: Prime Lambs (1st cross ewes)
C2: =UPPER(var_animal)&" GROSS MARGIN - "&TEXT(m_year,"0000") -> PRIME LAMBS (1ST CROSS EWES) GROSS MARGIN - 2022
C4: GENERAL INFORMATION
C5: This represents a First Cross Ewe enterprise (Merino X Border Liecester) mated to a terminal sire. All ewe replacements are purchased, but age of replacements can be varied from 1.5 years to 4.5 years. Following are the various assumptions used in the calculation of the Gross Margin. Cells with yellow highlight can be changed. No allowance has been made for pasture expenses such as seed, fertiliser and chemicals. Refer to pasture gross margins in the “Cropping Gross Margin Plan” for annual and perennial pasture costs. Use the livestock gross margin per DSE as income for the pasture gross margin.
C7: Ewes mated | E7: 1000
C8: Age ewes purchased | E8: 0.5
C9: Age ewes sold | E9: 6.5
C10: Av Weaning % | E10: 1.3
C11: Ram percentage | E11: 0.02
C12: Years Rams Kept | E12: 3
C13: Flock death Rate | E13: 0.03
C14: % Lambs carried over | E14: 0
C17: LIVESTOCK SALES | E17: Price/Hd | F17: Number | G17: Total
C18: c.f.a Ewes | E18: 170 | F18: ='Prime Lambs'!AG220 -> 182.3692879 | G18: =E18*ROUND(F18,0) -> 30940
C19: c.f.a Rams | E19: 120 | F19: ='Prime Lambs'!AG238 -> 6.270727266 | G19: =E19*ROUND(F19,0) -> 720
C20: Lambs | E20: 200 | F20: ='Prime Lambs'!AG227 -> 1300 | G20: =E20*ROUND(F20,0) -> 260000
C25: TOTAL SALES | F25: =SUM(F18:F23) -> 1488.640015 | G25: =SUM(G18:G23) -> 291660
C28: LIVESTOCK PURCHASES | E28: Price/Hd | F28: Number | G28: Total
C29: Ewes | E29: 300 | F29: ='Prime Lambs'!AD220 -> 213.5699335 | G29: =E29*F29 -> 64070.98004
C30: Rams | E30: 1850 | F30: =ROUND('Prime Lambs'!AD238,0) -> 7 | G30: =E30*F30 -> 12950
C32: TOTAL PURCHASES | F32: =SUM(F29:F30) -> 220.5699335 | G32: =SUM(G29:G30) -> 77020.98004
C35: WOOL PRICE (cents/kg) | F35: =TEXT(m_year-3,"0000")&" Average (Clean)" -> 2019 Average (Clean) | G35: =TEXT(m_year-2,"0000")&" Average (Clean)" -> 2020 Average (Clean) | H35: =TEXT(m_year-1,"0000")&" Average (Clean)" -> 2021 Average (Clean) | I35: Budget Base (Clean) | J35: Budget Base (Greasy)
E36: Wool- High Rainfall 28 mic 70% yield | F36: 867 | G36: 774 | H36: 756 | I36: 420 | J36: =I36*I37 -> 294
E37: Estimated wool yield | I37: 0.7
C38: Allow 90% to account for lower value of bellies, skirtings etc. | J38: =J36*0.9 -> 264.6
C42: WOOL SALES - SHEARING | F42: Wool Cut
E43: Number | F43: kg/hd | G43: Price | H43: Total
C44: Ewes | E44: ='Prime Lambs'!E226 -> 968.8208733 | F44: 3.5 | G44: 2.646 | H44: =E44*F44*G44 -> 8972.250107
C45: Crossbred Rams | E45: ='Prime Lambs'!E227 -> 19.4 | F45: 2.5 | G45: 1.2096 | H45: =E45*F45*G45 -> 58.6656
C47: TOTAL | E47: =SUM(E44:E46) -> 988.2208733 | F47: =(E44*F44)+(E45*F45) -> 3439.373056 | H47: =SUM(H44:H46) -> 9030.915707
C50: STOCK HEALTH REQUIREMENTS | E50: =HYPERLINK("http://paraboss.com.au","for more info on drench, lice and blowfly product selection refer to www.paraboss.com.au") -> for more info on drench, lice and blowfly product selection refer to www.paraboss.com.au
G51: Number of times
E52: Number | F52: Drench | G52: Vacc. | H52: Blowfly
C53: Ewes | E53: ='Prime Lambs'!E219 -> 1000 | F53: 3 | G53: 1 | H53: 1
C54: Rams | E54: ='Prime Lambs'!E220 -> 20 | F54: 3 | G54: 1 | H54: 0
C55: Lambs | E55: ='Prime Lambs'!E221 -> 1300 | F55: 2 | G55: 2 | H55: 0
C57: TOTAL | E57: =SUM(E53:E55) -> 2320 | F57: =SUMPRODUCT($E$53:$E$55,F53:F55) -> 5660 | G57: =SUMPRODUCT($E$53:$E$55,G53:G55) -> 3620 | H57: =SUMPRODUCT($E$53:$E$55,H53:H55) -> 1000
C60: FEEDING
C61: HAY | F61: Hay | G61: Kgs Fed | H61: No Weeks | I61: Total
E62: Number | F62: Cost ($/T) | G62: per Week | H62: of Feeding | I62: Cost ($)
C63: Ewes | E63: ='Prime Lambs'!E219 -> 1000 | F63: 160 | G63: 2.5 | H63: 8 | I63: =(H63*G63*E63)/1000*F63 -> 3200
C64: Rams | E64: ='Prime Lambs'!E220 -> 20 | F64: 160 | G64: 2.5 | H64: 8 | I64: =(H64*G64*E64)/1000*F64 -> 64
C66: Lambs | I66: =(H66*G66*E66)/1000*F66 -> 0
C68: GRAIN | F68: Grain | G68: Kgs Fed | H68: No weeks | I68: Total
E69: Number | F69: Cost ($/T) | G69: per week | H69: of Feeding | I69: Cost ($)
C70: Ewes | E70: ='Prime Lambs'!E219 -> 1000 | F70: 300 | G70: 3 | H70: 8 | I70: =(H70*G70*E70)/1000*F70 -> 7200
C71: Rams | E71: ='Prime Lambs'!E220 -> 20 | F71: 300 | G71: 3 | H71: 10 | I71: =(H71*G71*E71)/1000*F71 -> 180
C72: Lambs | I72: =(H72*G72*E72)/1000*F72 -> 0
H74: Total Feed Cost | I74: =SUM(I63:I66,I70:I72) -> 10644

Sheet Prime Lambs (hidden)
C1: Prime Lambs (1st cross ewes)
C2: =UPPER(Var_Animal)&" GROSS MARGIN - "&TEXT(m_year,"0000") -> PRIME LAMBS (1ST CROSS EWES) GROSS MARGIN - 2022
C4: ASSUMPTIONS
C6: Ave Breeding Ewe Fibre Diameter | E6: 28 | O6: Total DSE's | Q6: =E197 -> 1840
C7: No. of breeding ewes (1st Cross) | E7: ='Prime Lambs Input'!$E$7 -> 1000
C8: 1st cross ewe - Terminal meat sire
C32: INCOME | Q32: $
C34: Wool (kg greasy) | E34: =G234 -> 3439.373056 | G34: kg | I34: av price | K34: =K234*100/G234*0.9 -> 236.3170265 | M34: c/kg | Q34: =K234 -> 9030.915707
C35: Sales | E35: =E212 -> 1488.640015 | G35: animals | I35: av price | K35: =G212 -> 195.9237942 | M35: /head | Q35: =E212*G212 -> 291660
C37: Gross Income | Q37: =SUM(Q34:Q35) -> 300690.9157
AA45: STOCK VALUE AND D.S.E REQUIREMENT | AG45: Non lamb related expenses | AM45: Lamb Costs | AN45: No: | AO45: per head | AS45: SHEEP GROSS MARGIN
C46: VARIABLE COSTS | AC46: Value | AD46: Ave Live | AE46: DSE | AS46: PRIME LAMB -
C47: Shearing | K47: Rate | AB47: Number | AC47: $/head | AD47: Wt (Kgs) | AE47: rating | AG47: Shearing | AJ47: =SUM(Q48:Q58) -> 9356.728358 | AM47: Marking | AN47: =$E$121 -> 1300 | AO47: =K76+K77 -> 1.55 | AP47: =AN47*AO47 -> 2015
C48: Shearing | E48: =E226 -> 968.8208733 | G48: sheep | I48: Reset Rate> | J48: =GM_INFO!C79 | K48: =GM_INFO!C79 -> 331.98 | M48: /100 | Q48: =K48/100*ROUND(E48,0) -> 3216.8862 | AA48: ewes | AB48: ='Prime Lambs Input'!$E$7 -> 1000 | AC48: =(G209+G214)/2 -> 235 | AD48: 60 | AE48: =IF(AND(AD48>=55,AD48<60),1.7,IF(AND(AD48>=60,AD48<65),1.8,IF(AND(AD48>=65,AD48<70),1.9,IF(AND(AD48>=70,AD48<75),2,IF(AND(AD48>=75,AD48<80),2.1,IF(AND(AD48>=80,AD48<85),2.2,IF(AND(AD48>=85,AD48<90),2.3,IF(AD48>=90,2.4,0)))))))) -> 1.8 | AG48: Animal health | AJ48: =(E219*G219+E220*G220)*K90+(E219*I219+E220*I220)*K91+(E219*K219)*K92 -> 4354.26 | AM48: Animal health | AN48: =$E$121 -> 1300 | AO48: =G220*K91+I220*K90 -> 1.957 | AP48: =AN48*AO48 -> 2544.1
C49: (Federal awards) | E49: =E227 -> 19.4 | G49: rams | I49: Reset Rate> | J49: =GM_INFO!C80 | K49: =GM_INFO!C80 -> 663.96 | M49: /100 | Q49: =K49/100*ROUND(E49,0) -> 126.1524 | AA49: rams | AB49: ='Prime Lambs Input'!E11*'Prime Lambs'!AB48 -> 20 | AC49: =(G210+G215)/2 -> 985 | AD49: 100 | AE49: 2 | AG49: Stock Purchase | AJ49: =SUM(Q105:Q105) -> 76781.82549 | AM49: Freight | AN49: =$E$121 -> 1300 | AO49: =K121 -> 4 | AP49: =AN49*AO49 -> 5200
C50: Shed labour | E50: 5 | G50: days | I50: Reset Rate> | J50: =GM_INFO!C81 | K50: =GM_INFO!C81 -> 250.95 | M50: /day | Q50: =K50*ROUND(E50,0) -> 1254.75 | AA50: lambs | AB50: =AC227 -> 1300 | AC50: =G211/2 -> 100 | AD50: 35 | AE50: 0 | AG50: Freight | AH50: sheep | AJ50: =SUM(Q119:Q120) -> 1610.279734 | AM50: Yard Fees | AN50: =$E$121 -> 1300 | AO50: =K125 -> 0.85 | AP50: =AN50*AO50 -> 1105
C51: Woolclasser | E51: 2.5 | G51: days | I51: Reset Rate> | J51: =GM_INFO!C82 | K51: =GM_INFO!C82 -> 319.91 | M51: /day | Q51: =K51*E51 -> 799.775 | AA51: TOTAL | AB51: =SUM(AB48:AB50) -> 2320 | AC51: =AB48*AC48+AB49*AC49+AB50*AC50/2 -> 319700 | AH51: Wool | AJ51: =Q122 -> 300 | AM51: Levies | AN51: =$E$121 -> 1300 | AO51: =K127+K128 -> 2.17 | AP51: =AN51*AO51 -> 2821 | AS51: Ewes mated | AU51: ='Prime Lambs Input'!$E$7 -> 1000 | AX51: Ram % | AY51: =E200 -> 0.02
C52: Superannuation (on ord wages only) | I52: Reset Rate> | J52: =GM_INFO!C83 | K52: =GM_INFO!C83 -> 0.1 | M52: wages | Q52: =(Q48+Q49+Q50+Q51)*K52 -> 539.75636 | AG52: Commission on livestock sales | AJ52: =(K209+K210)*K124 -> 1741.3 | AO52: =SUM(AO47:AO51) -> 10.527 | AQ52: =AO52*AD50 -> 368.445 | AS52: Age ewes purchased | AU52: =E201 -> 0.5 | AX52: Price of rams | AY52: =AL68 -> 0
C53: W/Cover (incl. super + otime etc) | I53: Reset Rate> | J53: =GM_INFO!C84 | K53: =GM_INFO!C84 -> 0.04 | M53: total | Q53: =(Q48+Q49+Q50+Q51+Q52)*K53 -> 237.4927984 | AG53: Yard fees | AJ53: =E119*K125 -> 160.3440129 | AM53: Commission | AN53: =$E$121 -> 1300 | AO53: =G212 -> 195.9237942 | AP53: =K124 -> 0.055 | AQ53: =AD50*AO53*AP53 -> 377.1533039 | AS53: Age ewes sold | AU53: =E202 -> 6.5 | AX53: Years rams kept | AY53: =E203 -> 3
C54: Wool packs | E54: 20 | G54: packs | I54: Reset Rate> | J54: =GM_INFO!C77 | K54: =GM_INFO!C77 -> 16 | M54: /pack | Q54: =K54*ROUND(E54,0) -> 320 | AG54: Levies | AJ54: =E126*(K126+K128) -> 164.1168132 | AS54: Av Weaning % | AU54: ='Prime Lambs Input'!E10 -> 1.3 | AX54: Age wethers sold | AY54: 0.5
C55: Shed sundries | E55: =E48+E49 -> 988.2208733 | G55: sheep | I55: Reset Rate> | J55: =GM_INFO!C85 | K55: =GM_INFO!C85 -> 0.2 | M55: /head | Q55: =K55*ROUND(E55,0) -> 197.6 | AG55: Wool Selling Charges | AJ55: =Q130+Q131 -> 1064.094461 | AQ55: =SUM(AQ43:AQ53) -> 745.5983039 | AS55: dse/ewe | AU55: =AE48 -> 1.8 | AX55: Flock death rate | AY55: =E204 -> 0.03
C56: Lice control | E56: =E48+E49 -> 988.2208733 | G56: sheep | I56: Reset Rate> | J56: =GM_INFO!C66 | K56: =GM_INFO!C66 -> 1.695 | M56: /head | Q56: =K56*ROUND(E56,0) -> 1674.66 | AG56: Feed & other costs | AJ56: =SUM(Q144:Q149) -> 17171.4
C57: Crutch & Wig | E57: 990 | G57: ewes | I57: Reset Rate> | J57: =GM_INFO!C87 | K57: =GM_INFO!C87 -> 96.27 | M57: /100 | Q57: =K57/100*ROUND(E57,0) -> 953.073 | AK57: =SUM(AJ47:AJ56) -> 112704.3489
E58: =E49 -> 19.4 | G58: rams | I58: Reset Rate> | J58: =GM_INFO!C88 | K58: =GM_INFO!C88 -> 192.54 | M58: /100 | Q58: =K58/100*ROUND(E58,0) -> 36.5826
AS60: EWES | AT60: OPENING | AU60: NATURAL | AV60: PURCHASES | AW60: DEATHS | AX60: % sold | AY60: SALES | AZ60: CLOSING
AS61: AGE | AT61: NUMBERS | AU61: INCREASE | AX61: culled | AZ61: NUMBERS
AS63: 0.5-1.5yr | AV63: =IF($N$78=1.5,AT64,AT63-AW63) -> 0 | AY63: =AT63-AW63 -> 0 | AZ63: =AT63+AU63+AV63-AW63-AY63 -> 0
AS64: 1.5-2.5yr | AT64: =IF(AU52=1.5,AU51/(1+(1-AY55)*(1-AX64)*(1+(1-AY55)*(1-AX65)*(1+(1-AY55)*(1-AX66)*(1+(1-AY55)*(1-AX67))))),0) -> 0 | AV64: =IF(AU52=2.5,AT65-AY64,0) -> 0 | AW64: =AT64*$R$81 -> 0 | AY64: =(AT64-AW64)*AX64 -> 0 | AZ64: 0
AS65: 2.5-3.5yr | AT65: =IF(AU52=2.5,AU51/(1+(1-AY55)*(1-AX65)*(1+(1-AY55)*(1-AX66)*(1+(1-AY55)*(1-AX67)))),AZ64) -> 0 | AV65: =IF(AU52=3.5,AT66-AY65,0) -> 0 | AW65: =AT65*$R$81 -> 0 | AY65: =(AT65-AW65)*AX65 -> 0 | AZ65: 0
AS66: 3.5-4.5yr | AT66: =IF(AU52=3.5,AU51/(1+(1-AY55)*(1-AX66)*(1+(1-AY55)*(1-AX67))),AZ65) -> 0 | AV66: =IF(AU52=4.5,AT67-AY66,0) -> 0 | AW66: =AT66*$R$81 -> 0 | AY66: =(AT66-AW66)*AX66 -> 0 | AZ66: 0
AS67: 4.5-5.5yr | AT67: =IF(AU52=4.5,AU51/(1+(1-AY55)*(1-AX67)),AZ66) -> 0 | AW67: =AT67*$R$81 -> 0 | AX67: =IF(AU53=5.5,1,0) -> 0 | AY67: =(AT67-AW67)*AX67 -> 0 | AZ67: 0
AS68: 5.5-6.5yr | AT68: =AZ67 -> 0 | AW68: =AT68*$R$81 -> 0 | AX68: =IF(AU53=6.5,1,0) -> 1 | AY68: =(AT68-AW68)*AX68 -> 0 | AZ68: 0
AS69: Ewes | AT69: =SUM(AT64:AT68) -> 0 | AV69: =AV63+AV64+AV65+AV66 -> 0 | AW69: =SUM(AW63:AW68) -> 0 | AY69: =SUM(AY64:AY68) -> 0 | AZ69: =SUM(AZ63:AZ67) -> 0
AS70: d.s.e's | AT70: =AT63+AT69*AU55 -> 0
AS73: LAMBS | AT73: OPENING | AU73: NATURAL | AV73: PURCHASES | AW73: DEATHS | AX73: % sold | AY73: SALES | AZ73: CLOSING
AS74: AGE | AT74: NUMBERS | AU74: INCREASE | AX74: culled | AZ74: NUMBERS
C75: Marking
C76: Lamb marking | E76: =AC227 -> 1300 | G76: lambs | I76: Reset Rate> | J76: =GM_INFO!C91 | K76: =GM_INFO!C91 -> 1.25 | M76: /head | Q76: =K76*ROUND(E76,0) -> 1625 | AS76: 0-0.5yr | AU76: =AU51*AU54 -> 1300 | AX76: 1 | AY76: =AU76*AX76 -> 1300 | AZ76: =AT76+AU76+AV76-AW76-AY76 -> 0
C77: Ear tags | E77: =AC227 -> 1300 | G77: lambs | I77: Reset Rate> | J77: =GM_INFO!C92 | K77: =GM_INFO!C92 -> 0.3 | M77: /head | Q77: =K77*ROUND(E77,0) -> 390
C78: Pain Relief | E78: =AC227 -> 1300 | G78: lambs | I78: Reset Rate> | J78: =GM_INFO!C93 | K78: =GM_INFO!C93 -> 1.392 | M78: /head | Q78: =K78*ROUND(E78,0) -> 1809.6
AS79: RAMS | AT79: OPENING | AU79: NATURAL | AV79: PURCHASES | AW79: DEATHS | AX79: % sold | AY79: SALES | AZ79: CLOSING
AS80: AGE | AT80: NUMBERS | AU80: INCREASE | AX80: culled | AZ80: NUMBERS
AS82: 0.5-1.5yr | AV82: =AT83/(1-AX82) -> 6.870727266 | AW82: =AT82*$R$81 -> 0 | AZ82: =AT82+AU82+AV82-AW82-AY82 -> 6.870727266
AS83: 1.5-2.5yr | AT83: =IF(AY53=3,(AU51*AY51)/(1+(1-AY55)*(1-AX83)*(1+(1-AY55)*(1-AX84)*(1+(1-AY55)*(1-AX85)))),IF(AY53=4,(AU51*AY51)/(1+(1-AY55)*(1-AX83)*(1+(1-AY55)*(1-AX84)*(1+(1-AY55)*(1-AX85)*(1+(1-AY55)*(1-AX86))))),0)) -> 6.870727266 | AW83: =AT83*$R$81 -> 0 | AZ83: =AT83+AU83+AV83-AW83-AY83 -> 6.870727266
AS84: 2.5-3.5yr | AT84: =AZ83 -> 6.870727266 | AW84: =AT84*$R$81 -> 0 | AZ84: =AT84+AU84+AV84-AW84-AY84 -> 6.870727266
AS85: 3.5-4.5yr | AT85: =AZ84 -> 6.870727266 | AW85: =AT85*$R$81 -> 0 | AX85: =IF(AY53=3,100%,0) -> 1 | AY85: =(AT85-AW85)*AX85 -> 6.870727266 | AZ85: =AT85+AU85+AV85-AW85-AY85 -> 0
AS86: 4.5-5.5yr | AT86: =AZ85 -> 0 | AW86: =AT86*$R$81 -> 0 | AX86: =IF(AY53=4,100%,0) -> 0 | AY86: =AT86-AW86 -> 0 | AZ86: =AT86+AU86+AV86-AW86-AY86 -> 0
AT87: =AT82+AT83+AT84+AT85+AT86 -> 20.6121818 | AV87: =AV82+AV83+AV84+AV85+AV86 -> 6.870727266 | AW87: =AW82+AW83+AW84+AW85+AW86 -> 0 | AY87: =AY82+AY83+AY84+AY85+AY86 -> 6.870727266 | AZ87: =AZ82+AZ83+AZ84+AZ85+AZ86 -> 20.6121818
AS88: d.s.e's | AT88: =AT87*AE49 -> 41.2243636
C89: Animal Health
C90: Drench | E90: =G222 -> 5660 | G90: sheep | I90: Reset Rate> | J90: =GM_INFO!C68 | K90: =GM_INFO!C68 -> 0.829 | M90: /head | Q90: =K90*ROUND(E90,0) -> 4692.14
C91: Vaccinate | E91: =I222 -> 3620 | G91: sheep | I91: Reset Rate> | J91: =GM_INFO!C74 | K91: =GM_INFO!C74 -> 0.376 | M91: /head | Q91: =K91*ROUND(E91,0) -> 1361.12
C92: Blowfly control | E92: =K222 -> 1000 | G92: sheep | I92: Reset Rate> | J92: =GM_INFO!C76 | K92: =GM_INFO!C76 -> 1.434 | M92: /head | Q92: =K92*ROUND(E92,0) -> 1434
C104: Stock purchases
C105: Purchases | Q105: =K214+K215 -> 76781.82549
C117: Sale Costs
C118: Freight
C119: Livestock | E119: =SUM(E209:E210) -> 188.6400152 | G119: culls | I119: Reset Rate> | J119: =GM_INFO!B161 | K119: =GM_INFO!B161 -> 4 | M119: /head | Q119: =K119*ROUND(E119,0) -> 756
E120: =E214 -> 213.5699335 | G120: ewes | I120: Reset Rate> | J120: =GM_INFO!B162 | K120: =GM_INFO!B162 -> 4 | M120: /head | Q120: =K120*E120 -> 854.2797339
E121: =E211 -> 1300 | G121: prime lambs | I121: Reset Rate> | J121: =GM_INFO!B163 | K121: =GM_INFO!B163 -> 4 | M121: /head | Q121: =K121*ROUND(E121,0) -> 5200
C122: Wool | E122: =G234/170 -> 20.23160621 | G122: bales | I122: Reset Rate> | J122: =GM_INFO!B164 | K122: =GM_INFO!B164 -> 15 | M122: /bale | Q122: =K122*ROUND(E122,0) -> 300
C123: Stock selling charges
C124: Commission/insurance | I124: Reset Rate> | J124: =GM_INFO!C98 | K124: =GM_INFO!C98 -> 0.055 | M124: gross $ | Q124: =K124*Q35 -> 16041.3
C125: Yard fees | E125: =E212 -> 1488.640015 | G125: sheep | I125: Reset Rate> | J125: =GM_INFO!C99 | K125: =GM_INFO!C99 -> 0.85 | M125: /head | Q125: =K125*ROUND(E125,0) -> 1265.65
C126: Levy-sheep | E126: =E119 -> 188.6400152 | G126: sheep | I126: Reset Rate> | J126: =GM_INFO!C100 | K126: =GM_INFO!C100 -> 0.2 | M126: /head | Q126: =K126*ROUND(E126,0) -> 37.8
C127: Levy-lambs | E127: =E211 -> 1300 | G127: sheep | I127: Reset Rate> | J127: =GM_INFO!C101 | K127: =GM_INFO!C101 -> 1.5 | M127: /head | Q127: =K127*ROUND(E127,0) -> 1950
C128: SA sheep industry levy | E128: =E212 -> 1488.640015 | G128: sheep | I128: Reset Rate> | J128: =GM_INFO!C102 | K128: =GM_INFO!C102 -> 0.67 | M128: /head | Q128: =K128*ROUND(E128,0) -> 997.63
C129: Wool selling charges
C130: Brokerage/testing/insurance | I130: Reset Rate> | J130: =GM_INFO!C103 | K130: =GM_INFO!C103 -> 0.27 | M130: /kg | Q130: =K130*E34 -> 928.6307252
C131: Wool levy | I131: Reset Rate> | J131: =GM_INFO!C104 | K131: =GM_INFO!C104 -> 0.015 | M131: gross | Q131: =K131*Q34 -> 135.4637356
C143: Feed and Other Costs
C144: Hay | Q144: =SUM('Prime Lambs Input'!I63:I65) -> 3264
C145: Grain | Q145: =SUM('Prime Lambs Input'!I70:I72) -> 7380
C146: Insurance | E146: =AC51 -> 319700 | G146: value | I146: Reset Rate> | J146: =GM_INFO!B157 | K146: =GM_INFO!B157 -> 2 | M146: /$'000 | Q146: =K146/1000*E146 -> 639.4
C147: Water | E147: =$Q$6 -> 1840 | G147: DSE's | I147: Reset Rate> | J147: =GM_INFO!D129 | K147: =GM_INFO!D129 -> 1.5 | M147: /DSE's | Q147: =K147*E147 -> 2760
C148: Veh Fuel, R&M | E148: =$Q$6 -> 1840 | G148: DSE's | I148: Reset Rate> | J148: =GM_INFO!D130 | K148: =GM_INFO!D130 -> 1.2 | M148: /DSE's | Q148: =K148*E148 -> 2208
C149: Other | E149: =$Q$6 -> 1840 | G149: DSE's | I149: Reset Rate> | J149: =GM_INFO!D131 | K149: =GM_INFO!D131 -> 0.5 | M149: /DSE's | Q149: =K149*E149 -> 920
C170: TOTAL VARIABLE COSTS | Q170: =SUM(Q48:Q166) -> 143088.568
C172: GROSS MARGIN TOTAL | Q172: =Q37-Q170 -> 157602.3477
C174: GROSS MARGIN/DSE | Q174: =Q172/Q6 -> 85.65344982
C194: PRODUCTION DATA
C196: Stocking rate (DSE/Ha) | E196: 6 | K196: Culling Rate (% from each group) | AA196: SHEEP GROSS MARGIN
C197: Total DSE's | E197: =SUMPRODUCT(AB48:AB50,AE48:AE50) -> 1840 | K197: Age Group | M197: Ewes | O197: Wethers | AA197: PRIME LAMB -
C198: SHEEP GRAZING AREA | E198: =E197/E196 -> 306.6666667 | K198: 0.5 | M198: =AF214 -> 0
C199: Number of ewes mated | E199: ='Prime Lambs Input'!E7 -> 1000 | K199: 1.5 | M199: 0
C200: Ram percentage | E200: ='Prime Lambs Input'!E11 -> 0.02 | K200: 2.5 | M200: 0
C201: Age ewes bought (yrs) | E201: ='Prime Lambs Input'!E8 -> 0.5 | K201: 3.5 | M201: 0
C202: Age ewes culled | E202: ='Prime Lambs Input'!E9 -> 6.5 | K202: 4.5 | M202: 0 | AA202: Ewes mated | AC202: ='Prime Lambs Input'!E7 -> 1000 | AF202: Ram % | AG202: =E200 -> 0.02
B203: =VLOOKUP(r[0]c3&"No Ops",CHOOSE({1,2},tbl_ops[Name]&tbl_ops[Category],INDIRECT("tbl_ops["&var_crop&"]")),2,0) | C203: Years rams kept | E203: ='Prime Lambs Input'!E12 -> 3 | K203: 5.5 | M203: 1 | AA203: Age ewes purchased | AC203: =E201 -> 0.5 | AF203: Price of rams | AG203: =G215 -> 1850
B204: =VLOOKUP(r[0]c3&"No Ops",CHOOSE({1,2},tbl_ops[Name]&tbl_ops[Category],INDIRECT("tbl_ops["&var_crop&"]")),2,0) | C204: Flock death rate | E204: ='Prime Lambs Input'!E13 -> 0.03 | K204: 6.5 | M204: 0 | AA204: Age ewes sold | AC204: =E202 -> 6.5 | AF204: Years rams kept | AG204: =E203 -> 3
B205: =VLOOKUP(r[0]c3&"No Ops",CHOOSE({1,2},tbl_ops[Name]&tbl_ops[Category],INDIRECT("tbl_ops["&var_crop&"]")),2,0) | C205: Average weaning rate | E205: =AC205 -> 1.3 | AA205: Av Weaning % | AC205: ='Prime Lambs Input'!E10 -> 1.3 | AF205: Age wethers sold | AG205: 0.5
B206: =VLOOKUP(r[0]c3&"No Ops",CHOOSE({1,2},tbl_ops[Name]&tbl_ops[Category],INDIRECT("tbl_ops["&var_crop&"]")),2,0) | C206: % Lambs carried over | E206: 0 | AA206: dse/ewe | AC206: =AE48 -> 1.8 | AF206: Flock death rate | AG206: =E204 -> 0.03
B207: =VLOOKUP(r[0]c3&var_rain,CHOOSE({1,2},tbl_ops[Name]&tbl_ops[Rainfall],INDIRECT("tbl_ops["&var_crop&"]")),2,0)
B208: =VLOOKUP(r[0]c3&var_rain,CHOOSE({1,2},tbl_ops[Name]&tbl_ops[Rainfall],INDIRECT("tbl_ops["&var_crop&"]")),2,0) | C208: SALES | E208: Number | G208: Price/hd | I208: Age | K208: Total
B209: =VLOOKUP(r[0]c3&var_rain,CHOOSE({1,2},tbl_ops[Name]&tbl_ops[Rainfall],INDIRECT("tbl_ops["&var_crop&"]")),2,0) | C209: c.f.a ewes | E209: =AG220 -> 182.3692879 | G209: ='Prime Lambs Input'!E18 -> 170 | I209: =E202 -> 6.5 | K209: =ROUND(E209,0)*G209 -> 30940
B210: =VLOOKUP(r[0]c3&var_rain,CHOOSE({1,2},tbl_ops[Name]&tbl_ops[Rainfall],INDIRECT("tbl_ops["&var_crop&"]")),2,0) | C210: c.f.a rams | E210: =AG238 -> 6.270727266 | G210: ='Prime Lambs Input'!E19 -> 120 | I210: =E203+1.5 -> 4.5 | K210: =ROUND(E210,0)*G210 -> 720
C211: Lambs | E211: ='Prime Lambs Input'!F20 -> 1300 | G211: ='Prime Lambs Input'!E20 -> 200 | I211: 20 Weeks | K211: =ROUND(E211,0)*G211 -> 260000 | AA211: EWES | AB211: OPENING | AC211: NATURAL | AD211: PURCHASES | AE211: DEATHS | AF211: % sold | AG211: SALES | AH211: CLOSING
C212: TOTAL | E212: =SUM(E209:E211) -> 1488.640015 | G212: =K212/E212 -> 195.9237942 | K212: =SUM(K209:K211) -> 291660 | AA212: AGE | AB212: NUMBERS | AC212: INCREASE | AF212: culled | AH212: NUMBERS
C213: PURCHASES | E213: Number | G213: Price/hd | I213: Age | K213: Total | AD213: =IF($AC$203=0.5,AB214,AB213-AE213) -> 213.5699335
C214: Ewes | E214: =AD220 -> 213.5699335 | G214: ='Prime Lambs Input'!E29 -> 300 | I214: =E201 -> 0.5 | K214: =E214*G214 -> 64070.98004 | AA214: 0.5-1.5yr | AB214: =IF(AC203=0.5,AC202/(1+(1-AG206)*(1-AF214)*(1+(1-AG206)*(1-AF215)*(1+(1-AG206)*(1-AF216)*(1+(1-AG206)*(1-AF217)*(1+(-AG206)*(1-AF218)))))),0) -> 213.5699335 | AD214: =IF($AC$203=1.5,AB214-AE214,0) -> 0 | AE214: 1.2 | AG214: =(AB214-AE214)*AF214 -> 0 | AH214: =AB214+AC214+AD214-AE214-AG214 -> 212.3699335
C215: Rams | E215: =AD238 -> 6.870727266 | G215: ='Prime Lambs Input'!E30 -> 1850 | I215: 1.5 | K215: =E215*G215 -> 12710.84544 | AA215: 1.5-2.5yr | AB215: =IF(AC203=1.5,AC202/(1+(1-AG206)*(1-AF215)*(1+(1-AG206)*(1-AF216)*(1+(1-AG206)*(1-AF217)*(1+(1-AG206)*(1-AF218))))),AH214) -> 212.3699335 | AD215: =IF(AC203=2.5,AB216-AG215,0) -> 0 | AE215: =AB215*AG206 -> 6.371098004 | AG215: 0 | AH215: 205.9988355
AA216: 2.5-3.5yr | AB216: =IF(AC203=2.5,AC202/(1+(1-AG206)*(1-AF216)*(1+(1-AG206)*(1-AF217)*(1+(1-AG206)*(1-AF218)))),AH215) -> 205.9988355 | AD216: =IF(AC203=3.5,AB217-AG216,0) -> 0 | AE216: =AB216*AG206 -> 6.179965064 | AG216: 0 | AH216: 199.8188704
E217: Number of Times | AA217: 3.5-4.5yr | AB217: =IF(AC203=3.5,AC202/(1+(1-AG206)*(1-AF217)*(1+(1-AG206)*(1-AF218))),AH216) -> 199.8188704 | AD217: =IF(AC203=4.5,AB218-AG217,0) -> 0 | AE217: =AB217*AG206 -> 5.994566112 | AG217: 0 | AH217: 193.8243043
C218: STOCK HEALTH REQUIREMENTS | E218: Number | G218: Drench | I218: Vacc. | K218: Blowfly | M218: DSE | AA218: 4.5-5.5yr | AB218: =IF(AC203=4.5,AC202/(1+(1-AG206)*(1-AF218)),AH217) -> 193.8243043 | AE218: =AB218*AG206 -> 5.814729129 | AF218: =IF(AC204=5.5,1,0) -> 0 | AG218: 0 | AH218: 188.0095752
C219: Ewes | E219: ='Prime Lambs Input'!E7 -> 1000 | G219: ='Prime Lambs Input'!F53 -> 3 | I219: ='Prime Lambs Input'!G53 -> 1 | K219: ='Prime Lambs Input'!H53 -> 1 | M219: 1.8 | AA219: 5.5-6.5yr | AB219: =AH218 -> 188.0095752 | AE219: =AB219*AG206 -> 5.640287255 | AF219: =IF(AC204=6.5,1,0) -> 1 | AG219: 182.3692879 | AH219: 0
C220: Rams | E220: =AB49 -> 20 | G220: ='Prime Lambs Input'!F54 -> 3 | I220: ='Prime Lambs Input'!G54 -> 1 | K220: ='Prime Lambs Input'!H54 -> 0 | M220: 2 | AA220: Ewes | AB220: =SUM(AB215:AB219) -> 1000.021519 | AD220: =AD214+AD215+AD216+AD217+AD213 -> 213.5699335 | AE220: =SUM(AE214:AE219) -> 31.20064556 | AG220: =SUM(AG215:AG219) -> 182.3692879 | AH220: =SUM(AH214:AH218) -> 1000.021519
C221: Lambs | E221: =AC227 -> 1300 | G221: ='Prime Lambs Input'!F55 -> 2 | I221: ='Prime Lambs Input'!G55 -> 2 | K221: ='Prime Lambs Input'!H55 -> 0 | AA221: d.s.e's | AB221: =AB214+AB220*AC206 -> 2013.608667
C222: TOTAL | E222: =SUM(E219:E221) -> 2320 | G222: =SUMPRODUCT($E$219:$E$221,G219:G221) -> 5660 | I222: =SUMPRODUCT($E$219:$E$221,I219:I221) -> 3620 | K222: =SUMPRODUCT($E$219:$E$221,K219:K221) -> 1000 | M222: =SUMPRODUCT($E$219:$E$221,M219:M221) -> 1840
G224: Wool Cut kg/hd | AA224: LAMBS | AB224: OPENING | AC224: NATURAL | AD224: PURCHASES | AE224: DEATHS | AF224: % sold | AG224: SALES | AH224: CLOSING
C225: SHEARING | E225: Number | I225: Price | K225: Total | AA225: AGE | AB225: NUMBERS | AC225: INCREASE | AF225: culled | AH225: NUMBERS
C226: Ewes | E226: =AB220-AE220 -> 968.8208733 | G226: ='Prime Lambs Input'!F44 -> 3.5 | I226: ='Prime Lambs Input'!G44 -> 2.646 | K226: =I226*G226*E226 -> 8972.250107
C227: Crossbred rams | E227: =AB238-AE238 -> 19.4 | G227: ='Prime Lambs Input'!F45 -> 2.5 | I227: ='Prime Lambs Input'!G45 -> 1.2096 | K227: =I227*G227*E227 -> 58.6656 | AA227: 0-0.5yr | AC227: =AC202*AC205 -> 1300 | AF227: 1 | AG227: =AC227*AF227 -> 1300 | AH227: =AB227+AC227+AD227-AE227-AG227 -> 0
AA230: RAMS | AB230: OPENING | AC230: NATURAL | AD230: PURCHASES | AE230: DEATHS | AF230: % sold | AG230: SALES | AH230: CLOSING
AA231: AGE | AB231: NUMBERS | AC231: INCREASE | AF231: culled | AH231: NUMBERS
AA233: 0.5-1.5yr | AD233: =AB234/(1-AF233) -> 6.870727266 | AE233: =AB233*$AG$206 -> 0 | AH233: =AB233+AC233+AD233-AE233-AG233 -> 6.870727266
C234: TOTAL | E234: =SUM(E226:E233) -> 988.2208733 | G234: =SUMPRODUCT(E226:E233,G226:G233) -> 3439.373056 | K234: =SUM(K226:K233) -> 9030.915707 | AA234: 1.5-2.5yr | AB234: =IF(AG204=3,(AC202*AG202)/(1+(1-AG206)*(1-AF234)*(1+(1-AG206)*(1-AF235)*(1+(1-AG206)*(1-AF236)))),IF(AG204=4,(AC202*AG202)/(1+(1-AG206)*(1-AF234)*(1+(1-AG206)*(1-AF235)*(1+(1-AG206)*(1-AF236)*(1+(1-AG206)*(1-AF237))))),0)) -> 6.870727266 | AE234: =AB234*$AG$206 -> 0.206121818 | AH234: =AB234+AC234+AD234-AE234-AG234 -> 6.664605448
AA235: 2.5-3.5yr | AB235: =AH234 -> 6.664605448 | AE235: =AB235*$AG$206 -> 0.1999381635 | AH235: =AB235+AC235+AD235-AE235-AG235 -> 6.464667285
AA236: 3.5-4.5yr | AB236: =AH235 -> 6.464667285 | AE236: =AB236*$AG$206 -> 0.1939400186 | AF236: =IF(AG204=3,100%,0) -> 1 | AG236: =(AB236-AE236)*AF236 -> 6.270727266 | AH236: =AB236+AC236+AD236-AE236-AG236 -> 0
G237: Hay Cost ($/T) | I237: Kg Fed per Week | K237: No of Weeks Feeding | M237: Total Cost ($) | AA237: 4.5-5.5yr | AB237: =AH236 -> 0 | AE237: =AB237*$AG$206 -> 0 | AF237: =IF(AG204=4,100%,0) -> 0 | AG237: =AB237-AE237 -> 0 | AH237: =AB237+AC237+AD237-AE237-AG237 -> 0
C238: FEEDING | E238: Number | AB238: =AB233+AB234+AB235+AB236+AB237 -> 20 | AD238: =AD233+AD234+AD235+AD236+AD237 -> 6.870727266 | AE238: =AE233+AE234+AE235+AE236+AE237 -> 0.6 | AG238: =AG233+AG234+AG235+AG236+AG237 -> 6.270727266 | AH238: =AH233+AH234+AH235+AH236+AH237 -> 20
C239: Ewes | E239: ='Prime Lambs Input'!E63 -> 1000 | G239: ='Prime Lambs Input'!F63 -> 160 | I239: ='Prime Lambs Input'!G63 -> 2.5 | K239: ='Prime Lambs Input'!H63 -> 8 | M239: =(E239*G239*I239*K239)/1000 -> 3200 | AA239: d.s.e's | AB239: =AB238*AE49 -> 40
C240: Rams | E240: ='Prime Lambs Input'!E64 -> 20 | G240: ='Prime Lambs Input'!F64 -> 160 | I240: ='Prime Lambs Input'!G64 -> 2.5 | K240: ='Prime Lambs Input'!H64 -> 8 | M240: =(E240*G240*I240*K240)/1000 -> 64
C241: Lambs | E241: ='Prime Lambs Input'!E65 -> 0 | G241: ='Prime Lambs Input'!F65 -> 0 | I241: ='Prime Lambs Input'!G65 -> 0 | K241: ='Prime Lambs Input'!H65 -> 0 | M241: =(E241*G241*I241*K241)/1000 -> 0
G242: Grain Cost ($/T) | I242: Kg Fed per Week | K242: No of Weeks Feeding | M242: Total Cost ($)
E243: Number
C244: Ewes | E244: ='Prime Lambs Input'!E70 -> 1000 | G244: ='Prime Lambs Input'!F70 -> 300 | I244: ='Prime Lambs Input'!G70 -> 3 | K244: ='Prime Lambs Input'!H70 -> 8 | M244: =(E244*G244*I244*K244)/1000 -> 7200
C245: Rams | E245: ='Prime Lambs Input'!E71 -> 20 | G245: ='Prime Lambs Input'!F71 -> 300 | I245: ='Prime Lambs Input'!G71 -> 3 | K245: ='Prime Lambs Input'!H71 -> 10 | M245: =(E245*G245*I245*K245)/1000 -> 180
C246: Lambs | E246: ='Prime Lambs Input'!E72 -> 0 | G246: ='Prime Lambs Input'!F72 -> 0 | I246: ='Prime Lambs Input'!G72 -> 0 | K246: ='Prime Lambs Input'!H72 -> 0 | M246: =(E246*G246*I246*K246)/1000 -> 0
C247: TOTAL FEED COST | M247: =SUM(M239:M241,M244:M246) -> 10644
C250: GM SENSITIVITY
C251: Gross Margin/DSE | E251: Average Weaning Rate
G252: 0.95 | I252: 1.05 | K252: 1.3 | M252: 1.25 | O252: 1.35 | Q252: 1.45
E253: 175 | G253: =($E$199*G$252*$E253*(1-$K$124)+SUM($K$209:$K$210)+$K$234-$AK$57-$E$199*G$252*$AO$52)/$E$197 -> 40.81096024 | I253: =($E$199*I$252*$E253*(1-$K$124)+SUM($K$209:$K$210)+$K$234-$AK$57-$E$199*I$252*$AO$52)/$E$197 -> 49.22661241 | K253: =($E$199*K$252*$E253*(1-$K$124)+SUM($K$209:$K$210)+$K$234-$AK$57-$E$199*K$252*$AO$52)/$E$197 -> 70.26574285 | M253: =($E$199*M$252*$E253*(1-$K$124)+SUM($K$209:$K$210)+$K$234-$AK$57-$E$199*M$252*$AO$52)/$E$197 -> 66.05791676 | O253: =($E$199*O$252*$E253*(1-$K$124)+SUM($K$209:$K$210)+$K$234-$AK$57-$E$199*O$252*$AO$52)/$E$197 -> 74.47356894 | Q253: =($E$199*Q$252*$E253*(1-$K$124)+SUM($K$209:$K$210)+$K$234-$AK$57-$E$199*Q$252*$AO$52)/$E$197 -> 82.88922111
E254: 180 | G254: 43.25049828 | I254: 51.92294394 | K254: 73.60405807 | M254: 69.26783524 | O254: 77.94028089 | Q254: 86.61272654
C255: Average Lamb Sale Price($/hd) | E255: 185 | G255: 45.69003633 | I255: 54.61927546 | K255: 76.94237328 | M255: 72.47775372 | O255: 81.40699285 | Q255: 90.33623198
E256: 190 | G256: 48.12957437 | I256: 57.31560698 | K256: 80.2806885 | M256: 75.6876722 | O256: 84.87370481 | Q256: 94.05973741
E257: 195 | G257: 50.56911241 | I257: 60.0119385 | K257: 83.61900372 | M257: 78.89759067 | O257: 88.34041676 | Q257: 97.78324285
E258: 200 | G258: 53.00865046 | I258: 62.70827002 | K258: 86.95731894 | M258: 82.10750915 | O258: 91.80712872 | Q258: 101.5067483
E259: 205 | G259: 55.4481885 | I259: 65.40460154 | K259: 90.29563415 | M259: 85.31742763 | O259: 95.27384067 | Q259: 105.2302537
E260: 210 | G260: 57.88772654 | I260: 68.10093307 | K260: 93.63394937 | M260: 88.52734611 | O260: 98.74055263 | Q260: 108.9537592
E261: 215 | G261: 60.32726459 | I261: 70.79726459 | K261: 96.97226459 | M261: 91.73726459 | O261: 102.2072646 | Q261: 112.6772646
E262: 220 | G262: 62.76680263 | I262: 73.49359611 | K262: 100.3105798 | M262: 94.94718307 | O262: 105.6739765 | Q262: 116.40077
E263: 225 | G263: 65.20634067 | I263: 76.18992763 | K263: 103.648895 | M263: 98.15710154 | O263: 109.1406885 | Q263: 120.1242755

Sheet Prime Lambs Maternal Input (hidden)
C1: Prime Lambs Maternal
C2: =UPPER(var_animal)&" GROSS MARGIN - "&TEXT(m_year,"0000") -> PRIME LAMBS MATERNAL GROSS MARGIN - 2022
C4: GENERAL INFORMATION
C5: This represents a maternal ewe enterprise (composite ewe) mated to a maternal composite sire. All ewe replacements are purchased but age of replacements can be varied from 1.5 years to 4.5 years. Following are the various assumptions used in the calculation of the Gross Margin. Cells with yellow highlight can be changed. No allowance has been made for pasture expenses such as seed, fertiliser and chemicals. Refer to pasture gross margins in the “Cropping Gross Margin Plan” for annual and perennial pasture costs. Use the livestock gross margin per DSE as income for the pasture gross margin.
C7: Ewes mated | E7: 1000
C8: Age ewes purchased | E8: 0.5
C9: Age ewes sold | E9: 6.5
C10: Av Weaning % | E10: 1.3
C11: Ram percentage | E11: 0.02
C12: Years Rams Kept | E12: 3
C13: Flock death Rate | E13: 0.03
C14: % Lambs carried over | E14: 0
C17: LIVESTOCK SALES | E17: Price/Hd | F17: Number | G17: Total
C18: c.f.a Ewes | E18: 170 | F18: ='Prime Lambs Maternal'!AG221 -> 182.3692879 | G18: =E18*ROUND(F18,0) -> 30940
C19: c.f.a Rams | E19: 120 | F19: ='Prime Lambs Maternal'!AG239 -> 6.270727266 | G19: =E19*ROUND(F19,0) -> 720
C20: Ewe Lambs | E20: 220 | F20: ='Prime Lambs Maternal'!AG228*0.42 -> 546 | G20: =E20*ROUND(F20,0) -> 120120
C21: Wether & cull ewe lambs | E21: 200 | F21: ='Prime Lambs Maternal'!AG228*0.58 -> 754 | G21: =E21*ROUND(F21,0) -> 150800
C25: TOTAL SALES | F25: =SUM(F18:F23) -> 1488.640015 | G25: =SUM(G18:G23) -> 302580
C28: LIVESTOCK PURCHASES | E28: Price/Hd | F28: Number | G28: Total
C29: Ewes | E29: 300 | F29: ='Prime Lambs Maternal'!AD221 -> 213.5699335 | G29: =E29*F29 -> 64070.98004
C30: Rams | E30: 1850 | F30: =ROUND('Prime Lambs Maternal'!AD239,0) -> 7 | G30: =E30*F30 -> 12950
C32: TOTAL PURCHASES | F32: =SUM(F29:F30) -> 220.5699335 | G32: =SUM(G29:G30) -> 77020.98004
C35: WOOL PRICE (cents/kg) | F35: =TEXT(m_year-3,"0000")&" Average (Clean)" -> 2019 Average (Clean) | G35: =TEXT(m_year-2,"0000")&" Average (Clean)" -> 2020 Average (Clean) | H35: =TEXT(m_year-1,"0000")&" Average (Clean)" -> 2021 Average (Clean) | I35: Budget Base (Clean) | J35: Budget Base (Greasy)
E36: Wool- High Rainfall 28 mic 70% yield | F36: 867 | G36: 774 | H36: 756 | I36: 420 | J36: =I36*I37 -> 294
E37: Estimated wool yield | I37: 0.7
C38: Allow 90% to account for lower value of bellies, skirtings etc. | J38: =J36*0.9 -> 264.6
C42: WOOL SALES - SHEARING | F42: Wool Cut
E43: Number | F43: kg/hd | G43: Price | H43: Total
C44: Ewes | E44: ='Prime Lambs Maternal'!E227 -> 968.8208733 | F44: 3.5 | G44: 2.646 | H44: =E44*F44*G44 -> 8972.250107
C45: Crossbred Rams | E45: ='Prime Lambs Maternal'!E228 -> 19.4 | F45: 2.5 | G45: 1.2096 | H45: =E45*F45*G45 -> 58.6656
C47: TOTAL | E47: =SUM(E44:E46) -> 988.2208733 | F47: =(E44*F44)+(E45*F45) -> 3439.373056 | H47: =SUM(H44:H46) -> 9030.915707
C50: STOCK HEALTH REQUIREMENTS | E50: =HYPERLINK("http://paraboss.com.au","for more info on drench, lice and blowfly product selection refer to www.paraboss.com.au") -> for more info on drench, lice and blowfly product selection refer to www.paraboss.com.au
G51: Number of times
E52: Number | F52: Drench | G52: Vacc. | H52: Blowfly
C53: Ewes | E53: ='Prime Lambs Maternal'!E220 -> 1000 | F53: 3 | G53: 1 | H53: 1
C54: Rams | E54: ='Prime Lambs Maternal'!E221 -> 20 | F54: 3 | G54: 1 | H54: 0
C55: Lambs | E55: ='Prime Lambs Maternal'!E222 -> 1300 | F55: 2 | G55: 2 | H55: 0
C57: TOTAL | E57: =SUM(E53:E55) -> 2320 | F57: =SUMPRODUCT($E$53:$E$55,F53:F55) -> 5660 | G57: =SUMPRODUCT($E$53:$E$55,G53:G55) -> 3620 | H57: =SUMPRODUCT($E$53:$E$55,H53:H55) -> 1000
C60: FEEDING
C61: HAY | F61: Hay | G61: Kgs Fed | H61: No Weeks | I61: Total
E62: Number | F62: Cost ($/T) | G62: per Week | H62: of Feeding | I62: Cost ($)
C63: Ewes | E63: ='Prime Lambs Maternal'!E220 -> 1000 | F63: 160 | G63: 2.5 | H63: 8 | I63: =(H63*G63*E63)/1000*F63 -> 3200
C64: Rams | E64: ='Prime Lambs Maternal'!E221 -> 20 | F64: 160 | G64: 2.5 | H64: 8 | I64: =(H64*G64*E64)/1000*F64 -> 64
I66: =(H66*G66*E66)/1000*F66 -> 0
C68: GRAIN | F68: Grain | G68: Kgs Fed | H68: No weeks | I68: Total
E69: Number | F69: Cost ($/T) | G69: per week | H69: of Feeding | I69: Cost ($)
C70: Ewes | E70: ='Prime Lambs Maternal'!E220 -> 1000 | F70: 300 | G70: 3 | H70: 8 | I70: =(H70*G70*E70)/1000*F70 -> 7200
C71: Rams | E71: ='Prime Lambs Maternal'!E221 -> 20 | F71: 300 | G71: 3 | H71: 10 | I71: =(H71*G71*E71)/1000*F71 -> 180
C72: Lambs | I72: =(H72*G72*E72)/1000*F72 -> 0
H74: Total Feed Cost | I74: =SUM(I63:I66,I70:I72) -> 10644

Sheet Prime Lambs Maternal (hidden)
C1: Prime Lambs Maternal
C2: =UPPER(Var_Animal)&" GROSS MARGIN - "&TEXT(m_year,"0000") -> PRIME LAMBS MATERNAL GROSS MARGIN - 2022
C4: ASSUMPTIONS
C6: Ave Breeding Ewe Fibre Diameter | E6: 28 | O6: Total DSE's | Q6: =E197 -> 1840
C7: No. of breeding ewes (1st Cross) | E7: ='Prime Lambs Maternal Input'!$E$7 -> 1000
C8: 1st cross ewe - Terminal meat sire
C32: INCOME | Q32: $
C34: Wool (kg greasy) | E34: =G235 -> 3439.373056 | G34: kg | I34: av price | K34: =K235*100/G235*0.9 -> 236.3170265 | M34: c/kg | Q34: =K235 -> 9030.915707
C35: Sales | E35: =E213 -> 1488.640015 | G35: animals | I35: av price | K35: =G213 -> 203.2593487 | M35: /head | Q35: =E213*G213 -> 302580
C37: Gross Income | Q37: =SUM(Q34:Q35) -> 311610.9157
AA45: STOCK VALUE AND D.S.E REQUIREMENT | AG45: Non lamb related expenses | AM45: Lamb Costs | AN45: No: | AO45: per head | AS45: SHEEP GROSS MARGIN
C46: VARIABLE COSTS | AC46: Value | AD46: Ave Live | AE46: DSE | AS46: PRIME LAMB -
C47: Shearing | K47: Rate | AB47: Number | AC47: $/head | AD47: Wt (Kgs) | AE47: rating | AG47: Shearing | AJ47: =SUM(Q48:Q58) -> 9356.728358 | AM47: Marking | AN47: =$E$121 -> 754 | AO47: =K76+K77 -> 1.55 | AP47: =AN47*AO47 -> 1168.7
C48: Shearing | E48: =E227 -> 968.8208733 | G48: sheep | I48: Reset Rate> | J48: =GM_INFO!C79 | K48: =GM_INFO!C79 -> 331.98 | M48: /100 | Q48: =K48/100*ROUND(E48,0) -> 3216.8862 | AA48: ewes | AB48: ='Prime Lambs Maternal Input'!$E$7 -> 1000 | AC48: =(G209+G215)/2 -> 235 | AD48: 60 | AE48: =IF(AND(AD48>=55,AD48<60),1.7,IF(AND(AD48>=60,AD48<65),1.8,IF(AND(AD48>=65,AD48<70),1.9,IF(AND(AD48>=70,AD48<75),2,IF(AND(AD48>=75,AD48<80),2.1,IF(AND(AD48>=80,AD48<85),2.2,IF(AND(AD48>=85,AD48<90),2.3,IF(AD48>=90,2.4,0)))))))) -> 1.8 | AG48: Animal health | AJ48: =(E220*G220+E221*G221)*K90+(E220*I220+E221*I221)*K91+(E220*K220)*K92 -> 4354.26 | AM48: Animal health | AN48: =$E$121 -> 754 | AO48: =G221*K91+I221*K90 -> 1.957 | AP48: =AN48*AO48 -> 1475.578
C49: (Federal awards) | E49: =E228 -> 19.4 | G49: rams | I49: Reset Rate> | J49: =GM_INFO!C80 | K49: =GM_INFO!C80 -> 663.96 | M49: /100 | Q49: =K49/100*ROUND(E49,0) -> 126.1524 | AA49: rams | AB49: ='Prime Lambs Maternal Input'!E11*'Prime Lambs Maternal'!AB48 -> 20 | AC49: =(G210+G216)/2 -> 985 | AD49: 100 | AE49: 2 | AG49: Stock Purchase | AJ49: =SUM(Q105:Q105) -> 76781.82549 | AM49: Freight | AN49: =$E$121 -> 754 | AO49: =K121 -> 4 | AP49: =AN49*AO49 -> 3016
C50: Shed labour | E50: 5 | G50: days | I50: Reset Rate> | J50: =GM_INFO!C81 | K50: =GM_INFO!C81 -> 250.95 | M50: /day | Q50: =K50*ROUND(E50,0) -> 1254.75 | AA50: lambs | AB50: =AC228 -> 1300 | AC50: =G212/2 -> 100 | AD50: 35 | AE50: 0 | AG50: Freight | AH50: sheep | AJ50: =SUM(Q119:Q120) -> 1610.279734 | AM50: Yard Fees | AN50: =$E$121 -> 754 | AO50: =K125 -> 0.85 | AP50: =AN50*AO50 -> 640.9
C51: Woolclasser | E51: 2.5 | G51: days | I51: Reset Rate> | J51: =GM_INFO!C82 | K51: =GM_INFO!C82 -> 319.91 | M51: /day | Q51: =K51*E51 -> 799.775 | AA51: TOTAL | AB51: =SUM(AB48:AB50) -> 2320 | AC51: =AB48*AC48+AB49*AC49+AB50*AC50/2 -> 319700 | AH51: Wool | AJ51: =Q122 -> 300 | AM51: Levies | AN51: =$E$121 -> 754 | AO51: =K127+K128 -> 2.17 | AP51: =AN51*AO51 -> 1636.18 | AS51: Ewes mated | AU51: ='Prime Lambs Maternal Input'!$E$7 -> 1000 | AX51: Ram % | AY51: =E200 -> 0.02
C52: Superannuation (on ord wages only) | I52: Reset Rate> | J52: =GM_INFO!C83 | K52: =GM_INFO!C83 -> 0.1 | M52: wages | Q52: =(Q48+Q49+Q50+Q51)*K52 -> 539.75636 | AG52: Commission on livestock sales | AJ52: =(K209+K210)*K124 -> 1741.3 | AO52: =SUM(AO47:AO51) -> 10.527 | AQ52: =AO52*AD50 -> 368.445 | AS52: Age ewes purchased | AU52: =E201 -> 0.5 | AX52: Price of rams | AY52: =AL68 -> 0
C53: W/Cover (incl. super + otime etc) | I53: Reset Rate> | J53: =GM_INFO!C84 | K53: =GM_INFO!C84 -> 0.04 | M53: total | Q53: =(Q48+Q49+Q50+Q51+Q52)*K53 -> 237.4927984 | AG53: Yard fees | AJ53: =E119*K125 -> 160.3440129 | AM53: Commission | AN53: =$E$121 -> 754 | AO53: =G213 -> 203.2593487 | AP53: =K124 -> 0.055 | AQ53: =AD50*AO53*AP53 -> 391.2742463 | AS53: Age ewes sold | AU53: =E202 -> 6.5 | AX53: Years rams kept | AY53: =E203 -> 3
C54: Wool packs | E54: 20 | G54: packs | I54: Reset Rate> | J54: =GM_INFO!C77 | K54: =GM_INFO!C77 -> 16 | M54: /pack | Q54: =K54*ROUND(E54,0) -> 320 | AG54: Levies | AJ54: =E126*(K126+K128) -> 164.1168132 | AS54: Av Weaning % | AU54: ='Prime Lambs Maternal Input'!E10 -> 1.3 | AX54: Age wethers sold | AY54: 0.5
C55: Shed sundries | E55: =E48+E49 -> 988.2208733 | G55: sheep | I55: Reset Rate> | J55: =GM_INFO!C85 | K55: =GM_INFO!C85 -> 0.2 | M55: /head | Q55: =K55*ROUND(E55,0) -> 197.6 | AG55: Wool Selling Charges | AJ55: =Q130+Q131 -> 1064.094461 | AQ55: =SUM(AQ43:AQ53) -> 759.7192463 | AS55: dse/ewe | AU55: =AE48 -> 1.8 | AX55: Flock death rate | AY55: =E204 -> 0.03
C56: Lice control | E56: =E48+E49 -> 988.2208733 | G56: sheep | I56: Reset Rate> | J56: =GM_INFO!C66 | K56: =GM_INFO!C66 -> 1.695 | M56: /head | Q56: =K56*ROUND(E56,0) -> 1674.66 | AG56: Feed & other costs | AJ56: =SUM(Q144:Q149) -> 17171.4
C57: Crutch & Wig | E57: 990 | G57: ewes | I57: Reset Rate> | J57: =GM_INFO!C87 | K57: =GM_INFO!C87 -> 96.27 | M57: /100 | Q57: =K57/100*ROUND(E57,0) -> 953.073 | AK57: =SUM(AJ47:AJ56) -> 112704.3489
E58: =E49 -> 19.4 | G58: rams | I58: Reset Rate> | J58: =GM_INFO!C88 | K58: =GM_INFO!C88 -> 192.54 | M58: /100 | Q58: =K58/100*ROUND(E58,0) -> 36.5826
AS60: EWES | AT60: OPENING | AU60: NATURAL | AV60: PURCHASES | AW60: DEATHS | AX60: % sold | AY60: SALES | AZ60: CLOSING
AS61: AGE | AT61: NUMBERS | AU61: INCREASE | AX61: culled | AZ61: NUMBERS
AS63: 0.5-1.5yr | AV63: =IF($N$78=1.5,AT64,AT63-AW63) -> 0 | AY63: =AT63-AW63 -> 0 | AZ63: =AT63+AU63+AV63-AW63-AY63 -> 0
AS64: 1.5-2.5yr | AT64: =IF(AU52=1.5,AU51/(1+(1-AY55)*(1-AX64)*(1+(1-AY55)*(1-AX65)*(1+(1-AY55)*(1-AX66)*(1+(1-AY55)*(1-AX67))))),0) -> 0 | AV64: =IF(AU52=2.5,AT65-AY64,0) -> 0 | AW64: =AT64*$R$81 -> 0 | AY64: =(AT64-AW64)*AX64 -> 0 | AZ64: 0
AS65: 2.5-3.5yr | AT65: =IF(AU52=2.5,AU51/(1+(1-AY55)*(1-AX65)*(1+(1-AY55)*(1-AX66)*(1+(1-AY55)*(1-AX67)))),AZ64) -> 0 | AV65: =IF(AU52=3.5,AT66-AY65,0) -> 0 | AW65: =AT65*$R$81 -> 0 | AY65: =(AT65-AW65)*AX65 -> 0 | AZ65: 0
AS66: 3.5-4.5yr | AT66: =IF(AU52=3.5,AU51/(1+(1-AY55)*(1-AX66)*(1+(1-AY55)*(1-AX67))),AZ65) -> 0 | AV66: =IF(AU52=4.5,AT67-AY66,0) -> 0 | AW66: =AT66*$R$81 -> 0 | AY66: =(AT66-AW66)*AX66 -> 0 | AZ66: 0
AS67: 4.5-5.5yr | AT67: =IF(AU52=4.5,AU51/(1+(1-AY55)*(1-AX67)),AZ66) -> 0 | AW67: =AT67*$R$81 -> 0 | AX67: =IF(AU53=5.5,1,0) -> 0 | AY67: =(AT67-AW67)*AX67 -> 0 | AZ67: 0
AS68: 5.5-6.5yr | AT68: =AZ67 -> 0 | AW68: =AT68*$R$81 -> 0 | AX68: =IF(AU53=6.5,1,0) -> 1 | AY68: =(AT68-AW68)*AX68 -> 0 | AZ68: 0
AS69: Ewes | AT69: =SUM(AT64:AT68) -> 0 | AV69: =AV63+AV64+AV65+AV66 -> 0 | AW69: =SUM(AW63:AW68) -> 0 | AY69: =SUM(AY64:AY68) -> 0 | AZ69: =SUM(AZ63:AZ67) -> 0
AS70: d.s.e's | AT70: =AT63+AT69*AU55 -> 0
AS73: LAMBS | AT73: OPENING | AU73: NATURAL | AV73: PURCHASES | AW73: DEATHS | AX73: % sold | AY73: SALES | AZ73: CLOSING
AS74: AGE | AT74: NUMBERS | AU74: INCREASE | AX74: culled | AZ74: NUMBERS
C75: Marking
C76: Lamb marking | E76: =AC228 -> 1300 | G76: lambs | I76: Reset Rate> | J76: =GM_INFO!C91 | K76: =GM_INFO!C91 -> 1.25 | M76: /head | Q76: =K76*ROUND(E76,0) -> 1625 | AS76: 0-0.5yr | AU76: =AU51*AU54 -> 1300 | AX76: 1 | AY76: =AU76*AX76 -> 1300 | AZ76: =AT76+AU76+AV76-AW76-AY76 -> 0
C77: Ear tags | E77: =AC228 -> 1300 | G77: lambs | I77: Reset Rate> | J77: =GM_INFO!C92 | K77: =GM_INFO!C92 -> 0.3 | M77: /head | Q77: =K77*ROUND(E77,0) -> 390
C78: Pain Relief | E78: =AC228 -> 1300 | G78: lambs | I78: Reset Rate> | J78: =GM_INFO!C93 | K78: =GM_INFO!C93 -> 1.392 | M78: /head | Q78: =K78*ROUND(E78,0) -> 1809.6
AS79: RAMS | AT79: OPENING | AU79: NATURAL | AV79: PURCHASES | AW79: DEATHS | AX79: % sold | AY79: SALES | AZ79: CLOSING
AS80: AGE | AT80: NUMBERS | AU80: INCREASE | AX80: culled | AZ80: NUMBERS
AS82: 0.5-1.5yr | AV82: =AT83/(1-AX82) -> 6.870727266 | AW82: =AT82*$R$81 -> 0 | AZ82: =AT82+AU82+AV82-AW82-AY82 -> 6.870727266
AS83: 1.5-2.5yr | AT83: =IF(AY53=3,(AU51*AY51)/(1+(1-AY55)*(1-AX83)*(1+(1-AY55)*(1-AX84)*(1+(1-AY55)*(1-AX85)))),IF(AY53=4,(AU51*AY51)/(1+(1-AY55)*(1-AX83)*(1+(1-AY55)*(1-AX84)*(1+(1-AY55)*(1-AX85)*(1+(1-AY55)*(1-AX86))))),0)) -> 6.870727266 | AW83: =AT83*$R$81 -> 0 | AZ83: =AT83+AU83+AV83-AW83-AY83 -> 6.870727266
AS84: 2.5-3.5yr | AT84: =AZ83 -> 6.870727266 | AW84: =AT84*$R$81 -> 0 | AZ84: =AT84+AU84+AV84-AW84-AY84 -> 6.870727266
AS85: 3.5-4.5yr | AT85: =AZ84 -> 6.870727266 | AW85: =AT85*$R$81 -> 0 | AX85: =IF(AY53=3,100%,0) -> 1 | AY85: =(AT85-AW85)*AX85 -> 6.870727266 | AZ85: =AT85+AU85+AV85-AW85-AY85 -> 0
AS86: 4.5-5.5yr | AT86: =AZ85 -> 0 | AW86: =AT86*$R$81 -> 0 | AX86: =IF(AY53=4,100%,0) -> 0 | AY86: =AT86-AW86 -> 0 | AZ86: =AT86+AU86+AV86-AW86-AY86 -> 0
AT87: =AT82+AT83+AT84+AT85+AT86 -> 20.6121818 | AV87: =AV82+AV83+AV84+AV85+AV86 -> 6.870727266 | AW87: =AW82+AW83+AW84+AW85+AW86 -> 0 | AY87: =AY82+AY83+AY84+AY85+AY86 -> 6.870727266 | AZ87: =AZ82+AZ83+AZ84+AZ85+AZ86 -> 20.6121818
AS88: d.s.e's | AT88: =AT87*AE49 -> 41.2243636
C89: Animal Health
C90: Drench | E90: =G223 -> 5660 | G90: sheep | I90: Reset Rate> | J90: =GM_INFO!C68 | K90: =GM_INFO!C68 -> 0.829 | M90: /head | Q90: =K90*ROUND(E90,0) -> 4692.14
C91: Vaccinate | E91: =I223 -> 3620 | G91: sheep | I91: Reset Rate> | J91: =GM_INFO!C74 | K91: =GM_INFO!C74 -> 0.376 | M91: /head | Q91: =K91*ROUND(E91,0) -> 1361.12
C92: Blowfly control | E92: =K223 -> 1000 | G92: sheep | I92: Reset Rate> | J92: =GM_INFO!C76 | K92: =GM_INFO!C76 -> 1.434 | M92: /head | Q92: =K92*ROUND(E92,0) -> 1434
C104: Stock purchases
C105: Purchases | Q105: =K215+K216 -> 76781.82549
C117: Sale Costs
C118: Freight
C119: Livestock | E119: =SUM(E209:E210) -> 188.6400152 | G119: culls | I119: Reset Rate> | J119: =GM_INFO!B161 | K119: =GM_INFO!B161 -> 4 | M119: /head | Q119: =K119*ROUND(E119,0) -> 756
E120: =E215 -> 213.5699335 | G120: ewes | I120: Reset Rate> | J120: =GM_INFO!B162 | K120: =GM_INFO!B162 -> 4 | M120: /head | Q120: =K120*E120 -> 854.2797339
E121: =E212 -> 754 | G121: prime lambs | I121: Reset Rate> | J121: =GM_INFO!B163 | K121: =GM_INFO!B163 -> 4 | M121: /head | Q121: =K121*ROUND(E121,0) -> 3016
C122: Wool | E122: =G235/170 -> 20.23160621 | G122: bales | I122: Reset Rate> | J122: =GM_INFO!B164 | K122: =GM_INFO!B164 -> 15 | M122: /bale | Q122: =K122*ROUND(E122,0) -> 300
C123: Stock selling charges
C124: Commission/insurance | I124: Reset Rate> | J124: =GM_INFO!C98 | K124: =GM_INFO!C98 -> 0.055 | M124: gross $ | Q124: =K124*Q35 -> 16641.9
C125: Yard fees | E125: =E213 -> 1488.640015 | G125: sheep | I125: Reset Rate> | J125: =GM_INFO!C99 | K125: =GM_INFO!C99 -> 0.85 | M125: /head | Q125: =K125*ROUND(E125,0) -> 1265.65
C126: Levy-sheep | E126: =E119 -> 188.6400152 | G126: sheep | I126: Reset Rate> | J126: =GM_INFO!C100 | K126: =GM_INFO!C100 -> 0.2 | M126: /head | Q126: =K126*ROUND(E126,0) -> 37.8
C127: Levy-lambs | E127: =E212 -> 754 | G127: sheep | I127: Reset Rate> | J127: =GM_INFO!C101 | K127: =GM_INFO!C101 -> 1.5 | M127: /head | Q127: =K127*ROUND(E127,0) -> 1131
C128: SA sheep industry levy | E128: =E213 -> 1488.640015 | G128: sheep | I128: Reset Rate> | J128: =GM_INFO!C102 | K128: =GM_INFO!C102 -> 0.67 | M128: /head | Q128: =K128*ROUND(E128,0) -> 997.63
C129: Wool selling charges
C130: Brokerage/testing/insurance | I130: Reset Rate> | J130: =GM_INFO!C103 | K130: =GM_INFO!C103 -> 0.27 | M130: /kg | Q130: =K130*E34 -> 928.6307252
C131: Wool levy | I131: Reset Rate> | J131: =GM_INFO!C104 | K131: =GM_INFO!C104 -> 0.015 | M131: gross | Q131: =K131*Q34 -> 135.4637356
C143: Feed and Other Costs
C144: Hay | Q144: =SUM('Prime Lambs Maternal Input'!I63:I65) -> 3264
C145: Grain | Q145: =SUM('Prime Lambs Maternal Input'!I70:I72) -> 7380
C146: Insurance | E146: =AC51 -> 319700 | G146: value | I146: Reset Rate> | J146: =GM_INFO!B157 | K146: =GM_INFO!B157 -> 2 | M146: /$'000 | Q146: =K146/1000*E146 -> 639.4
C147: Water | E147: =$Q$6 -> 1840 | G147: DSE's | I147: Reset Rate> | J147: =GM_INFO!D129 | K147: =GM_INFO!D129 -> 1.5 | M147: /DSE's | Q147: =K147*E147 -> 2760
C148: Veh Fuel, R&M | E148: =$Q$6 -> 1840 | G148: DSE's | I148: Reset Rate> | J148: =GM_INFO!D130 | K148: =GM_INFO!D130 -> 1.2 | M148: /DSE's | Q148: =K148*E148 -> 2208
C149: Other | E149: =$Q$6 -> 1840 | G149: DSE's | I149: Reset Rate> | J149: =GM_INFO!D131 | K149: =GM_INFO!D131 -> 0.5 | M149: /DSE's | Q149: =K149*E149 -> 920
C170: TOTAL VARIABLE COSTS | Q170: =SUM(Q48:Q166) -> 140686.168
C172: GROSS MARGIN TOTAL | Q172: =Q37-Q170 -> 170924.7477
C174: GROSS MARGIN/DSE | Q174: =Q172/Q6 -> 92.8938846
C194: PRODUCTION DATA
C196: Stocking rate (DSE/Ha) | E196: 12 | K196: Culling Rate (% from each group) | AA196: SHEEP GROSS MARGIN
C197: Total DSE's | E197: =SUMPRODUCT(AB48:AB50,AE48:AE50) -> 1840 | K197: Age Group | M197: Ewes | O197: Wethers | AA197: PRIME LAMB -
C198: SHEEP GRAZING AREA | E198: =E197/E196 -> 153.3333333 | K198: 0.5 | M198: =AF215 -> 0
C199: Number of ewes mated | E199: ='Prime Lambs Maternal Input'!E7 -> 1000 | K199: 1.5 | M199: 0
C200: Ram percentage | E200: ='Prime Lambs Maternal Input'!E11 -> 0.02 | K200: 2.5 | M200: 0
C201: Age ewes bought (yrs) | E201: ='Prime Lambs Maternal Input'!E8 -> 0.5 | K201: 3.5 | M201: 0
C202: Age ewes culled | E202: ='Prime Lambs Maternal Input'!E9 -> 6.5 | K202: 4.5 | M202: 0 | AA202: Ewes mated | AC202: ='Prime Lambs Maternal Input'!E7 -> 1000 | AF202: Ram % | AG202: =E200 -> 0.02
B203: =VLOOKUP(r[0]c3&"No Ops",CHOOSE({1,2},tbl_ops[Name]&tbl_ops[Category],INDIRECT("tbl_ops["&var_crop&"]")),2,0) | C203: Years rams kept | E203: ='Prime Lambs Maternal Input'!E12 -> 3 | K203: 5.5 | M203: 1 | AA203: Age ewes purchased | AC203: =E201 -> 0.5 | AF203: Price of rams | AG203: =G216 -> 1850
B204: =VLOOKUP(r[0]c3&"No Ops",CHOOSE({1,2},tbl_ops[Name]&tbl_ops[Category],INDIRECT("tbl_ops["&var_crop&"]")),2,0) | C204: Flock death rate | E204: ='Prime Lambs Maternal Input'!E13 -> 0.03 | K204: 6.5 | M204: 0 | AA204: Age ewes sold | AC204: =E202 -> 6.5 | AF204: Years rams kept | AG204: =E203 -> 3
B205: =VLOOKUP(r[0]c3&"No Ops",CHOOSE({1,2},tbl_ops[Name]&tbl_ops[Category],INDIRECT("tbl_ops["&var_crop&"]")),2,0) | C205: Average weaning rate | E205: =AC205 -> 1.3 | AA205: Av Weaning % | AC205: ='Prime Lambs Maternal Input'!E10 -> 1.3 | AF205: Age wethers sold | AG205: 0.5
B206: =VLOOKUP(r[0]c3&"No Ops",CHOOSE({1,2},tbl_ops[Name]&tbl_ops[Category],INDIRECT("tbl_ops["&var_crop&"]")),2,0) | C206: % Lambs carried over | E206: 0 | AA206: dse/ewe | AC206: =AE48 -> 1.8 | AF206: Flock death rate | AG206: =E204 -> 0.03
B207: =VLOOKUP(r[0]c3&var_rain,CHOOSE({1,2},tbl_ops[Name]&tbl_ops[Rainfall],INDIRECT("tbl_ops["&var_crop&"]")),2,0)
B208: =VLOOKUP(r[0]c3&var_rain,CHOOSE({1,2},tbl_ops[Name]&tbl_ops[Rainfall],INDIRECT("tbl_ops["&var_crop&"]")),2,0) | C208: SALES | E208: Number | G208: Price/hd | I208: Age | K208: Total
B209: =VLOOKUP(r[0]c3&var_rain,CHOOSE({1,2},tbl_ops[Name]&tbl_ops[Rainfall],INDIRECT("tbl_ops["&var_crop&"]")),2,0) | C209: c.f.a ewes | E209: =AG221 -> 182.3692879 | G209: ='Prime Lambs Maternal Input'!E18 -> 170 | I209: =E202 -> 6.5 | K209: =ROUND(E209,0)*G209 -> 30940
B210: =VLOOKUP(r[0]c3&var_rain,CHOOSE({1,2},tbl_ops[Name]&tbl_ops[Rainfall],INDIRECT("tbl_ops["&var_crop&"]")),2,0) | C210: c.f.a rams | E210: =AG239 -> 6.270727266 | G210: ='Prime Lambs Maternal Input'!E19 -> 120 | I210: =E203+1.5 -> 4.5 | K210: =ROUND(E210,0)*G210 -> 720
C211: Ewe Lambs | E211: ='Prime Lambs Maternal Input'!F20 -> 546 | G211: ='Prime Lambs Maternal Input'!E20 -> 220 | I211: 0.5 | K211: =ROUND(E211,0)*G211 -> 120120
C212: Wether & cull ewe lambs | E212: ='Prime Lambs Maternal Input'!F21 -> 754 | G212: ='Prime Lambs Maternal Input'!E21 -> 200 | I212: 20 Weeks | K212: =ROUND(E212,0)*G212 -> 150800 | AA212: EWES | AB212: OPENING | AC212: NATURAL | AD212: PURCHASES | AE212: DEATHS | AF212: % sold | AG212: SALES | AH212: CLOSING
C213: TOTAL | E213: =SUM(E209:E212) -> 1488.640015 | G213: =K213/E213 -> 203.2593487 | K213: =SUM(K209:K212) -> 302580 | AA213: AGE | AB213: NUMBERS | AC213: INCREASE | AF213: culled | AH213: NUMBERS
C214: PURCHASES | E214: Number | G214: Price/hd | I214: Age | K214: Total | AD214: =IF($AC$203=0.5,AB215,AB214-AE214) -> 213.5699335
C215: Ewes | E215: =AD221 -> 213.5699335 | G215: ='Prime Lambs Maternal Input'!E29 -> 300 | I215: =E201 -> 0.5 | K215: =E215*G215 -> 64070.98004 | AA215: 0.5-1.5yr | AB215: =IF(AC203=0.5,AC202/(1+(1-AG206)*(1-AF215)*(1+(1-AG206)*(1-AF216)*(1+(1-AG206)*(1-AF217)*(1+(1-AG206)*(1-AF218)*(1+(-AG206)*(1-AF219)))))),0) -> 213.5699335 | AD215: =IF($AC$203=1.5,AB215-AE215,0) -> 0 | AE215: 1.2 | AG215: =(AB215-AE215)*AF215 -> 0 | AH215: =AB215+AC215+AD215-AE215-AG215 -> 212.3699335
C216: Rams | E216: =AD239 -> 6.870727266 | G216: ='Prime Lambs Maternal Input'!E30 -> 1850 | I216: 1.5 | K216: =E216*G216 -> 12710.84544 | AA216: 1.5-2.5yr | AB216: =IF(AC203=1.5,AC202/(1+(1-AG206)*(1-AF216)*(1+(1-AG206)*(1-AF217)*(1+(1-AG206)*(1-AF218)*(1+(1-AG206)*(1-AF219))))),AH215) -> 212.3699335 | AD216: =IF(AC203=2.5,AB217-AG216,0) -> 0 | AE216: =AB216*AG206 -> 6.371098004 | AG216: 0 | AH216: 205.9988355
AA217: 2.5-3.5yr | AB217: =IF(AC203=2.5,AC202/(1+(1-AG206)*(1-AF217)*(1+(1-AG206)*(1-AF218)*(1+(1-AG206)*(1-AF219)))),AH216) -> 205.9988355 | AD217: =IF(AC203=3.5,AB218-AG217,0) -> 0 | AE217: =AB217*AG206 -> 6.179965064 | AG217: 0 | AH217: 199.8188704
E218: Number of Times | AA218: 3.5-4.5yr | AB218: =IF(AC203=3.5,AC202/(1+(1-AG206)*(1-AF218)*(1+(1-AG206)*(1-AF219))),AH217) -> 199.8188704 | AD218: =IF(AC203=4.5,AB219-AG218,0) -> 0 | AE218: =AB218*AG206 -> 5.994566112 | AG218: 0 | AH218: 193.8243043
C219: STOCK HEALTH REQUIREMENTS | E219: Number | G219: Drench | I219: Vacc. | K219: Blowfly | M219: DSE | AA219: 4.5-5.5yr | AB219: =IF(AC203=4.5,AC202/(1+(1-AG206)*(1-AF219)),AH218) -> 193.8243043 | AE219: =AB219*AG206 -> 5.814729129 | AF219: =IF(AC204=5.5,1,0) -> 0 | AG219: 0 | AH219: 188.0095752
C220: Ewes | E220: ='Prime Lambs Maternal Input'!E7 -> 1000 | G220: ='Prime Lambs Maternal Input'!F53 -> 3 | I220: ='Prime Lambs Maternal Input'!G53 -> 1 | K220: ='Prime Lambs Maternal Input'!H53 -> 1 | M220: 1.8 | AA220: 5.5-6.5yr | AB220: =AH219 -> 188.0095752 | AE220: =AB220*AG206 -> 5.640287255 | AF220: =IF(AC204=6.5,1,0) -> 1 | AG220: 182.3692879 | AH220: 0
C221: Rams | E221: =AB49 -> 20 | G221: ='Prime Lambs Maternal Input'!F54 -> 3 | I221: ='Prime Lambs Maternal Input'!G54 -> 1 | K221: ='Prime Lambs Maternal Input'!H54 -> 0 | M221: 2 | AA221: Ewes | AB221: =SUM(AB216:AB220) -> 1000.021519 | AD221: =AD215+AD216+AD217+AD218+AD214 -> 213.5699335 | AE221: =SUM(AE215:AE220) -> 31.20064556 | AG221: =SUM(AG216:AG220) -> 182.3692879 | AH221: =SUM(AH215:AH219) -> 1000.021519
C222: Lambs | E222: =AC228 -> 1300 | G222: ='Prime Lambs Maternal Input'!F55 -> 2 | I222: ='Prime Lambs Maternal Input'!G55 -> 2 | K222: ='Prime Lambs Maternal Input'!H55 -> 0 | AA222: d.s.e's | AB222: =AB215+AB221*AC206 -> 2013.608667
C223: TOTAL | E223: =SUM(E220:E222) -> 2320 | G223: =SUMPRODUCT($E$220:$E$222,G220:G222) -> 5660 | I223: =SUMPRODUCT($E$220:$E$222,I220:I222) -> 3620 | K223: =SUMPRODUCT($E$220:$E$222,K220:K222) -> 1000 | M223: =SUMPRODUCT($E$220:$E$222,M220:M222) -> 1840
G225: Wool Cut kg/hd | AA225: LAMBS | AB225: OPENING | AC225: NATURAL | AD225: PURCHASES | AE225: DEATHS | AF225: % sold | AG225: SALES | AH225: CLOSING
C226: SHEARING | E226: Number | I226: Price | K226: Total | AA226: AGE | AB226: NUMBERS | AC226: INCREASE | AF226: culled | AH226: NUMBERS
C227: Ewes | E227: =AB221-AE221 -> 968.8208733 | G227: ='Prime Lambs Maternal Input'!F44 -> 3.5 | I227: ='Prime Lambs Maternal Input'!G44 -> 2.646 | K227: =I227*G227*E227 -> 8972.250107
C228: Crossbred rams | E228: =AB239-AE239 -> 19.4 | G228: ='Prime Lambs Maternal Input'!F45 -> 2.5 | I228: ='Prime Lambs Maternal Input'!G45 -> 1.2096 | K228: =I228*G228*E228 -> 58.6656 | AA228: 0-0.5yr | AC228: =AC202*AC205 -> 1300 | AF228: 1 | AG228: =AC228*AF228 -> 1300 | AH228: =AB228+AC228+AD228-AE228-AG228 -> 0
AA231: RAMS | AB231: OPENING | AC231: NATURAL | AD231: PURCHASES | AE231: DEATHS | AF231: % sold | AG231: SALES | AH231: CLOSING
AA232: AGE | AB232: NUMBERS | AC232: INCREASE | AF232: culled | AH232: NUMBERS
AA234: 0.5-1.5yr | AD234: =AB235/(1-AF234) -> 6.870727266 | AE234: =AB234*$AG$206 -> 0 | AH234: =AB234+AC234+AD234-AE234-AG234 -> 6.870727266
C235: TOTAL | E235: =SUM(E227:E234) -> 988.2208733 | G235: =SUMPRODUCT(E227:E234,G227:G234) -> 3439.373056 | K235: =SUM(K227:K234) -> 9030.915707 | AA235: 1.5-2.5yr | AB235: =IF(AG204=3,(AC202*AG202)/(1+(1-AG206)*(1-AF235)*(1+(1-AG206)*(1-AF236)*(1+(1-AG206)*(1-AF237)))),IF(AG204=4,(AC202*AG202)/(1+(1-AG206)*(1-AF235)*(1+(1-AG206)*(1-AF236)*(1+(1-AG206)*(1-AF237)*(1+(1-AG206)*(1-AF238))))),0)) -> 6.870727266 | AE235: =AB235*$AG$206 -> 0.206121818 | AH235: =AB235+AC235+AD235-AE235-AG235 -> 6.664605448
AA236: 2.5-3.5yr | AB236: =AH235 -> 6.664605448 | AE236: =AB236*$AG$206 -> 0.1999381635 | AH236: =AB236+AC236+AD236-AE236-AG236 -> 6.464667285
AA237: 3.5-4.5yr | AB237: =AH236 -> 6.464667285 | AE237: =AB237*$AG$206 -> 0.1939400186 | AF237: =IF(AG204=3,100%,0) -> 1 | AG237: =(AB237-AE237)*AF237 -> 6.270727266 | AH237: =AB237+AC237+AD237-AE237-AG237 -> 0
G238: Hay Cost ($/T) | I238: Kg Fed per Week | K238: No of Weeks Feeding | M238: Total Cost ($) | AA238: 4.5-5.5yr | AB238: =AH237 -> 0 | AE238: =AB238*$AG$206 -> 0 | AF238: =IF(AG204=4,100%,0) -> 0 | AG238: =AB238-AE238 -> 0 | AH238: =AB238+AC238+AD238-AE238-AG238 -> 0
C239: FEEDING | E239: Number | AB239: =AB234+AB235+AB236+AB237+AB238 -> 20 | AD239: =AD234+AD235+AD236+AD237+AD238 -> 6.870727266 | AE239: =AE234+AE235+AE236+AE237+AE238 -> 0.6 | AG239: =AG234+AG235+AG236+AG237+AG238 -> 6.270727266 | AH239: =AH234+AH235+AH236+AH237+AH238 -> 20
C240: Ewes | E240: ='Prime Lambs Maternal Input'!E63 -> 1000 | G240: ='Prime Lambs Maternal Input'!F63 -> 160 | I240: ='Prime Lambs Maternal Input'!G63 -> 2.5 | K240: ='Prime Lambs Maternal Input'!H63 -> 8 | M240: =(E240*G240*I240*K240)/1000 -> 3200 | AA240: d.s.e's | AB240: =AB239*AE49 -> 40
C241: Rams | E241: ='Prime Lambs Maternal Input'!E64 -> 20 | G241: ='Prime Lambs Maternal Input'!F64 -> 160 | I241: ='Prime Lambs Maternal Input'!G64 -> 2.5 | K241: ='Prime Lambs Maternal Input'!H64 -> 8 | M241: =(E241*G241*I241*K241)/1000 -> 64
C242: Lambs | E242: ='Prime Lambs Maternal Input'!E65 -> 0 | G242: ='Prime Lambs Maternal Input'!F65 -> 0 | I242: ='Prime Lambs Maternal Input'!G65 -> 0 | K242: ='Prime Lambs Maternal Input'!H65 -> 0 | M242: =(E242*G242*I242*K242)/1000 -> 0
G243: Grain Cost ($/T) | I243: Kg Fed per Week | K243: No of Weeks Feeding | M243: Total Cost ($)
E244: Number
C245: Ewes | E245: ='Prime Lambs Maternal Input'!E70 -> 1000 | G245: ='Prime Lambs Maternal Input'!F70 -> 300 | I245: ='Prime Lambs Maternal Input'!G70 -> 3 | K245: ='Prime Lambs Maternal Input'!H70 -> 8 | M245: =(E245*G245*I245*K245)/1000 -> 7200
C246: Rams | E246: ='Prime Lambs Maternal Input'!E71 -> 20 | G246: ='Prime Lambs Maternal Input'!F71 -> 300 | I246: ='Prime Lambs Maternal Input'!G71 -> 3 | K246: ='Prime Lambs Maternal Input'!H71 -> 10 | M246: =(E246*G246*I246*K246)/1000 -> 180
C247: Lambs | E247: ='Prime Lambs Maternal Input'!E72 -> 0 | G247: ='Prime Lambs Maternal Input'!F72 -> 0 | I247: ='Prime Lambs Maternal Input'!G72 -> 0 | K247: ='Prime Lambs Maternal Input'!H72 -> 0 | M247: =(E247*G247*I247*K247)/1000 -> 0
C248: TOTAL FEED COST | M248: =SUM(M240:M242,M245:M247) -> 10644
C251: GM SENSITIVITY
C252: Gross Margin/DSE | E252: Average Weaning Rate
G253: 1.1 | I253: 1.2 | K253: 1.3 | M253: 1.4 | O253: 1.5 | Q253: 1.6
E254: 183.4 | G254: =($E$199*G$253*$E254*(1-$K$124)+SUM($K$209:$K$210)+$K$235-$AK$57-$E$199*G$253*$AO$52)/$E$197 -> 58.17998198 | I254: =($E$199*I$253*$E254*(1-$K$124)+SUM($K$209:$K$210)+$K$235-$AK$57-$E$199*I$253*$AO$52)/$E$197 -> 67.0270472 | K254: =($E$199*K$253*$E254*(1-$K$124)+SUM($K$209:$K$210)+$K$235-$AK$57-$E$199*K$253*$AO$52)/$E$197 -> 75.87411241 | M254: =($E$199*M$253*$E254*(1-$K$124)+SUM($K$209:$K$210)+$K$235-$AK$57-$E$199*M$253*$AO$52)/$E$197 -> 84.72117763 | O254: =($E$199*O$253*$E254*(1-$K$124)+SUM($K$209:$K$210)+$K$235-$AK$57-$E$199*O$253*$AO$52)/$E$197 -> 93.56824285 | Q254: =($E$199*Q$253*$E254*(1-$K$124)+SUM($K$209:$K$210)+$K$235-$AK$57-$E$199*Q$253*$AO$52)/$E$197 -> 102.4153081
E255: 188.4 | G255: 61.00471024 | I255: 70.10856894 | K255: 79.21242763 | M255: 88.31628633 | O255: 97.42014502 | Q255: 106.5240037
C256: Average Lamb Sale Price($/hd) | E256: 193.4 | G256: 63.8294385 | I256: 73.19009067 | K256: 82.55074285 | M256: 91.91139502 | O256: 101.2720472 | Q256: 110.6326994
E257: 198.4 | G257: 66.65416676 | I257: 76.27161241 | K257: 85.88905807 | M257: 95.50650372 | O257: 105.1239494 | Q257: 114.741395
E258: 203.4 | G258: 69.47889502 | I258: 79.35313415 | K258: 89.22737328 | M258: 99.10161241 | O258: 108.9758515 | Q258: 118.8500907
E259: 208.4 | G259: 72.30362328 | I259: 82.43465589 | K259: 92.5656885 | M259: 102.6967211 | O259: 112.8277537 | Q259: 122.9587863
E260: 213.4 | G260: 75.12835154 | I260: 85.51617763 | K260: 95.90400372 | M260: 106.2918298 | O260: 116.6796559 | Q260: 127.067482
E261: 218.4 | G261: 77.95307981 | I261: 88.59769937 | K261: 99.24231894 | M261: 109.8869385 | O261: 120.5315581 | Q261: 131.1761776
E262: 223.4 | G262: 80.77780807 | I262: 91.67922111 | K262: 102.5806342 | M262: 113.4820472 | O262: 124.3834602 | Q262: 135.2848733
E263: 228.4 | G263: 83.60253633 | I263: 94.76074285 | K263: 105.9189494 | M263: 117.0771559 | O263: 128.2353624 | Q263: 139.3935689
E264: 233.4 | G264: 86.42726459 | I264: 97.84226459 | K264: 109.2572646 | M264: 120.6722646 | O264: 132.0872646 | Q264: 143.5022646

Sheet Prime Lambs Merino Ewes Input (hidden)
C1: Prime Lambs Merino Ewes
C2: =UPPER(var_animal)&" GROSS MARGIN - "&TEXT(m_year,"0000") -> PRIME LAMBS MERINO EWES GROSS MARGIN - 2022
C4: GENERAL INFORMATION
C5: This represents a Merino Ewe enterprise mated to a terminal sire. All ewe replacements are purchased, but age of replacements can be varied from 1.5 years to 4.5 years. NB. Can be bought from own self-replacing merino enterprise. Following are the various assumptions used in the calculation of the Gross Margin. Cells with yellow highlight can be changed. No allowance has been made for pasture expenses such as seed, fertiliser and chemicals. Refer to pasture gross margins in the “Cropping Gross Margin Plan” for annual and perennial pasture costs. Use the livestock gross margin per DSE as income for the pasture gross margin.
C7: Ewes mated | E7: 1000 | H7: ="Estimated "&TEXT(m_year,"0000")&" Sheep Sale Prices" -> Estimated 2022 Sheep Sale Prices
C8: Age ewes purchased | E8: 1.5 | I8: Agricultural | J8: Pastoral
C9: Age ewes sold | E9: 5.5 | H9: Store lambs 35kg lwt | I9: 155 | J9: 145
C10: Av Weaning % | E10: 1.1 | H10: Wether lambs 55 kg lwt | I10: 200 | J10: 190
C11: Ram percentage | E11: 0.025 | H11: Cast for age ewes | I11: 170 | J11: 150
C12: Years Rams Kept | E12: 3 | H12: Cast for age rams | I12: 140 | J12: 120
C13: Flock death Rate | E13: 0.03
C14: % Lambs carried over | E14: 0
C17: LIVESTOCK SALES | E17: Price/Hd | F17: Number | G17: Total
C18: c.f.a Ewes | E18: 170 | F18: ='Prime Lambs Merino Ewes'!AG220 -> 231.53548 | G18: =E18*ROUND(F18,0) -> 39440
C19: c.f.a Rams | E19: 120 | F19: ='Prime Lambs Merino Ewes'!AG238 -> 7.838409083 | G19: =E19*ROUND(F19,0) -> 960
C20: Lambs | E20: 190 | F20: ='Prime Lambs Merino Ewes'!AG227 -> 1100 | G20: =E20*ROUND(F20,0) -> 209000
C25: TOTAL SALES | F25: =SUM(F18:F23) -> 1339.373889 | G25: =SUM(G18:G23) -> 249400
C28: LIVESTOCK PURCHASES | E28: Price/Hd | F28: Number | G28: Total
C29: Ewes | E29: 250 | F29: ='Prime Lambs Merino Ewes'!AD220 -> 261.53548 | G29: =E29*F29 -> 65383.87001 | H29: Change Ewe price depending on
C30: Rams | E30: 1500 | F30: ='Prime Lambs Merino Ewes'!AD238 -> 8.588409083 | G30: =E30*F30 -> 12882.61362 | H30: age purchased.
C32: TOTAL PURCHASES | F32: =SUM(F29:F30) -> 270.1238891 | G32: =SUM(G29:G30) -> 78266.48363
C35: WOOL PRICE (cents/kg) | F35: =TEXT(m_year-3,"0000")&" Average (Clean)" -> 2019 Average (Clean) | G35: =TEXT(m_year-2,"0000")&" Average (Clean)" -> 2020 Average (Clean) | H35: =TEXT(m_year-1,"0000")&" Average (Clean)" -> 2021 Average (Clean) | I35: Budget Base (Clean) | J35: Budget Base (Greasy) | L35: Wool Type | M35: Estimated Clean Price
E36: Wool- Med Rainfall 21 mic 68% yield | F36: 1995 | G36: 1319 | H36: 1271 | I36: 1200 | J36: =I36*I37 -> 816 | L36: 19 mic | M36: 1500
E37: Estimated wool yield | I37: 0.68 | L37: 21 mic | M37: 1200
C38: Allow 90% to account for lower value of bellies, skirtings etc. | J38: =J36*0.9 -> 734.4 | L38: 22 mic | M38: 1150
C42: WOOL SALES - SHEARING | F42: Wool Cut
E43: Number | F43: kg/hd | G43: Price | H43: Total
C44: Ewes | E44: ='Prime Lambs Merino Ewes'!E226 -> 970 | F44: 6.5 | G44: =J36/100 -> 8.16 | H44: =E44*F44*G44 -> 51448.8
C45: Crossbred Rams | E45: ='Prime Lambs Merino Ewes'!E227 -> 24.25 | F45: 3 | G45: 1.344 | H45: =E45*F45*G45 -> 97.776
C47: TOTAL | E47: =SUM(E44:E46) -> 994.25 | F47: =(E44*F44)+(E45*F45) -> 6377.75 | H47: =SUM(H44:H46) -> 51546.576
C50: STOCK HEALTH REQUIREMENTS | E50: =HYPERLINK("http://paraboss.com.au","for more info on drench, lice and blowfly product selection refer to www.paraboss.com.au") -> for more info on drench, lice and blowfly product selection refer to www.paraboss.com.au
G51: Number of times
E52: Number | F52: Drench | G52: Vacc. | H52: Blowfly
C53: Ewes | E53: ='Prime Lambs Merino Ewes'!E219 -> 1000 | F53: 1 | G53: 1 | H53: 1
C54: Rams | E54: ='Prime Lambs Merino Ewes'!E220 -> 25 | F54: 2 | G54: 1 | H54: 0
C55: Lambs | E55: ='Prime Lambs Merino Ewes'!E221 -> 1100 | F55: 1 | G55: 2 | H55: 0
C57: TOTAL | E57: =SUM(E53:E55) -> 2125 | F57: =SUMPRODUCT($E$53:$E$55,F53:F55) -> 2150 | G57: =SUMPRODUCT($E$53:$E$55,G53:G55) -> 3225 | H57: =SUMPRODUCT($E$53:$E$55,H53:H55) -> 1000
C60: FEEDING
C61: HAY | F61: Hay | G61: Kgs Fed | H61: No Weeks | I61: Total
E62: Number | F62: Cost ($/T) | G62: per Week | H62: of Feeding | I62: Cost ($)
C63: Ewes | E63: ='Prime Lambs Merino Ewes'!E219 -> 1000 | F63: 160 | G63: 2.5 | H63: 8 | I63: =(H63*G63*E63)/1000*F63 -> 3200
C64: Rams | E64: ='Prime Lambs Merino Ewes'!E220 -> 25 | F64: 160 | G64: 2.5 | H64: 8 | I64: =(H64*G64*E64)/1000*F64 -> 80
C65: Lambs | E65: 660 | F65: 160 | G65: 2.5 | H65: 5 | I65: =(H65*G65*E65)/1000*F65 -> 1320
C67: GRAIN | F67: Grain | G67: Kgs Fed | H67: No weeks | I67: Total
E68: Number | F68: Cost ($/T) | G68: per week | H68: of Feeding | I68: Cost ($)
C69: Ewes | E69: ='Prime Lambs Merino Ewes'!E219 -> 1000 | F69: 300 | G69: 3 | H69: 8 | I69: =(H69*G69*E69)/1000*F69 -> 7200
C70: Rams | E70: ='Prime Lambs Merino Ewes'!E220 -> 25 | F70: 300 | G70: 3 | H70: 10 | I70: =(H70*G70*E70)/1000*F70 -> 225
C71: Lambs | E71: 660 | F71: 300 | G71: 6 | H71: 5 | I71: =(H71*G71*E71)/1000*F71 -> 5940
H73: Total Feed Cost | I73: =SUM(I63:I65,I69:I71) -> 17965

Sheet Prime Lambs Merino Ewes (hidden)
C1: Prime Lambs Merino Ewes
C2: =UPPER(Var_Animal)&" GROSS MARGIN - "&TEXT(m_year,"0000") -> PRIME LAMBS MERINO EWES GROSS MARGIN - 2022
C4: ASSUMPTIONS
C6: Ave Breeding Ewe Fibre Diameter | E6: 21 | O6: Total DSE's | Q6: =E197 -> 1850
C7: No. of breeding ewes (1st Cross) | E7: ='Prime Lambs Merino Ewes Input'!$E$7 -> 1000
C8: 1st cross ewe - Terminal meat sire
C32: INCOME | Q32: $
C34: Wool (kg greasy) | E34: =G234 -> 6377.75 | G34: kg | I34: av price | K34: =K234*100/G234*0.9 -> 727.4025856 | M34: c/kg | Q34: =K234 -> 51546.576
C35: Sales | E35: =E212 -> 1339.373889 | G35: animals | I35: av price | K35: =G212 -> 186.1329706 | M35: /head | Q35: =K212 -> 249400
C37: Gross Income | Q37: =SUM(Q34:Q35) -> 300946.576
AA45: STOCK VALUE AND D.S.E REQUIREMENT | AG45: Non lamb related expenses | AM45: Lamb Costs | AN45: No: | AO45: per head | AS45: SHEEP GROSS MARGIN
C46: VARIABLE COSTS | AC46: Value | AD46: Ave Live | AE46: DSE | AS46: PRIME LAMB -
C47: Shearing | K47: Rate | AB47: Number | AC47: $/head | AD47: Wt (Kgs) | AE47: rating | AG47: Shearing | AJ47: =SUM(Q48:Q58) -> 9689.210422 | AM47: Marking | AN47: =$E$121 -> 1100 | AO47: =K76+K77 -> 1.55 | AP47: =AN47*AO47 -> 1705
C48: Shearing | E48: =E226 -> 970 | G48: sheep | I48: Reset Rate> | J48: =GM_INFO!C79 | K48: =GM_INFO!C79 -> 331.98 | M48: /100 | Q48: =K48/100*ROUND(E48,0) -> 3220.206 | AA48: ewes | AB48: ='Prime Lambs Merino Ewes Input'!$E$7 -> 1000 | AC48: =(G209+G214)/2 -> 210 | AD48: 55 | AE48: =IF(AND(AD48>=55,AD48<60),1.8,IF(AND(AD48>=60,AD48<65),2.5,IF(AND(AD48>=65,AD48<70),1.9,IF(AND(AD48>=70,AD48<75),2,IF(AND(AD48>=75,AD48<80),2.1,IF(AND(AD48>=80,AD48<85),2.2,IF(AND(AD48>=85,AD48<90),2.3,IF(AD48>=90,2.4,0)))))))) -> 1.8 | AG48: Animal health | AJ48: =(E219*G219+E220*G220)*K90+(E219*I219+E220*I220)*K91+(E219*K219)*K92 -> 2300.6 | AM48: Animal health | AN48: =$E$121 -> 1100 | AO48: =G220*K91+I220*K90 -> 1.112 | AP48: =AN48*AO48 -> 1223.2
C49: (Federal awards) | E49: =E227 -> 24.25 | G49: rams | I49: Reset Rate> | J49: =GM_INFO!C80 | K49: =GM_INFO!C80 -> 663.96 | M49: /100 | Q49: =K49/100*ROUND(E49,0) -> 159.3504 | AA49: rams | AB49: ='Prime Lambs Merino Ewes Input'!E11*'Prime Lambs Merino Ewes'!AB48 -> 25 | AC49: =(G210+G215)/2 -> 810 | AD49: 100 | AE49: 2 | AG49: Stock Purchase | AJ49: =SUM(Q105:Q105) -> 78266.48363 | AM49: Freight | AN49: =$E$121 -> 1100 | AO49: =K121 -> 4 | AP49: =AN49*AO49 -> 4400
C50: Shed labour | E50: 5 | G50: days | I50: Reset Rate> | J50: =GM_INFO!C81 | K50: =GM_INFO!C81 -> 250.95 | M50: /day | Q50: =K50*ROUND(E50,0) -> 1254.75 | AA50: lambs | AB50: =AC227 -> 1100 | AC50: =G211/2 -> 95 | AD50: 35 | AE50: 0 | AG50: Freight | AH50: sheep | AJ50: =SUM(Q119:Q120) -> 2002.14192 | AM50: Yard Fees | AN50: =$E$121 -> 1100 | AO50: =K125 -> 0.85 | AP50: =AN50*AO50 -> 935
C51: Woolclasser | E51: 2.5 | G51: days | I51: Reset Rate> | J51: =GM_INFO!C82 | K51: =GM_INFO!C82 -> 319.91 | M51: /day | Q51: =K51*E51 -> 799.775 | AA51: TOTAL | AB51: =SUM(AB48:AB50) -> 2125 | AC51: =AB48*AC48+AB49*AC49+AB50*AC50/2 -> 282500 | AH51: Wool | AJ51: =Q122 -> 570 | AM51: Levies | AN51: =$E$121 -> 1100 | AO51: =K127+K128 -> 2.17 | AP51: =AN51*AO51 -> 2387 | AS51: Ewes mated | AU51: ='Prime Lambs Merino Ewes Input'!$E$7 -> 1000 | AX51: Ram % | AY51: =E200 -> 0.025
C52: Superannuation (on ord wages only) | I52: Reset Rate> | J52: =GM_INFO!C83 | K52: =GM_INFO!C83 -> 0.1 | M52: wages | Q52: =(Q48+Q49+Q50+Q51)*K52 -> 543.40814 | AG52: Commission on livestock sales | AJ52: =(K209+K210)*K124 -> 2222 | AO52: =SUM(AO47:AO51) -> 9.682 | AQ52: =AO52*AD50 -> 338.87 | AS52: Age ewes purchased | AU52: =E201 -> 1.5 | AX52: Price of rams | AY52: =AL68 -> 0
C53: W/Cover (incl. super + otime etc) | I53: Reset Rate> | J53: =GM_INFO!C84 | K53: =GM_INFO!C84 -> 0.04 | M53: total | Q53: =(Q48+Q49+Q50+Q51+Q52)*K53 -> 239.0995816 | AG53: Yard fees | AJ53: =E119*K125 -> 203.4678057 | AM53: Commission | AN53: =$E$121 -> 1100 | AO53: =G212 -> 186.1329706 | AP53: =K124 -> 0.055 | AQ53: =AD50*AO53*AP53 -> 358.3059684 | AS53: Age ewes sold | AU53: =E202 -> 5.5 | AX53: Years rams kept | AY53: =E203 -> 3
C54: Wool packs | E54: =E122 -> 37.51617647 | G54: packs | I54: Reset Rate> | J54: =GM_INFO!C77 | K54: =GM_INFO!C77 -> 16 | M54: /pack | Q54: =K54*ROUND(E54,0) -> 608 | AG54: Levies | AJ54: =E126*(K126+K128) -> 208.2552835 | AS54: Av Weaning % | AU54: ='Prime Lambs Merino Ewes Input'!E10 -> 1.1 | AX54: Age wethers sold | AY54: 0.5
C55: Shed sundries | E55: =E48+E49 -> 994.25 | G55: sheep | I55: Reset Rate> | J55: =GM_INFO!C85 | K55: =GM_INFO!C85 -> 0.2 | M55: /head | Q55: =K55*ROUND(E55,0) -> 198.8 | AG55: Wool Selling Charges | AJ55: =Q130+Q131 -> 2495.19114 | AQ55: =SUM(AQ43:AQ53) -> 697.1759684 | AS55: dse/ewe | AU55: =AE48 -> 1.8 | AX55: Flock death rate | AY55: =E204 -> 0.03
C56: Lice control | E56: =E48+E49 -> 994.25 | G56: sheep | I56: Reset Rate> | J56: =GM_INFO!C66 | K56: =GM_INFO!C66 -> 1.695 | M56: /head | Q56: =K56*ROUND(E56,0) -> 1684.83 | AG56: Feed & other costs | AJ56: =SUM(Q144:Q149) -> 19040
C57: Crutch & Wig | E57: =E48+2*E49 -> 1018.5 | G57: ewes | I57: Reset Rate> | J57: =GM_INFO!C87 | K57: =GM_INFO!C87 -> 96.27 | M57: /100 | Q57: =K57/100*ROUND(E57,0) -> 980.9913 | AK57: =SUM(AJ47:AJ56) -> 116997.3502
E58: 0 | G58: lambs | I58: Reset Rate> | J58: =GM_INFO!C87 | K58: =GM_INFO!C87 -> 96.27 | M58: /100 | Q58: =K58/100*ROUND(E58,0) -> 0
AS60: EWES | AT60: OPENING | AU60: NATURAL | AV60: PURCHASES | AW60: DEATHS | AX60: % sold | AY60: SALES | AZ60: CLOSING
AS61: AGE | AT61: NUMBERS | AU61: INCREASE | AX61: culled | AZ61: NUMBERS
AS63: 0.5-1.5yr | AV63: =IF($N$78=1.5,AT64,AT63-AW63) -> 0 | AY63: =AT63-AW63 -> 0 | AZ63: =AT63+AU63+AV63-AW63-AY63 -> 0
AS64: 1.5-2.5yr | AT64: =IF(AU52=1.5,AU51/(1+(1-AY55)*(1-AX64)*(1+(1-AY55)*(1-AX65)*(1+(1-AY55)*(1-AX66)*(1+(1-AY55)*(1-AX67))))),0) -> 261.53548 | AV64: =IF(AU52=2.5,AT65-AY64,0) -> 0 | AW64: =AT64*$R$81 -> 0 | AY64: =(AT64-AW64)*AX64 -> 0 | AZ64: 261.53548
AS65: 2.5-3.5yr | AT65: =IF(AU52=2.5,AU51/(1+(1-AY55)*(1-AX65)*(1+(1-AY55)*(1-AX66)*(1+(1-AY55)*(1-AX67)))),AZ64) -> 261.53548 | AV65: =IF(AU52=3.5,AT66-AY65,0) -> 0 | AW65: =AT65*$R$81 -> 0 | AY65: =(AT65-AW65)*AX65 -> 0 | AZ65: 261.53548
AS66: 3.5-4.5yr | AT66: =IF(AU52=3.5,AU51/(1+(1-AY55)*(1-AX66)*(1+(1-AY55)*(1-AX67))),AZ65) -> 261.53548 | AV66: =IF(AU52=4.5,AT67-AY66,0) -> 0 | AW66: =AT66*$R$81 -> 0 | AY66: =(AT66-AW66)*AX66 -> 0 | AZ66: 261.53548
AS67: 4.5-5.5yr | AT67: =IF(AU52=4.5,AU51/(1+(1-AY55)*(1-AX67)),AZ66) -> 261.53548 | AW67: =AT67*$R$81 -> 0 | AX67: =IF(AU53=5.5,1,0) -> 1 | AY67: =(AT67-AW67)*AX67 -> 261.53548 | AZ67: 0
AS68: 5.5-6.5yr | AT68: =AZ67 -> 0 | AW68: =AT68*$R$81 -> 0 | AX68: =IF(AU53=6.5,1,0) -> 0 | AY68: =(AT68-AW68)*AX68 -> 0 | AZ68: 0
AS69: Ewes | AT69: =SUM(AT64:AT68) -> 1046.14192 | AV69: =AV63+AV64+AV65+AV66 -> 0 | AW69: =SUM(AW63:AW68) -> 0 | AY69: =SUM(AY64:AY68) -> 261.53548 | AZ69: =SUM(AZ63:AZ67) -> 784.6064401
AS70: d.s.e's | AT70: =AT63+AT69*AU55 -> 1883.055456
AS73: LAMBS | AT73: OPENING | AU73: NATURAL | AV73: PURCHASES | AW73: DEATHS | AX73: % sold | AY73: SALES | AZ73: CLOSING
AS74: AGE | AT74: NUMBERS | AU74: INCREASE | AX74: culled | AZ74: NUMBERS
C75: Marking
C76: Lamb marking | E76: =AC227 -> 1100 | G76: lambs | I76: Reset Rate> | J76: =GM_INFO!C91 | K76: =GM_INFO!C91 -> 1.25 | M76: /head | Q76: =K76*ROUND(E76,0) -> 1375 | AS76: 0-0.5yr | AU76: =AU51*AU54 -> 1100 | AX76: 1 | AY76: =AU76*AX76 -> 1100 | AZ76: =AT76+AU76+AV76-AW76-AY76 -> 0
C77: Ear tags | E77: =AC227 -> 1100 | G77: lambs | I77: Reset Rate> | J77: =GM_INFO!C92 | K77: =GM_INFO!C92 -> 0.3 | M77: /head | Q77: =K77*ROUND(E77,0) -> 330
C78: Pain Relief | E78: =AC227 -> 1100 | G78: lambs | I78: Reset Rate> | J78: =GM_INFO!C93 | K78: =GM_INFO!C93 -> 1.392 | M78: /head | Q78: =K78*ROUND(E78,0) -> 1531.2
AS79: RAMS | AT79: OPENING | AU79: NATURAL | AV79: PURCHASES | AW79: DEATHS | AX79: % sold | AY79: SALES | AZ79: CLOSING
AS80: AGE | AT80: NUMBERS | AU80: INCREASE | AX80: culled | AZ80: NUMBERS
AS82: 0.5-1.5yr | AV82: =AT83/(1-AX82) -> 8.588409083 | AW82: =AT82*$R$81 -> 0 | AZ82: =AT82+AU82+AV82-AW82-AY82 -> 8.588409083
AS83: 1.5-2.5yr | AT83: =IF(AY53=3,(AU51*AY51)/(1+(1-AY55)*(1-AX83)*(1+(1-AY55)*(1-AX84)*(1+(1-AY55)*(1-AX85)))),IF(AY53=4,(AU51*AY51)/(1+(1-AY55)*(1-AX83)*(1+(1-AY55)*(1-AX84)*(1+(1-AY55)*(1-AX85)*(1+(1-AY55)*(1-AX86))))),0)) -> 8.588409083 | AW83: =AT83*$R$81 -> 0 | AZ83: =AT83+AU83+AV83-AW83-AY83 -> 8.588409083
AS84: 2.5-3.5yr | AT84: =AZ83 -> 8.588409083 | AW84: =AT84*$R$81 -> 0 | AZ84: =AT84+AU84+AV84-AW84-AY84 -> 8.588409083
AS85: 3.5-4.5yr | AT85: =AZ84 -> 8.588409083 | AW85: =AT85*$R$81 -> 0 | AX85: =IF(AY53=3,100%,0) -> 1 | AY85: =(AT85-AW85)*AX85 -> 8.588409083 | AZ85: =AT85+AU85+AV85-AW85-AY85 -> 0
AS86: 4.5-5.5yr | AT86: =AZ85 -> 0 | AW86: =AT86*$R$81 -> 0 | AX86: =IF(AY53=4,100%,0) -> 0 | AY86: =AT86-AW86 -> 0 | AZ86: =AT86+AU86+AV86-AW86-AY86 -> 0
AT87: =AT82+AT83+AT84+AT85+AT86 -> 25.76522725 | AV87: =AV82+AV83+AV84+AV85+AV86 -> 8.588409083 | AW87: =AW82+AW83+AW84+AW85+AW86 -> 0 | AY87: =AY82+AY83+AY84+AY85+AY86 -> 8.588409083 | AZ87: =AZ82+AZ83+AZ84+AZ85+AZ86 -> 25.76522725
AS88: d.s.e's | AT88: =AT87*AE49 -> 51.5304545
C89: Animal Health
C90: Drench | E90: =G222 -> 2150 | G90: sheep | I90: Reset Rate> | J90: =GM_INFO!C69 | K90: =GM_INFO!C69 -> 0.552 | M90: /head | Q90: =K90*ROUND(E90,0) -> 1186.8
C91: Vaccinate | E91: =I222 -> 3225 | G91: sheep | I91: Reset Rate> | J91: =GM_INFO!C72 | K91: =GM_INFO!C72 -> 0.28 | M91: /head | Q91: =K91*ROUND(E91,0) -> 903
C92: Blowfly control | E92: =K222 -> 1000 | G92: sheep | I92: Reset Rate> | J92: =GM_INFO!C76 | K92: =GM_INFO!C76 -> 1.434 | M92: /head | Q92: =K92*ROUND(E92,0) -> 1434
C104: Stock purchases
C105: Purchases | Q105: =K214+K215 -> 78266.48363
C117: Sale Costs
C118: Freight
C119: Livestock | E119: =SUM(E209:E210) -> 239.3738891 | G119: culls | I119: Reset Rate> | J119: =GM_INFO!B161 | K119: =GM_INFO!B161 -> 4 | M119: /head | Q119: =K119*ROUND(E119,0) -> 956
E120: =E214 -> 261.53548 | G120: ewes | I120: Reset Rate> | J120: =GM_INFO!B162 | K120: =GM_INFO!B162 -> 4 | M120: /head | Q120: =K120*E120 -> 1046.14192
E121: =E211 -> 1100 | G121: prime lambs | I121: Reset Rate> | J121: =GM_INFO!B163 | K121: =GM_INFO!B163 -> 4 | M121: /head | Q121: =K121*ROUND(E121,0) -> 4400
C122: Wool | E122: =G234/170 -> 37.51617647 | G122: bales | I122: Reset Rate> | J122: =GM_INFO!B164 | K122: =GM_INFO!B164 -> 15 | M122: /bale | Q122: =K122*ROUND(E122,0) -> 570
C123: Stock selling charges
C124: Commission/insurance | I124: Reset Rate> | J124: =GM_INFO!C98 | K124: =GM_INFO!C98 -> 0.055 | M124: gross $ | Q124: =K124*Q35 -> 13717
C125: Yard fees | E125: =E212 -> 1339.373889 | G125: sheep | I125: Reset Rate> | J125: =GM_INFO!C99 | K125: =GM_INFO!C99 -> 0.85 | M125: /head | Q125: =K125*ROUND(E125,0) -> 1138.15
C126: Levy-sheep | E126: =E119 -> 239.3738891 | G126: sheep | I126: Reset Rate> | J126: =GM_INFO!C100 | K126: =GM_INFO!C100 -> 0.2 | M126: /head | Q126: =K126*ROUND(E126,0) -> 47.8
C127: Levy-lambs | E127: =E211 -> 1100 | G127: sheep | I127: Reset Rate> | J127: =GM_INFO!C101 | K127: =GM_INFO!C101 -> 1.5 | M127: /head | Q127: =K127*ROUND(E127,0) -> 1650
C128: SA sheep industry levy | E128: =E212 -> 1339.373889 | G128: sheep | I128: Reset Rate> | J128: =GM_INFO!C102 | K128: =GM_INFO!C102 -> 0.67 | M128: /head | Q128: =K128*ROUND(E128,0) -> 897.13
C129: Wool selling charges
C130: Brokerage/testing/insurance | I130: Reset Rate> | J130: =GM_INFO!C103 | K130: =GM_INFO!C103 -> 0.27 | M130: /kg | Q130: =K130*E34 -> 1721.9925
C131: Wool levy | I131: Reset Rate> | J131: =GM_INFO!C104 | K131: =GM_INFO!C104 -> 0.015 | M131: gross | Q131: =K131*Q34 -> 773.19864
C143: Feed and Other Costs
C144: Hay | Q144: =SUM('Prime Lambs Merino Ewes Input'!I63:I64) -> 3280
C145: Grain | Q145: =SUM('Prime Lambs Merino Ewes Input'!I69:I70) -> 7425
C146: Insurance | E146: =AC51 -> 282500 | G146: value | I146: Reset Rate> | J146: =GM_INFO!B157 | K146: =GM_INFO!B157 -> 2 | M146: /$'000 | Q146: =K146/1000*E146 -> 565
C147: Water | E147: =$Q$6 -> 1850 | G147: DSE's | I147: Reset Rate> | J147: =GM_INFO!E129 | K147: =GM_INFO!E129 -> 2.5 | M147: /DSE's | Q147: =K147*E147 -> 4625
C148: Veh Fuel, R&M | E148: =$Q$6 -> 1850 | G148: DSE's | I148: Reset Rate> | J148: =GM_INFO!E130 | K148: =GM_INFO!E130 -> 1.2 | M148: /DSE's | Q148: =K148*E148 -> 2220
C149: Other | E149: =$Q$6 -> 1850 | G149: DSE's | I149: Reset Rate> | J149: =GM_INFO!E131 | K149: =GM_INFO!E131 -> 0.5 | M149: /DSE's | Q149: =K149*E149 -> 925
C170: TOTAL VARIABLE COSTS | Q170: =SUM(Q48:Q166) -> 140673.1071
C172: GROSS MARGIN TOTAL | Q172: =Q37-Q170 -> 160273.4689
C174: GROSS MARGIN/DSE | Q174: =Q172/Q6 -> 86.63430751
C194: PRODUCTION DATA
C196: Stocking rate (DSE/Ha) | E196: 6 | K196: Culling Rate (% from each group) | AA196: SHEEP GROSS MARGIN
C197: Total DSE's | E197: =SUMPRODUCT(AB48:AB50,AE48:AE50) -> 1850 | K197: Age Group | M197: Ewes | O197: Wethers | AA197: PRIME LAMB -
C198: SHEEP GRAZING AREA | E198: =E197/E196 -> 308.3333333 | K198: 0.5 | M198: =AF214 -> 0
C199: Number of ewes mated | E199: ='Prime Lambs Merino Ewes Input'!E7 -> 1000 | K199: 1.5 | M199: 0
C200: Ram percentage | E200: ='Prime Lambs Merino Ewes Input'!E11 -> 0.025 | K200: 2.5 | M200: 0
C201: Age ewes bought (yrs) | E201: ='Prime Lambs Merino Ewes Input'!E8 -> 1.5 | K201: 3.5 | M201: 0
C202: Age ewes culled | E202: ='Prime Lambs Merino Ewes Input'!E9 -> 5.5 | K202: 4.5 | M202: 1 | AA202: Ewes mated | AC202: ='Prime Lambs Merino Ewes Input'!E7 -> 1000 | AF202: Ram % | AG202: =E200 -> 0.025
B203: =VLOOKUP(r[0]c3&"No Ops",CHOOSE({1,2},tbl_ops[Name]&tbl_ops[Category],INDIRECT("tbl_ops["&var_crop&"]")),2,0) | C203: Years rams kept | E203: ='Prime Lambs Merino Ewes Input'!E12 -> 3 | K203: 5.5 | M203: 0 | AA203: Age ewes purchased | AC203: =E201 -> 1.5 | AF203: Price of rams | AG203: =G215 -> 1500
B204: =VLOOKUP(r[0]c3&"No Ops",CHOOSE({1,2},tbl_ops[Name]&tbl_ops[Category],INDIRECT("tbl_ops["&var_crop&"]")),2,0) | C204: Flock death rate | E204: ='Prime Lambs Merino Ewes Input'!E13 -> 0.03 | K204: 6.5 | M204: 0 | AA204: Age ewes sold | AC204: =E202 -> 5.5 | AF204: Years rams kept | AG204: =E203 -> 3
B205: =VLOOKUP(r[0]c3&"No Ops",CHOOSE({1,2},tbl_ops[Name]&tbl_ops[Category],INDIRECT("tbl_ops["&var_crop&"]")),2,0) | C205: Average weaning rate | E205: =AC205 -> 1.1 | AA205: Av Weaning % | AC205: ='Prime Lambs Merino Ewes Input'!E10 -> 1.1 | AF205: Age wethers sold | AG205: 0.5
B206: =VLOOKUP(r[0]c3&"No Ops",CHOOSE({1,2},tbl_ops[Name]&tbl_ops[Category],INDIRECT("tbl_ops["&var_crop&"]")),2,0) | C206: % Lambs carried over | E206: 0 | AA206: dse/ewe | AC206: =AE48 -> 1.8 | AF206: Flock death rate | AG206: =E204 -> 0.03
B207: =VLOOKUP(r[0]c3&var_rain,CHOOSE({1,2},tbl_ops[Name]&tbl_ops[Rainfall],INDIRECT("tbl_ops["&var_crop&"]")),2,0)
B208: =VLOOKUP(r[0]c3&var_rain,CHOOSE({1,2},tbl_ops[Name]&tbl_ops[Rainfall],INDIRECT("tbl_ops["&var_crop&"]")),2,0) | C208: SALES | E208: Number | G208: Price/hd | I208: Age | K208: Total
B209: =VLOOKUP(r[0]c3&var_rain,CHOOSE({1,2},tbl_ops[Name]&tbl_ops[Rainfall],INDIRECT("tbl_ops["&var_crop&"]")),2,0) | C209: c.f.a ewes | E209: =AG220 -> 231.53548 | G209: ='Prime Lambs Merino Ewes Input'!E18 -> 170 | I209: =E202 -> 5.5 | K209: =ROUND(E209,0)*G209 -> 39440
B210: =VLOOKUP(r[0]c3&var_rain,CHOOSE({1,2},tbl_ops[Name]&tbl_ops[Rainfall],INDIRECT("tbl_ops["&var_crop&"]")),2,0) | C210: c.f.a rams | E210: =AG238 -> 7.838409083 | G210: ='Prime Lambs Merino Ewes Input'!E19 -> 120 | I210: =E203+1.5 -> 4.5 | K210: =ROUND(E210,0)*G210 -> 960
C211: Lambs | E211: =AG227 -> 1100 | G211: ='Prime Lambs Merino Ewes Input'!E20 -> 190 | I211: 20 Weeks | K211: =ROUND(E211,0)*G211 -> 209000 | AA211: EWES | AB211: OPENING | AC211: NATURAL | AD211: PURCHASES | AE211: DEATHS | AF211: % sold | AG211: SALES | AH211: CLOSING
C212: TOTAL | E212: =SUM(E209:E211) -> 1339.373889 | G212: =SUMPRODUCT(E209:E211,G209:G211)/E212 -> 186.1329706 | K212: =SUM(K209:K211) -> 249400 | AA212: AGE | AB212: NUMBERS | AC212: INCREASE | AF212: culled | AH212: NUMBERS
C213: PURCHASES | E213: Number | G213: Price/hd | I213: Age | K213: Total
C214: Ewes | E214: =AD220 -> 261.53548 | G214: ='Prime Lambs Merino Ewes Input'!E29 -> 250 | I214: =E201 -> 1.5 | K214: =E214*G214 -> 65383.87001 | AA214: 0.5-1.5yr | AD214: =IF(AC203=1.5,AB215,AB214-AE214) -> 261.53548 | AG214: =AB214-AE214 -> 0 | AH214: =AB214+AC214+AD214-AE214-AG214 -> 261.53548
C215: Rams | E215: =AD238 -> 8.588409083 | G215: ='Prime Lambs Merino Ewes Input'!E30 -> 1500 | I215: 1.5 | K215: =E215*G215 -> 12882.61362 | AA215: 1.5-2.5yr | AB215: =IF(AC203=1.5,AC202/(1+(1-AG206)*(1-AF215)*(1+(1-AG206)*(1-AF216)*(1+(1-AG206)*(1-AF217)*(1+(1-AG206)*(1-AF218))))),0) -> 261.53548 | AD215: =IF(AC203=2.5,AB216-AG215,0) -> 0 | AE215: =AB215*$AG$206 -> 7.846064401 | AG215: =(AB215-AE215)*AF215 -> 0 | AH215: 253.6894156
AA216: 2.5-3.5yr | AB216: =IF(AC203=2.5,AC202/(1+(1-AG206)*(1-AF216)*(1+(1-AG206)*(1-AF217)*(1+(1-AG206)*(1-AF218)))),AH215) -> 253.6894156 | AD216: =IF(AC203=3.5,AB217-AG216,0) -> 0 | AE216: =AB216*$AG$206 -> 7.610682469 | AG216: =(AB216-AE216)*AF216 -> 0 | AH216: 246.0787332
E217: Number of Times | AA217: 3.5-4.5yr | AB217: =IF(AC203=3.5,AC202/(1+(1-AG206)*(1-AF217)*(1+(1-AG206)*(1-AF218))),AH216) -> 246.0787332 | AD217: =IF(AC203=4.5,AB218-AG217,0) -> 0 | AE217: =AB217*$AG$206 -> 7.382361995 | AG217: =(AB217-AE217)*AF217 -> 0 | AH217: 238.6963712
C218: STOCK HEALTH REQUIREMENTS | E218: Number | G218: Drench | I218: Vacc. | K218: Blowfly | M218: DSE | AA218: 4.5-5.5yr | AB218: =IF(AC203=4.5,AC202/(1+(1-AG206)*(1-AF218)),AH217) -> 238.6963712 | AE218: =AB218*$AG$206 -> 7.160891135 | AF218: =IF(AC204=5.5,1,0) -> 1 | AG218: =(AB218-AE218)*AF218 -> 231.53548 | AH218: 0
C219: Ewes | E219: ='Prime Lambs Merino Ewes Input'!E7 -> 1000 | G219: ='Prime Lambs Merino Ewes Input'!F53 -> 1 | I219: ='Prime Lambs Merino Ewes Input'!G53 -> 1 | K219: ='Prime Lambs Merino Ewes Input'!H53 -> 1 | M219: 1.8 | AA219: 5.5-6.5yr | AB219: =AH218 -> 0 | AE219: =AB219*$AG$206 -> 0 | AF219: =IF(AC204=6.5,1,0) -> 0 | AG219: =(AB219-AE219)*AF219 -> 0 | AH219: 0
C220: Rams | E220: =AB49 -> 25 | G220: ='Prime Lambs Merino Ewes Input'!F54 -> 2 | I220: ='Prime Lambs Merino Ewes Input'!G54 -> 1 | K220: ='Prime Lambs Merino Ewes Input'!H54 -> 0 | M220: 2 | AA220: Ewes | AB220: =SUM(AB215:AB219) -> 1000 | AD220: =AD214+AD215+AD216+AD217 -> 261.53548 | AE220: =SUM(AE214:AE219) -> 30 | AG220: =SUM(AG215:AG219) -> 231.53548 | AH220: =SUM(AH214:AH218) -> 1000
C221: Lambs | E221: =AC227 -> 1100 | G221: ='Prime Lambs Merino Ewes Input'!F55 -> 1 | I221: ='Prime Lambs Merino Ewes Input'!G55 -> 2 | K221: ='Prime Lambs Merino Ewes Input'!H55 -> 0 | AA221: d.s.e's | AB221: =AB214+AB220*AC206 -> 1800
C222: TOTAL | E222: =SUM(E219:E221) -> 2125 | G222: =SUMPRODUCT($E$219:$E$221,G219:G221) -> 2150 | I222: =SUMPRODUCT($E$219:$E$221,I219:I221) -> 3225 | K222: =SUMPRODUCT($E$219:$E$221,K219:K221) -> 1000 | M222: =SUMPRODUCT($E$219:$E$221,M219:M221) -> 1850
G224: Wool Cut kg/hd | AA224: LAMBS | AB224: OPENING | AC224: NATURAL | AD224: PURCHASES | AE224: DEATHS | AF224: % sold | AG224: SALES | AH224: CLOSING
C225: SHEARING | E225: Number | I225: Price | K225: Total | AA225: AGE | AB225: NUMBERS | AC225: INCREASE | AF225: culled | AH225: NUMBERS
C226: Ewes | E226: =AB220-AE220 -> 970 | G226: ='Prime Lambs Merino Ewes Input'!F44 -> 6.5 | I226: ='Prime Lambs Merino Ewes Input'!G44 -> 8.16 | K226: =I226*G226*E226 -> 51448.8
C227: Crossbred rams | E227: =AB238-AE238 -> 24.25 | G227: ='Prime Lambs Merino Ewes Input'!F45 -> 3 | I227: ='Prime Lambs Merino Ewes Input'!G45 -> 1.344 | K227: =I227*G227*E227 -> 97.776 | AA227: 0-0.5yr | AC227: =AC202*AC205 -> 1100 | AF227: 1 | AG227: =AC227*AF227 -> 1100 | AH227: =AB227+AC227+AD227-AE227-AG227 -> 0
AA230: RAMS | AB230: OPENING | AC230: NATURAL | AD230: PURCHASES | AE230: DEATHS | AF230: % sold | AG230: SALES | AH230: CLOSING
AA231: AGE | AB231: NUMBERS | AC231: INCREASE | AF231: culled | AH231: NUMBERS
AA233: 0.5-1.5yr | AD233: =AB234/(1-AF233) -> 8.588409083 | AE233: =AB233*$AG$206 -> 0 | AH233: =AB233+AC233+AD233-AE233-AG233 -> 8.588409083
C234: TOTAL | E234: =SUM(E226:E233) -> 994.25 | G234: =SUMPRODUCT(E226:E233,G226:G233) -> 6377.75 | K234: =SUM(K226:K233) -> 51546.576 | AA234: 1.5-2.5yr | AB234: =IF(AG204=3,(AC202*AG202)/(1+(1-AG206)*(1-AF234)*(1+(1-AG206)*(1-AF235)*(1+(1-AG206)*(1-AF236)))),IF(AG204=4,(AC202*AG202)/(1+(1-AG206)*(1-AF234)*(1+(1-AG206)*(1-AF235)*(1+(1-AG206)*(1-AF236)*(1+(1-AG206)*(1-AF237))))),0)) -> 8.588409083 | AE234: =AB234*$AG$206 -> 0.2576522725 | AH234: =AB234+AC234+AD234-AE234-AG234 -> 8.330756811
AA235: 2.5-3.5yr | AB235: =AH234 -> 8.330756811 | AE235: =AB235*$AG$206 -> 0.2499227043 | AH235: =AB235+AC235+AD235-AE235-AG235 -> 8.080834106
AA236: 3.5-4.5yr | AB236: =AH235 -> 8.080834106 | AE236: =AB236*$AG$206 -> 0.2424250232 | AF236: =IF(AG204=3,100%,0) -> 1 | AG236: =(AB236-AE236)*AF236 -> 7.838409083 | AH236: =AB236+AC236+AD236-AE236-AG236 -> 0
G237: Hay Cost ($/T) | I237: Kg Fed per Week | K237: No of Weeks Feeding | M237: Total Cost ($) | AA237: 4.5-5.5yr | AB237: =AH236 -> 0 | AE237: =AB237*$AG$206 -> 0 | AF237: =IF(AG204=4,100%,0) -> 0 | AG237: =AB237-AE237 -> 0 | AH237: =AB237+AC237+AD237-AE237-AG237 -> 0
C238: FEEDING | E238: Number | AB238: =AB233+AB234+AB235+AB236+AB237 -> 25 | AD238: =AD233+AD234+AD235+AD236+AD237 -> 8.588409083 | AE238: =AE233+AE234+AE235+AE236+AE237 -> 0.75 | AG238: =AG233+AG234+AG235+AG236+AG237 -> 7.838409083 | AH238: =AH233+AH234+AH235+AH236+AH237 -> 25
C239: Ewes | E239: ='Prime Lambs Merino Ewes Input'!E63 -> 1000 | G239: ='Prime Lambs Merino Ewes Input'!F63 -> 160 | I239: ='Prime Lambs Merino Ewes Input'!G63 -> 2.5 | K239: ='Prime Lambs Merino Ewes Input'!H63 -> 8 | M239: =(E239*G239*I239*K239)/1000 -> 3200 | AA239: d.s.e's | AB239: =AB238*AE142 -> 0
C240: Rams | E240: ='Prime Lambs Merino Ewes Input'!E64 -> 25 | G240: ='Prime Lambs Merino Ewes Input'!F64 -> 160 | I240: ='Prime Lambs Merino Ewes Input'!G64 -> 2.5 | K240: ='Prime Lambs Merino Ewes Input'!H64 -> 8 | M240: =(E240*G240*I240*K240)/1000 -> 80
C241: Lambs | E241: ='Prime Lambs Merino Ewes Input'!E65 -> 660 | G241: ='Prime Lambs Merino Ewes Input'!F65 -> 160 | I241: ='Prime Lambs Merino Ewes Input'!G65 -> 2.5 | K241: ='Prime Lambs Merino Ewes Input'!H65 -> 5 | M241: =(E241*G241*I241*K241)/1000 -> 1320
G242: Grain Cost ($/T) | I242: Kg Fed per Week | K242: No of Weeks Feeding | M242: Total Cost ($)
E243: Number
C244: Ewes | E244: ='Prime Lambs Merino Ewes Input'!E69 -> 1000 | G244: ='Prime Lambs Merino Ewes Input'!F69 -> 300 | I244: ='Prime Lambs Merino Ewes Input'!G69 -> 3 | K244: ='Prime Lambs Merino Ewes Input'!H69 -> 8 | M244: =(E244*G244*I244*K244)/1000 -> 7200
C245: Rams | E245: ='Prime Lambs Merino Ewes Input'!E70 -> 25 | G245: ='Prime Lambs Merino Ewes Input'!F70 -> 300 | I245: ='Prime Lambs Merino Ewes Input'!G70 -> 3 | K245: ='Prime Lambs Merino Ewes Input'!H70 -> 10 | M245: =(E245*G245*I245*K245)/1000 -> 225
C246: Lambs | E246: ='Prime Lambs Merino Ewes Input'!E71 -> 660 | G246: ='Prime Lambs Merino Ewes Input'!F71 -> 300 | I246: ='Prime Lambs Merino Ewes Input'!G71 -> 6 | K246: ='Prime Lambs Merino Ewes Input'!H71 -> 5 | M246: =(E246*G246*I246*K246)/1000 -> 5940
C247: TOTAL FEED COST | M247: =SUM(M239:M241,M244:M246) -> 17965
C250: GM SENSITIVITY
C251: Gross Margin/DSE | E251: Average Weaning Rate
G252: 0.9 | I252: 1 | K252: 1.1 | M252: 1.2 | O252: 1.3 | Q252: 1.4
E253: 165 | G253: =($E$199*G$252*$E253*(1-$K$124)+SUM($K$209:$K$210)+$K$234-$AK$57-$E$199*G$252*$AO$52)/$E$197 -> 57.60428421 | I253: =($E$199*I$252*$E253*(1-$K$124)+SUM($K$209:$K$210)+$K$234-$AK$57-$E$199*I$252*$AO$52)/$E$197 -> 65.50931124 | K253: =($E$199*K$252*$E253*(1-$K$124)+SUM($K$209:$K$210)+$K$234-$AK$57-$E$199*K$252*$AO$52)/$E$197 -> 73.41433827 | M253: =($E$199*M$252*$E253*(1-$K$124)+SUM($K$209:$K$210)+$K$234-$AK$57-$E$199*M$252*$AO$52)/$E$197 -> 81.3193653 | O253: =($E$199*O$252*$E253*(1-$K$124)+SUM($K$209:$K$210)+$K$234-$AK$57-$E$199*O$252*$AO$52)/$E$197 -> 89.22439232 | Q253: =($E$199*Q$252*$E253*(1-$K$124)+SUM($K$209:$K$210)+$K$234-$AK$57-$E$199*Q$252*$AO$52)/$E$197 -> 97.12941935
E254: 170 | G254: 59.90293286 | I254: 68.0633653 | K254: 76.22379773 | M254: 84.38423016 | O254: 92.54466259 | Q254: 100.705095
C255: Average Lamb Sale Price($/hd) | E255: 175 | G255: 62.20158151 | I255: 70.61741935 | K255: 79.03325719 | M255: 87.44909502 | O255: 95.86493286 | Q255: 104.2807707
E256: 180 | G256: 64.50023016 | I256: 73.1714734 | K256: 81.84271665 | M256: 90.51395989 | O256: 99.18520313 | Q256: 107.8564464
E257: 185 | G257: 66.79887881 | I257: 75.72552746 | K257: 84.65217611 | M257: 93.57882475 | O257: 102.5054734 | Q257: 111.4321221
E258: 190 | G258: 69.09752746 | I258: 78.27958151 | K258: 87.46163557 | M258: 96.64368962 | O258: 105.8257437 | Q258: 115.0077977
E259: 195 | G259: 71.39617611 | I259: 80.83363557 | K259: 90.27109502 | M259: 99.70855448 | O259: 109.1460139 | Q259: 118.5834734
E260: 200 | G260: 73.69482475 | I260: 83.38768962 | K260: 93.08055448 | M260: 102.7734193 | O260: 112.4662842 | Q260: 122.1591491
E261: 205 | G261: 75.9934734 | I261: 85.94174367 | K261: 95.89001394 | M261: 105.8382842 | O261: 115.7865545 | Q261: 125.7348248
E262: 210 | G262: 78.29212205 | I262: 88.49579773 | K262: 98.6994734 | M262: 108.9031491 | O262: 119.1068248 | Q262: 129.3105004
E263: 215 | G263: 80.5907707 | I263: 91.04985178 | K263: 101.5089329 | M263: 111.9680139 | O263: 122.427095 | Q263: 132.8861761

Sheet Lamb Trading Input (hidden)
C2: ="LAMB TRADING GROSS MARGIN - "&TEXT(m_year,"0000") -> LAMB TRADING GROSS MARGIN - 2022
C4: GENERAL INFORMATION
C5: This represents a merino Lamb flock, producing 21 micron wool. Adjust wool price if different micron wool is produced. Following are the various assumptions used in the calculation of the Gross Margin. Cells with yellow highlight can be changed. No allowance has been made for pasture expenses such as seed, fertiliser and chemicals. Refer to pasture gross margins in the “Cropping Gross Margin Plan” for annual and perennial pasture costs. Use the livestock gross margin per DSE as income for the pasture gross margin.
C7: No of Lambs | E7: 1000
C9: Age Lambs sold | E9: 0.8
C10: Age Lambs bought | E10: 0.5
C11: Lambs bought at | E11: 35 | F11: kg liveweight
C12: Lambs sold at | E12: 55 | F12: kg liveweight
C13: Flock death Rate | E13: 0.02
C14: DSE rating/Lamb | E14: 0.8
C17: LIVESTOCK SALES | E17: Price/Hd | F17: Number | G17: Total
C18: Lambs | E18: 206.9375 | F18: =E7-E7*E13 -> 980 | G18: =E18*F18 -> 202798.75
C25: TOTAL SALES | F25: =SUM(F18:F23) -> 980 | G25: =SUM(G18:G23) -> 202798.75
C28: LIVESTOCK PURCHASES | E28: Price/Hd | F28: Number | G28: Total
C29: Lambs | E29: 150 | F29: =ROUND('Lamb Trading'!AD220,0) -> 208 | G29: =E29*F29 -> 31200
C32: TOTAL PURCHASES | F32: =SUM(F29:F30) -> 208 | G32: =SUM(G29:G30) -> 31200
C35: WOOL PRICE (cents/kg) | F35: =TEXT(m_year-3,"0000")&" Average (Clean)" -> 2019 Average (Clean) | G35: =TEXT(m_year-2,"0000")&" Average (Clean)" -> 2020 Average (Clean) | H35: =TEXT(m_year-1,"0000")&" Average (Clean)" -> 2021 Average (Clean) | I35: Budget Base (Clean) | J35: Budget Base (Greasy) | L35: Wool Type | M35: Budget Clean Price
E36: Cereal Zone 21 mic 68% yield | F36: 2039 | G36: 1412 | H36: 1622 | I36: 1500 | J36: =I36*0.7 -> 1050 | L36: 19 mic | M36: 1500
E37: Estimated wool yield | I37: 0.7 | L37: 21 mic | M37: 1200
C38: Allow 90% to account for lower value of bellies, skirtings etc. | J38: =J36*0.9 -> 945 | L38: 22 mic | M38: 1150
L39: 28 mic | M39: 420
C42: WOOL SALES - SHEARING | F42: Wool Cut | G42: Yield | H42: Average
E43: Number | F43: kg/hd | G43: % | H43: Wool Price | I43: Total
C44: Lambs | E44: 1000 | F44: 1.5 | G44: 0.7 | H44: 1500 | I44: =E44*F44*G44*H44/100 -> 15750
I45: 0
I46: 0
I47: 0
I48: 0
I49: 0
I50: 0
C52: TOTAL | E52: =SUM(E44:E51) -> 1000 | F52: =SUMPRODUCT(E44:E50,F44:F50) -> 1500 | G52: =AVERAGE(G44:G50) -> 0.7 | I52: =SUM(I44:I51) -> 15750
C55: STOCK HEALTH REQUIREMENTS | E55: =HYPERLINK("http://paraboss.com.au","for more info on drench, lice and blowfly product selection refer to www.paraboss.com.au") -> for more info on drench, lice and blowfly product selection refer to www.paraboss.com.au
G56: Number of times
E57: Number | F57: Drench | G57: Vacc. | H57: Blowfly | I57: DSE rating
C58: Lambs | E58: ='Lamb Trading'!E220 -> 1000 | F58: 1 | G58: 1 | H58: 1 | I58: 0.6
C59: TOTAL | E59: =SUM(E58:E58) -> 1000 | F59: =SUMPRODUCT($E$58:$E$58,F58:F58) -> 1000 | G59: =SUMPRODUCT($E$58:$E$58,G58:G58) -> 1000 | H59: =SUMPRODUCT($E$58:$E$58,H58:H58) -> 1000 | I59: =SUMPRODUCT($E$58:$E$58,I58:I58) -> 600
C61: Av Live Weight | E61: 45
C62: DSE Rating | E62: 0.8
C67: FEEDING
E68: Supplementry | F68: Feed Lot | I68: Supplementry | J68: Feed Lot
E69: kg fed | F69: kg fed | G69: /animal | H69: $/tonne | I69: Total | J69: Total
C70: Oats/barley | F70: 55 | G70: kg/lamb | I70: =(H70*E70)/1000 -> 0 | J70: =(H70*F70)/1000 -> 0
C71: Hay | E71: 15 | F71: 10 | G71: kg/lamb | I71: =(H71*E71)/1000 -> 0 | J71: =(H71*F71)/1000 -> 0
C72: Lupins | F72: 9 | G72: kg/lamb | I72: =(H72*E72)/1000 -> 0 | J72: =(H72*F72)/1000 -> 0
C73: Supplements | F73: 1 | G73: kg/lamb | H73: 2000 | I73: =(H73*E73)/1000 -> 0 | J73: =(H73*F73)/1000 -> 2
C74: Total | I74: =SUM(I70:I73) -> 0 | J74: =SUM(J70:J73) -> 2

Sheet Lamb Trading (hidden)
C1: LAMB TRADING
C2: =UPPER(Var_Animal)&" GROSS MARGIN - "&TEXT(m_year,"0000") -> LAMB TRADING GROSS MARGIN - 2022
C4: ASSUMPTIONS
O5: Total DSE's | Q5: =E197 -> 600
C6: Ave Lamb Fibre Diameter | E6: 20 | O6: Number of Lambs shorn | Q6: 1
C7: Number of Lambs | E7: ='Lamb Trading Input'!$E$7 -> 1000 | O7: Stocking Rate (DSE/Ha) | Q7: =E196 -> 12
C8: Lambs bought at | E8: ='Lamb Trading Input'!E11 -> 35 | G8: kg liveweight | K8: 428.5714286 | M8: c/kg liveweight
C9: Lambs sold at | E9: ='Lamb Trading Input'!E12 -> 55 | G9: kg liveweight | J9: @ | K9: 875 | M9: c/kg dwt
C32: INCOME | Q32: $
C34: Wool (kg greasy) | E34: =I234 -> 1500 | G34: kg | I34: av price | K34: ='Lamb Trading Input'!I52*100/I233*0.9 -> 945 | M34: c/kg | Q34: =E34*K34/100 -> 14175
C35: Sales | E35: =E211 -> 980 | G35: animals | I35: av price | K35: =G210 -> 206.9375 | M35: /head | Q35: =K35*E35 -> 202798.75
C37: Gross Income | Q37: =SUM(Q34:Q35) -> 216973.75
AA45: STOCK VALUE AND D.S.E REQUIREMENT
C46: VARIABLE COSTS
C47: Shearing | K47: Rate
C48: Shearing | E48: =E233 -> 1000 | G48: sheep | I48: Reset Rate> | J48: =GM_INFO!C79 | K48: =GM_INFO!C79 -> 331.98 | M48: /100 | Q48: =K48/100*ROUND(E48,0) -> 3319.8
C50: Shed labour | E50: 2 | G50: days | I50: Reset Rate> | J50: =GM_INFO!C81 | K50: =GM_INFO!C81 -> 250.95 | M50: /day | Q50: =K50*ROUND(E50,0) -> 501.9
C51: Woolclasser | E51: 1 | G51: days | I51: Reset Rate> | J51: =GM_INFO!C82 | K51: =GM_INFO!C82 -> 319.91 | M51: /day | Q51: =K51*E51 -> 319.91
C52: Superannuation (on ord wages only) | I52: Reset Rate> | J52: =GM_INFO!C83 | K52: =GM_INFO!C83 -> 0.1 | M52: wages | Q52: =(Q48+Q50+Q51)*K52 -> 414.161
C53: W/Cover (incl. super + otime etc) | I53: Reset Rate> | J53: =GM_INFO!C84 | K53: =GM_INFO!C84 -> 0.04 | M53: total | Q53: =(Q48+Q49+Q50+Q51+Q52)*K53 -> 182.23084
C54: Wool packs | E54: =E122 -> 8.823529412 | G54: packs | I54: Reset Rate> | J54: =GM_INFO!C77 | K54: =GM_INFO!C77 -> 16 | M54: /pack | Q54: =K54*ROUND(E54,0) -> 144
C55: Shed sundries | E55: =E48 -> 1000 | G55: sheep | I55: Reset Rate> | J55: =GM_INFO!C85 | K55: =GM_INFO!C85 -> 0.2 | M55: /head | Q55: =K55*ROUND(E55,0) -> 200
C56: Lice control | E56: =E48 -> 1000 | G56: sheep | I56: Reset Rate> | J56: =GM_INFO!C66 | K56: =GM_INFO!C66 -> 1.695 | M56: /head | Q56: =K56*ROUND(E56,0) -> 1695
C57: Crutching | E57: 0 | G57: sheep | I57: Reset Rate> | J57: =GM_INFO!C87 | K57: =GM_INFO!C87 -> 96.27 | M57: /100 | Q57: =K57/100*ROUND(E57,0) -> 0
AS79: RAMS | AT79: OPENING | AU79: NATURAL | AV79: PURCHASES | AW79: DEATHS | AX79: % sold | AY79: SALES | AZ79: CLOSING
AS80: AGE | AT80: NUMBERS | AU80: INCREASE | AX80: culled | AZ80: NUMBERS
AS82: 0.5-1.5yr | AV82: =AT83/(1-AX82) -> 0 | AW82: =AT82*$R$81 -> 0 | AZ82: =AT82+AU82+AV82-AW82-AY82 -> 0
AS83: 1.5-2.5yr | AT83: =IF(AY53=3,(AU51*AY51)/(1+(1-AY55)*(1-AX83)*(1+(1-AY55)*(1-AX84)*(1+(1-AY55)*(1-AX85)))),IF(AY53=4,(AU51*AY51)/(1+(1-AY55)*(1-AX83)*(1+(1-AY55)*(1-AX84)*(1+(1-AY55)*(1-AX85)*(1+(1-AY55)*(1-AX86))))),0)) -> 0 | AW83: =AT83*$R$81 -> 0 | AZ83: =AT83+AU83+AV83-AW83-AY83 -> 0
AS84: 2.5-3.5yr | AT84: =AZ83 -> 0 | AW84: =AT84*$R$81 -> 0 | AZ84: =AT84+AU84+AV84-AW84-AY84 -> 0
AS85: 3.5-4.5yr | AT85: =AZ84 -> 0 | AW85: =AT85*$R$81 -> 0 | AX85: =IF(AY53=3,100%,0) -> 0 | AY85: =(AT85-AW85)*AX85 -> 0 | AZ85: =AT85+AU85+AV85-AW85-AY85 -> 0
AS86: 4.5-5.5yr | AT86: =AZ85 -> 0 | AW86: =AT86*$R$81 -> 0 | AX86: =IF(AY53=4,100%,0) -> 0 | AY86: =AT86-AW86 -> 0 | AZ86: =AT86+AU86+AV86-AW86-AY86 -> 0
AT87: =AT82+AT83+AT84+AT85+AT86 -> 0 | AV87: =AV82+AV83+AV84+AV85+AV86 -> 0 | AW87: =AW82+AW83+AW84+AW85+AW86 -> 0 | AY87: =AY82+AY83+AY84+AY85+AY86 -> 0 | AZ87: =AZ82+AZ83+AZ84+AZ85+AZ86 -> 0
AS88: d.s.e's | AT88: =AT87*AE49 -> 0
C89: Animal Health
C90: Drench | E90: =G228 -> 1000 | G90: sheep | I90: Reset Rate> | J90: =GM_INFO!C70 | K90: =GM_INFO!C70 -> 0.663 | M90: /head | Q90: =K90*ROUND(E90,0) -> 663
C91: Vaccinate | E91: =I228 -> 1000 | G91: sheep | I91: Reset Rate> | J91: =GM_INFO!C74 | K91: =GM_INFO!C74 -> 0.376 | M91: /head | Q91: =K91*ROUND(E91,0) -> 376
C92: Blowfly control | E92: =K228*0.5 -> 500 | G92: sheep | I92: Reset Rate> | J92: =GM_INFO!C76 | K92: =GM_INFO!C76 -> 1.434 | M92: /head | Q92: =K92*ROUND(E92,0) -> 717
C93: Other expenses | G93: sheep | I93: Reset Rate> | M93: /head | Q93: =K93*ROUND(E93,0) -> 0
C104: Stock purchases
C105: Purchases | E105: =ROUND(E213,0) -> 1000 | G105: Lambs | I105: Reset Rate> | J105: ='Lamb Trading Input'!E29 | K105: ='Lamb Trading Input'!E29 -> 150 | M105: /head | Q105: =K105*E105 -> 150000
C117: Sale Costs
C118: Freight
C119: Livestock | E119: =E211+E213 -> 1980 | G119: sheep | I119: Reset Rate> | J119: =GM_INFO!B161 | K119: =GM_INFO!B161 -> 4 | M119: /head | Q119: =K119*ROUND(E119,0) -> 7920
I120: Reset Rate> | M120: /head
I121: Reset Rate> | M121: /head
C122: Wool | E122: =I234/170 -> 8.823529412 | G122: bales | I122: Reset Rate> | J122: =GM_INFO!B164 | K122: =GM_INFO!B164 -> 15 | M122: /bale | Q122: =K122*ROUND(E122,0) -> 135
C123: Stock selling charges
C124: Commission/insurance | I124: Reset Rate> | J124: =GM_INFO!C98 | K124: =GM_INFO!C98 -> 0.055 | M124: gross $ | Q124: =K124*Q35 -> 11153.93125
C125: Yard fees | E125: =E211 -> 980 | G125: sheep | I125: Reset Rate> | J125: =GM_INFO!C99 | K125: =GM_INFO!C99 -> 0.85 | M125: /head | Q125: =K125*ROUND(E125,0) -> 833
C126: Levy trans-sheep | E126: =E211 -> 980 | G126: sheep | I126: Reset Rate> | J126: =GM_INFO!C101 | K126: =GM_INFO!C101 -> 1.5 | M126: /head | Q126: =K126*ROUND(E126,0) -> 1470
C128: SA sheep industry levy | E128: =E211 -> 980 | G128: sheep | I128: Reset Rate> | J128: =GM_INFO!C102 | K128: =GM_INFO!C102 -> 0.67 | M128: /head | Q128: =K128*ROUND(E128,0) -> 656.6
C129: Wool selling charges
C130: Brokerage/testing/insurance | I130: Reset Rate> | J130: =GM_INFO!C103 | K130: =GM_INFO!C103 -> 0.27 | M130: /kg | Q130: =K130*E34 -> 405
C131: Wool levy | I131: Reset Rate> | J131: =GM_INFO!C104 | K131: =GM_INFO!C104 -> 0.015 | M131: gross | Q131: =K131*Q34 -> 212.625
C143: Feed and Other Costs
C144: Supplementary Feeding | E144: 0 | G144: sheep | J144: =M250 | K144: =M250 -> 0 | M144: /head | Q144: =IF(E144*K144=0,0,E144*K144) -> 0
C145: Feed Lot | E145: 0 | G145: sheep | J145: =O250 | K145: =O250 -> 2 | M145: /head | Q145: =IF(E145=0,0,E145*K145) -> 0
C146: Insurance | E146: =E239*G239 -> 178468.75 | G146: value | I146: Reset Rate> | J146: =GM_INFO!B157 | K146: =GM_INFO!B157 -> 2 | M146: /$'000 | Q146: =K146/1000*E146 -> 356.9375
C147: Water | E147: =$E$197 -> 600 | G147: DSE's | I147: Reset Rate> | J147: =GM_INFO!K129 | K147: =GM_INFO!K129 -> 1.5 | M147: /DSE's | Q147: =K147*E147 -> 900
C148: Veh Fuel, R&M | E148: =$E$197 -> 600 | G148: DSE's | I148: Reset Rate> | J148: =GM_INFO!K130 | K148: =GM_INFO!K130 -> 1 | M148: /DSE's | Q148: =K148*E148 -> 600
C149: Other | E149: =$E$197 -> 600 | G149: DSE's | I149: Reset Rate> | J149: =GM_INFO!K131 | K149: =GM_INFO!K131 -> 0.5 | M149: /DSE's | Q149: =K149*E149 -> 300
C170: TOTAL VARIABLE COSTS | Q170: =SUM(Q48:Q166) -> 183476.0956
C172: GROSS MARGIN TOTAL | Q172: =Q37-Q170 -> 33497.65441
C174: GROSS MARGIN/DSE | Q174: =Q172/E197 -> 55.82942402
C194: PRODUCTION DATA
C196: Stocking rate (DSE/Ha) | E196: 12 | AA196: SHEEP GROSS MARGIN
C197: Total DSE's | E197: ='Lamb Trading Input'!I59 -> 600
C198: SHEEP GRAZING AREA | E198: =E197/E196 -> 50
C199: Number of Lambs | E199: ='Lamb Trading Input'!E7 -> 1000
C200: Flock death rate | E200: ='Lamb Trading Input'!E13 -> 0.02
C201: Age Lambs bought | E201: ='Lamb Trading Input'!E10 -> 0.5
C202: Age Lambs sold | E202: ='Lamb Trading Input'!E9 -> 0.8 | AA202: No of Lambs | AC202: ='Lamb Trading Input'!E7 -> 1000
B203: =VLOOKUP(r[0]c3&"No Ops",CHOOSE({1,2},tbl_ops[Name]&tbl_ops[Category],INDIRECT("tbl_ops["&var_crop&"]")),2,0) | AA203: Age Lambs purchased | AC203: =E201 -> 0.5
B204: =VLOOKUP(r[0]c3&"No Ops",CHOOSE({1,2},tbl_ops[Name]&tbl_ops[Category],INDIRECT("tbl_ops["&var_crop&"]")),2,0) | AA204: Age Lambs sold | AC204: =E202 -> 0.8
B205: =VLOOKUP(r[0]c3&"No Ops",CHOOSE({1,2},tbl_ops[Name]&tbl_ops[Category],INDIRECT("tbl_ops["&var_crop&"]")),2,0) | AA205: Flock death rate | AC205: =E200 -> 0.02
B206: =VLOOKUP(r[0]c3&"No Ops",CHOOSE({1,2},tbl_ops[Name]&tbl_ops[Category],INDIRECT("tbl_ops["&var_crop&"]")),2,0) | AA206: dse/Lamb | AC206: ='Lamb Trading Input'!E14 -> 0.8
B208: =VLOOKUP(r[0]c3&var_rain,CHOOSE({1,2},tbl_ops[Name]&tbl_ops[Rainfall],INDIRECT("tbl_ops["&var_crop&"]")),2,0)
B209: =VLOOKUP(r[0]c3&var_rain,CHOOSE({1,2},tbl_ops[Name]&tbl_ops[Rainfall],INDIRECT("tbl_ops["&var_crop&"]")),2,0) | C209: SALES | E209: Number | G209: Price/hd | I209: Age | K209: Total
B210: =VLOOKUP(r[0]c3&var_rain,CHOOSE({1,2},tbl_ops[Name]&tbl_ops[Rainfall],INDIRECT("tbl_ops["&var_crop&"]")),2,0) | C210: Prime Lambs | E210: =E199-(E199*E200) -> 980 | G210: =E9*0.43*K9/100 -> 206.9375 | I210: =E202 -> 0.8 | K210: =E210*G210 -> 202798.75
B211: =VLOOKUP(r[0]c3&var_rain,CHOOSE({1,2},tbl_ops[Name]&tbl_ops[Rainfall],INDIRECT("tbl_ops["&var_crop&"]")),2,0) | C211: TOTAL | E211: =E210 -> 980 | K211: =K210 -> 202798.75 | AA211: LambS | AB211: OPENING | AC211: NATURAL | AD211: PURCHASES | AE211: DEATHS | AF211: % sold | AG211: SALES | AH211: CLOSING
C212: PURCHASES | E212: Number | G212: Price/hd | I212: Age | K212: Total | AA212: AGE | AB212: NUMBERS | AC212: INCREASE | AF212: culled | AH212: NUMBERS
C213: Store Lambs | E213: =E199 -> 1000 | G213: =(E8*K8)/100 -> 150 | I213: =E201 -> 0.5 | K213: =ROUND(E213,0)*G213 -> 150000
AA214: 0-0.5yr | AD214: =IF(AC203=0.5,AB215-AE214-AG214,0) -> 208.1615931 | AE214: =AB214*$AC$205 -> 0 | AF214: =IF(AC204=0.5,100%,0) -> 0 | AG214: =AC214*AF214 -> 0 | AH214: =AB214+AC214+AD214-AE214-AG214 -> 208.1615931
AA215: 0.5-1.5yr | AB215: =IF(AC203=0.5,AC202/(1+(1-AC205)*(1-AF215)*(1+(1-AC205)*(1-AF216)*(1+(1-AC205)*(1-AF217)*(1+(1-AC205)*(1-AF218))))),0) -> 208.1615931 | AD215: =IF(AC203=1.5,AB216-AE215-AG215,0) -> 0 | AE215: 4.163231862 | AF215: =IF(AC204=1.5,100%,0) -> 0 | AG215: =(AB215-AE215)*AF215 -> 0 | AH215: 203.9983612
AA216: 1.5-2.5yr | AB216: =IF(AC203=1.5,AC202/(1+(1-AC205)*(1-AF216)*(1+(1-AC205)*(1-AF217)*(1+(1-AC205)*(1-AF218)))),AH215) -> 203.9983612 | AE216: 4.079967224 | AF216: =IF(AC204=2.5,100%,0) -> 0 | AG216: =(AB216-AE216)*AF216 -> 0 | AH216: 199.918394
AA217: 2.5-3.5yr | AB217: =AH216 -> 199.918394 | AE217: 3.99836788 | AF217: =IF(AC204=3.5,100%,0) -> 0 | AG217: =(AB217-AE217)*AF217 -> 0 | AH217: 195.9200261
E218: Number of Times | AA218: 3.5-4.5yr | AB218: =AH217 -> 195.9200261 | AE218: 3.918400522 | AF218: =IF(AC204=4.5,100%,0) -> 0 | AG218: =(AB218-AE218)*AF218 -> 0 | AH218: 192.0016256
C219: STOCK HEALTH REQUIREMENTS | E219: Number | G219: Drench | I219: Vacc. | K219: Blowfly | AA219: 4.5-5.5yr | AB219: =AH218 -> 192.0016256 | AE219: 3.840032512 | AF219: =IF(AC204=5.5,100%,0) -> 0 | AG219: =(AB219-AE219)*AF219 -> 0 | AH219: 188.1615931
C220: Lambs | E220: =ROUND('Lamb Trading Input'!E7,0) -> 1000 | G220: ='Lamb Trading Input'!F58 -> 1 | I220: ='Lamb Trading Input'!G58 -> 1 | K220: ='Lamb Trading Input'!H58 -> 1 | AA220: Total | AB220: =SUM(AB215:AB219) -> 1000 | AD220: =SUM(AD214:AD219) -> 208.1615931 | AE220: =SUM(AE214:AE219) -> 20 | AG220: =SUM(AG214:AG219) -> 0 | AH220: =SUM(AH214:AH219) -> 1188.161593
AA221: d.s.e's | AB221: =AB220*AC206 -> 800
C228: TOTAL | E228: =SUM(E220:E227) -> 1000 | G228: =SUMPRODUCT($E$220:$E$227,G220:G227) -> 1000 | I228: =SUMPRODUCT($E$220:$E$227,I220:I227) -> 1000 | K228: =SUMPRODUCT($E$220:$E$227,K220:K227) -> 1000
G231: Wool Cut kg/hd | I231: Total | K231: Yield | M231: Total
C232: SHEARING | E232: Number | I232: Greasy kg | K232: % | M232: clean kg
C233: Lambs | E233: ='Lamb Trading Input'!E52 -> 1000 | G233: ='Lamb Trading Input'!F52/1000 -> 1.5 | I233: =G233*E233 -> 1500 | K233: ='Lamb Trading Input'!G44 -> 0.7 | M233: =E233*G233*K233 -> 1050
C234: TOTAL | E234: =E233 -> 1000 | I234: =I233 -> 1500
C237: STOCK VALUE | G237: Value | I237: Av Live | K237: DSE
E238: Number | G238: $/head | I238: weight (kgs) | K238: rating
C239: Lambs | E239: =E199 -> 1000 | G239: =(G210+G213)/2 -> 178.46875 | I239: ='Lamb Trading Input'!E61 -> 45 | K239: ='Lamb Trading Input'!E62 -> 0.8
C240: TOTAL | E240: =E239 -> 1000
E244: Supplementry | G244: Feed Lot | M244: Supplementry | O244: Feed Lot
C245: FEEDING | E245: kg fed | G245: kg fed | I245: /animal | K245: $/tonne | M245: Total | O245: Total
C246: ='Lamb Trading Input'!C70 -> Oats/barley | E246: ='Lamb Trading Input'!E70 -> 0 | G246: ='Lamb Trading Input'!F70 -> 55 | I246: ='Lamb Trading Input'!G70 -> kg/lamb | K246: ='Lamb Trading Input'!H70 -> 0 | M246: ='Lamb Trading Input'!I70 -> 0 | O246: ='Lamb Trading Input'!J70 -> 0
C247: ='Lamb Trading Input'!C71 -> Hay | E247: ='Lamb Trading Input'!E71 -> 15 | G247: ='Lamb Trading Input'!F71 -> 10 | I247: ='Lamb Trading Input'!G71 -> kg/lamb | K247: ='Lamb Trading Input'!H71 -> 0 | M247: ='Lamb Trading Input'!I71 -> 0 | O247: ='Lamb Trading Input'!J71 -> 0
C248: ='Lamb Trading Input'!C72 -> Lupins | E248: ='Lamb Trading Input'!E72 -> 0 | G248: ='Lamb Trading Input'!F72 -> 9 | I248: ='Lamb Trading Input'!G72 -> kg/lamb | K248: ='Lamb Trading Input'!H72 -> 0 | M248: ='Lamb Trading Input'!I72 -> 0 | O248: ='Lamb Trading Input'!J72 -> 0
C249: ='Lamb Trading Input'!C73 -> Supplements | E249: ='Lamb Trading Input'!E73 -> 0 | G249: ='Lamb Trading Input'!F73 -> 1 | I249: ='Lamb Trading Input'!G73 -> kg/lamb | K249: ='Lamb Trading Input'!H73 -> 2000 | M249: ='Lamb Trading Input'!I73 -> 0 | O249: ='Lamb Trading Input'!J73 -> 2
M250: ='Lamb Trading Input'!I74 -> 0 | O250: ='Lamb Trading Input'!J74 -> 2
C259: GM SENSITIVITY
C260: Gross Margin/DSE | E260: Average Greasy Wool Price (c/Kg)
G261: 650 | I261: 700 | K261: 832 | M261: 800 | O261: 850 | Q261: 900
E262: 140 | G262: =(G$261*$E$34*(1-$K$131)/100+$E262*$E$35*(1-$K$124)-($Q$170-$Q$124-$Q$131))/$E$197 -> -54.75298223 | I262: =(I$261*$E$34*(1-$K$131)/100+$E262*$E$35*(1-$K$124)-($Q$170-$Q$124-$Q$131))/$E$197 -> -53.52173223 | K262: =(K$261*$E$34*(1-$K$131)/100+$E262*$E$35*(1-$K$124)-($Q$170-$Q$124-$Q$131))/$E$197 -> -50.27123223 | M262: =(M$261*$E$34*(1-$K$131)/100+$E262*$E$35*(1-$K$124)-($Q$170-$Q$124-$Q$131))/$E$197 -> -51.05923223 | O262: =(O$261*$E$34*(1-$K$131)/100+$E262*$E$35*(1-$K$124)-($Q$170-$Q$124-$Q$131))/$E$197 -> -49.82798223 | Q262: =(Q$261*$E$34*(1-$K$131)/100+$E262*$E$35*(1-$K$124)-($Q$170-$Q$124-$Q$131))/$E$197 -> -48.59673223
E263: 145 | G263: -47.03548223 | I263: -45.80423223 | K263: -42.55373223 | M263: -43.34173223 | O263: -42.11048223 | Q263: -40.87923223
C264: Average Sheep Sale Price($/hd) | E264: 150 | G264: -39.31798223 | I264: -38.08673223 | K264: -34.83623223 | M264: -35.62423223 | O264: -34.39298223 | Q264: -33.16173223
E265: 145 | G265: -47.03548223 | I265: -45.80423223 | K265: -42.55373223 | M265: -43.34173223 | O265: -42.11048223 | Q265: -40.87923223
E266: 150 | G266: -39.31798223 | I266: -38.08673223 | K266: -34.83623223 | M266: -35.62423223 | O266: -34.39298223 | Q266: -33.16173223
E267: 206.9375 | G267: 48.56504902 | I267: 49.79629902 | K267: 53.04679902 | M267: 52.25879902 | O267: 53.49004902 | Q267: 54.72129902
E268: 160 | G268: -23.88298223 | I268: -22.65173223 | K268: -19.40123223 | M268: -20.18923223 | O268: -18.95798223 | Q268: -17.72673223
E269: 165 | G269: -16.16548223 | I269: -14.93423223 | K269: -11.68373223 | M269: -12.47173223 | O269: -11.24048223 | Q269: -10.00923223
E270: 170 | G270: -8.447982233 | I270: -7.216732233 | K270: -3.966232233 | M270: -4.754232233 | O270: -3.522982233 | Q270: -2.291732233
E271: 175 | G271: -0.7304822333 | I271: 0.5007677667 | K271: 3.751267767 | M271: 2.963267767 | O271: 4.194517767 | Q271: 5.425767767
E272: 180 | G272: 6.987017767 | I272: 8.218267767 | K272: 11.46876777 | M272: 10.68076777 | O272: 11.91201777 | Q272: 13.14326777

Sheet Merino SR Input (hidden)
C2: ="MERINO SR GROSS MARGIN - "&TEXT(m_year,"0000") -> MERINO SR GROSS MARGIN - 2022
C4: GENERAL INFORMATION
C5: This represents a self-replacing merino ewe flock, producing 21 micron wool. Adjust wool price if different micron wool is produced. Following are the various assumptions used in the calculation of the Gross Margin. Cells with yellow highlight can be changed. No allowance has been made for pasture expenses such as seed, fertiliser and chemicals. Refer to pasture gross margins in the “Cropping Gross Margin Plan” for annual and perennial pasture costs. Use the livestock gross margin per DSE as income for the pasture gross margin.
C7: Stocking rate (DSE/Ha) | E7: 6 | G7: Years Rams Kept | I7: 4
C8: Ewes mated | E8: 1000 | G8: Flock death Rate | I8: 0.03 | L8: Average Weaning Perentage
C9: Total DSE's | E9: ='Merino SR'!M228 -> 2420 | G9: % Lambs carried over | I9: 0 | M9: Agricultural | N9: Pastoral
C10: SHEEP GRAZING AREA | E10: 285 | L10: Av % | M10: 0.95 | N10: 0.8
C11: Age ewes 1st mating | E11: 1.5
C12: Age ewes sold | E12: 6.5
C13: Av Weaning % | E13: 0.95
C14: Ram percentage | E14: 0.025
C17: LIVESTOCK SALES | E17: Price/Hd | F17: Number | G17: Total | L17: Estimated 2022 Sheep Sale Prices
C18: c.f.a Ewes | E18: 170 | F18: ='Merino SR'!AG220 -> 203.9596235 | G18: =E18*ROUND(F18,0) -> 34680 | M18: Agricultural | N18: Pastoral
C19: c.f.a Merino Rams | E19: 140 | F19: ='Merino SR'!AG244 -> 5.788387001 | G19: 840 | L19: Store lambs 35kg lwt | M19: 145 | N19: 140
C20: ewe hoggets | E20: 270 | F20: ='Merino SR'!AG222 -> 226.7903765 | G20: 61290 | L20: Ewe Lambs | M20: 175 | N20: 160
C21: wether lambs | E21: 145 | F21: ='Merino SR'!AG230 -> 475 | G21: 68875 | L21: Wether lambs 55 kg lwt | M21: 200 | N21: 195
G22: 0 | L22: Ewe hoggets | M22: 270 | N22: 240
G23: 0 | L23: Cast for age ewes | M23: 170 | N23: 150
L24: Cast for age rams | M24: 140 | N24: 120
C25: TOTAL SALES | F25: =SUM(F18:F23) -> 911.538387 | G25: =SUM(G18:G23) -> 165685
C28: LIVESTOCK PURCHASES | E28: Price/Hd | F28: Number | G28: Total
C29: Ewes | E29: 250 | F29: =ROUND('Merino SR'!AD220,0) -> 0 | G29: =E29*F29 -> 0
C30: Rams | E30: 2500 | F30: =ROUND('Merino SR'!AD244,0) -> 7 | G30: =E30*F30 -> 17500
C32: TOTAL PURCHASES | F32: =SUM(F29:F30) -> 7 | G32: =SUM(G29:G30) -> 17500
C35: WOOL PRICE (cents/kg) | F35: =TEXT(m_year-3,"0000")&" Average (Clean)" -> 2019 Average (Clean) | G35: =TEXT(m_year-2,"0000")&" Average (Clean)" -> 2020 Average (Clean) | H35: =TEXT(m_year-1,"0000")&" Average (Clean)" -> 2021 Average (Clean) | I35: Budget Base (Clean) | J35: Budget Base (Greasy) | L35: Wool Type | M35: Estimated Clean Price
E36: Cereal Zone 21 mic 68% yield | F36: 1995 | G36: 1319 | H36: 1271 | I36: 1200 | J36: =I36*I37 -> 816 | L36: 19 mic | M36: 1500
E37: Estimated wool yield | I37: 0.68 | L37: 21 mic | M37: 1200
C38: Allow 90% to account for lower value of bellies, skirtings etc. | J38: =J36*0.9 -> 734.4 | L38: 22 mic | M38: 1150
C42: WOOL SALES - SHEARING | F42: Wool Cut | G42: Wool Price
E43: Number | F43: kg/hd | G43: cents/kg
C44: Ewes | E44: =ROUND('Merino SR'!E233,0) -> 980 | F44: 6.5 | G44: =$J$38 -> 734.4
C45: Ewe hoggets | E45: =ROUND('Merino SR'!E234,0) -> 468 | F45: 5.5 | G45: =$J$38 -> 734.4
C46: Wether weaners | E46: =ROUND('Merino SR'!E235,0) -> 0 | F46: 5 | G46: =$J$38 -> 734.4
C47: Lambs | E47: =ROUND('Merino SR'!E236,0) -> 950 | F47: 2 | G47: =$J$38 -> 734.4
C48: Merino rams | E48: =ROUND('Merino SR'!E237,0) -> 25 | F48: 9.5 | G48: =$J$38 -> 734.4
C52: TOTAL | E52: =SUM(E44:E51) -> 2423 | F52: =SUMPRODUCT(E44:E50,F44:F50) -> 11081.5
C55: STOCK HEALTH REQUIREMENTS | E55: =HYPERLINK("http://paraboss.com.au","for more info on drench, lice and blowfly product selection refer to www.paraboss.com.au") -> for more info on drench, lice and blowfly product selection refer to www.paraboss.com.au
G56: Number of times
E57: Number | F57: Drench | G57: Vacc. | H57: Blowfly
C58: Ewes | E58: ='Merino SR'!E220 -> 1000 | F58: 1 | G58: 1 | H58: 1
C59: Ewe hoggets | E59: ='Merino SR'!E221 -> 475 | F59: 1 | G59: 1 | H59: 1
C60: Wether weaners | E60: ='Merino SR'!E222 -> 0 | F60: 1 | G60: 1 | H60: 1
C61: Merino lambs | E61: ='Merino SR'!E223 -> 950 | F61: 1 | G61: 2 | H61: 0
C62: Merino rams | E62: ='Merino SR'!E224 -> 25 | F62: 2 | G62: 1 | H62: 1
C64: TOTAL | E64: =SUM(E58:E62) -> 2450 | F64: =SUMPRODUCT($E$58:$E$62,F58:F62) -> 2475 | G64: =SUMPRODUCT($E$58:$E$62,G58:G62) -> 3400 | H64: =SUMPRODUCT($E$58:$E$62,H58:H62) -> 1500
C67: FEEDING
C68: HAY | F68: Hay | G68: Kgs Fed | H68: No Weeks | I68: Total
E69: Number | F69: Cost ($/T) | G69: per Week | H69: of Feeding | I69: Cost ($)
C70: Cereal Hay | E70: ='Merino SR'!E220 -> 1000 | F70: 160 | G70: 2 | H70: 10 | I70: =(H70*G70*E70)/1000*F70 -> 3200
C71: Legume Hay | I71: =(H71*G71*E71)/1000*F71 -> 0
I72: =(H72*G72*E72)/1000*F72 -> 0
I73: =(H73*G73*E73)/1000*F73 -> 0
I74: =(H74*G74*E74)/1000*F74 -> 0
C76: GRAIN | F76: Grain | G76: Kgs Fed | H76: No Weeks | I76: Total
E77: Number | F77: Cost ($/T) | G77: per Week | H77: of Feeding | I77: Cost ($)
C78: Lupins | E78: 475 | F78: 410 | G78: 1 | H78: 10 | I78: =(H78*G78*E78)/1000*F78 -> 1947.5
C79: Barley | E79: 1000 | F79: 300 | G79: 2.4 | H79: 10 | I79: =(H79*G79*E79)/1000*F79 -> 7200
C80: Oats | I80: =(H80*G80*E80)/1000*F80 -> 0
I81: =(H81*G81*E81)/1000*F81 -> 0
I82: =(H82*G82*E82)/1000*F82 -> 0
H84: Total Feed Cost | I84: =SUM(I70:I74,I78:I82) -> 12347.5

Sheet Merino SR (hidden)
C1: MERINO SR
C2: =UPPER(Var_Animal)&" GROSS MARGIN - "&TEXT(m_year,"0000") -> MERINO SR GROSS MARGIN - 2022
C4: ASSUMPTIONS
C6: Ave Breeding Ewe Fibre Diameter | E6: 21 | O6: Total DSE's | Q6: ='Merino SR Input'!E9 -> 2420
C7: No. of breeding ewes | E7: ='Merino SR Input'!$E$8 -> 1000 | O7: Stocking Rate (DSE/Ha) | Q7: ='Merino SR Input'!E7 -> 6
C32: INCOME | Q32: $
C34: Wool (kg greasy) | E34: =I241 -> 11079.88602 | G34: kg | I34: av price | K34: ='Merino SR Input'!J38 -> 734.4 | M34: c/kg | Q34: =M241 -> 81370.68295
C35: Sales | E35: =E214 -> 911.538387 | G35: animals | I35: av price | K35: =G214 -> 181.7641499 | M35: /head | Q35: =I214 -> 165685
C37: Gross Income | Q37: =SUM(Q34:Q35) -> 247055.6829
AA45: STOCK VALUE AND D.S.E REQUIREMENT
C46: VARIABLE COSTS
C47: Shearing | K47: Rate
C48: Shearing | E48: =E241-E237 -> 2398.280542 | G48: sheep | I48: Reset Rate> | J48: =GM_INFO!C79 | K48: =GM_INFO!C79 -> 331.98 | M48: /100 | Q48: =K48/100*ROUND(E48,0) -> 7960.8804
C49: (Federal awards) | E49: =E224 -> 25 | G49: rams | I49: Reset Rate> | J49: =GM_INFO!C80 | K49: =GM_INFO!C80 -> 663.96 | M49: /100 | Q49: =K49/100*ROUND(E49,0) -> 165.99
C50: Shed labour | E50: 8 | G50: days | I50: Reset Rate> | J50: =GM_INFO!C81 | K50: =GM_INFO!C81 -> 250.95 | M50: /day | Q50: =K50*ROUND(E50,0) -> 2007.6
C51: Woolclasser | E51: 4 | G51: days | I51: Reset Rate> | J51: =GM_INFO!C82 | K51: =GM_INFO!C82 -> 319.91 | M51: /day | Q51: =K51*E51 -> 1279.64
C52: Superannuation (on ord wages only) | I52: Reset Rate> | J52: =GM_INFO!C83 | K52: =GM_INFO!C83 -> 0.1 | M52: wages | Q52: =(Q48+Q49+Q50+Q51)*K52 -> 1141.41104
C53: W/Cover (incl. super + otime etc) | I53: Reset Rate> | J53: =GM_INFO!C84 | K53: =GM_INFO!C84 -> 0.04 | M53: total | Q53: =(Q48+Q49+Q50+Q51+Q52)*K53 -> 502.2208576
C54: Wool packs | E54: =E122 -> 65.17580013 | G54: packs | I54: Reset Rate> | J54: =GM_INFO!C77 | K54: =GM_INFO!C77 -> 16 | M54: /pack | Q54: =K54*ROUND(E54,0) -> 1040
C55: Shed sundries | E55: =E48+E49 -> 2423.280542 | G55: sheep | I55: Reset Rate> | J55: =GM_INFO!C85 | K55: =GM_INFO!C85 -> 0.2 | M55: /head | Q55: =K55*ROUND(E55,0) -> 484.6
C56: Lice control | E56: =E48+E49 -> 2423.280542 | G56: sheep | I56: Reset Rate> | J56: =GM_INFO!C66 | K56: =GM_INFO!C66 -> 1.695 | M56: /head | Q56: =K56*ROUND(E56,0) -> 4106.985
C57: Crutch & Wig | E57: =SUM(E233:E235) -> 1448.280542 | G57: ewes | I57: Reset Rate> | J57: =GM_INFO!C87 | K57: =GM_INFO!C87 -> 96.27 | M57: /100 | Q57: =K57/100*ROUND(E57,0) -> 1393.9896
E58: =E49 -> 25 | G58: rams | I58: Reset Rate> | J58: =GM_INFO!C88 | K58: =GM_INFO!C88 -> 192.54 | M58: /100 | Q58: =K58/100*ROUND(E58,0) -> 48.135
C75: Marking
C76: Lamb marking | E76: =E199*E205 -> 950 | G76: lambs | I76: Reset Rate> | J76: =GM_INFO!C90 | K76: =GM_INFO!C90 -> 1.5 | M76: /head | Q76: =K76*ROUND(E76,0) -> 1425
C77: Ear tags | E77: =E76 -> 950 | G77: lambs | I77: Reset Rate> | J77: =GM_INFO!C92 | K77: =GM_INFO!C92 -> 0.3 | M77: /head | Q77: =K77*ROUND(E77,0) -> 285
C78: Pain relief | E78: 900 | G78: lambs | I78: Reset Rate> | J78: =GM_INFO!C94 | K78: =GM_INFO!C94 -> 1.624 | M78: /head | Q78: =K78*ROUND(E78,0) -> 1461.6
AS79: RAMS | AT79: OPENING | AU79: NATURAL | AV79: PURCHASES | AW79: DEATHS | AX79: % sold | AY79: SALES | AZ79: CLOSING
AS80: AGE | AT80: NUMBERS | AU80: INCREASE | AX80: culled | AZ80: NUMBERS
AS82: 0.5-1.5yr | AV82: =AT83/(1-AX82) -> 0 | AW82: =AT82*$R$81 -> 0 | AZ82: =AT82+AU82+AV82-AW82-AY82 -> 0
AS83: 1.5-2.5yr | AT83: =IF(AY53=3,(AU51*AY51)/(1+(1-AY55)*(1-AX83)*(1+(1-AY55)*(1-AX84)*(1+(1-AY55)*(1-AX85)))),IF(AY53=4,(AU51*AY51)/(1+(1-AY55)*(1-AX83)*(1+(1-AY55)*(1-AX84)*(1+(1-AY55)*(1-AX85)*(1+(1-AY55)*(1-AX86))))),0)) -> 0 | AW83: =AT83*$R$81 -> 0 | AZ83: =AT83+AU83+AV83-AW83-AY83 -> 0
AS84: 2.5-3.5yr | AT84: =AZ83 -> 0 | AW84: =AT84*$R$81 -> 0 | AZ84: =AT84+AU84+AV84-AW84-AY84 -> 0
AS85: 3.5-4.5yr | AT85: =AZ84 -> 0 | AW85: =AT85*$R$81 -> 0 | AX85: =IF(AY53=3,100%,0) -> 0 | AY85: =(AT85-AW85)*AX85 -> 0 | AZ85: =AT85+AU85+AV85-AW85-AY85 -> 0
AS86: 4.5-5.5yr | AT86: =AZ85 -> 0 | AW86: =AT86*$R$81 -> 0 | AX86: =IF(AY53=4,100%,0) -> 0 | AY86: =AT86-AW86 -> 0 | AZ86: =AT86+AU86+AV86-AW86-AY86 -> 0
AT87: =AT82+AT83+AT84+AT85+AT86 -> 0 | AV87: =AV82+AV83+AV84+AV85+AV86 -> 0 | AW87: =AW82+AW83+AW84+AW85+AW86 -> 0 | AY87: =AY82+AY83+AY84+AY85+AY86 -> 0 | AZ87: =AZ82+AZ83+AZ84+AZ85+AZ86 -> 0
AS88: d.s.e's | AT88: =AT87*AE49 -> 0
C89: Animal Health
C90: Drench | E90: =G228 -> 2475 | G90: sheep | I90: Reset Rate> | J90: =GM_INFO!C69 | K90: =GM_INFO!C69 -> 0.552 | M90: /head | Q90: =K90*ROUND(E90,0) -> 1366.2
C91: Vaccinate | E91: =I228 -> 3400 | G91: sheep | I91: Reset Rate> | J91: =GM_INFO!C72 | K91: =GM_INFO!C72 -> 0.28 | M91: /head | Q91: =K91*ROUND(E91,0) -> 952
C92: Blowfly control | E92: =K228 -> 1500 | G92: sheep | I92: Reset Rate> | J92: =GM_INFO!C76 | K92: =GM_INFO!C76 -> 1.434 | M92: /head | Q92: =K92*ROUND(E92,0) -> 2151
C104: Stock purchases
C105: Purchases | E105: =ROUND(AD244,0) -> 7 | G105: rams | I105: Reset Rate> | J105: ='Merino SR Input'!E30 | K105: ='Merino SR Input'!E30 -> 2500 | M105: /head | Q105: =K105*E105 -> 17500
C117: Sale Costs
C118: Freight
C119: Livestock | E119: =E214 -> 911.538387 | G119: sheep | I119: Reset Rate> | J119: =GM_INFO!B161 | K119: =GM_INFO!B161 -> 4 | M119: /head | Q119: =K119*ROUND(E119,0) -> 3648
I120: Reset Rate> | M120: /head
I121: Reset Rate> | M121: /head
C122: Wool | E122: =I241/170 -> 65.17580013 | G122: bales | I122: Reset Rate> | J122: =GM_INFO!B164 | K122: =GM_INFO!B164 -> 15 | M122: /bale | Q122: =K122*ROUND(E122,0) -> 975
C123: Stock selling charges
C124: Commission/insurance | I124: Reset Rate> | J124: =GM_INFO!C98 | K124: =GM_INFO!C98 -> 0.055 | M124: gross $ | Q124: =K124*Q35 -> 9112.675
C125: Yard fees | E125: =E214 -> 911.538387 | G125: sheep | I125: Reset Rate> | J125: =GM_INFO!C99 | K125: =GM_INFO!C99 -> 0.85 | M125: /head | Q125: =K125*ROUND(E125,0) -> 775.2
C126: Levy trans-sheep | E126: =SUM(E210:E212) -> 436.538387 | G126: sheep | I126: Reset Rate> | J126: =GM_INFO!C100 | K126: =GM_INFO!C100 -> 0.2 | M126: /head | Q126: =K126*ROUND(E126,0) -> 87.4
C127: Levy trans-lambs | E127: =E213 -> 475 | G127: sheep | I127: Reset Rate> | J127: =GM_INFO!C101 | K127: =GM_INFO!C101 -> 1.5 | M127: /head | Q127: =K127*ROUND(E127,0) -> 712.5
C128: SA sheep industry levy | E128: =E214 -> 911.538387 | G128: sheep | I128: Reset Rate> | J128: =GM_INFO!C102 | K128: =GM_INFO!C102 -> 0.67 | M128: /head | Q128: =K128*ROUND(E128,0) -> 611.04
C129: Wool selling charges
C130: Brokerage/testing/insurance | I130: Reset Rate> | J130: =GM_INFO!C103 | K130: =GM_INFO!C103 -> 0.27 | M130: /kg | Q130: =K130*E34 -> 2991.569226
C131: Wool levy | I131: Reset Rate> | J131: =GM_INFO!C104 | K131: =GM_INFO!C104 -> 0.015 | M131: gross | Q131: =K131*Q34 -> 1220.560244
C143: Feed and Other Costs
C144: Hand Feeding | Q144: ='Merino SR Input'!I84 -> 12347.5
C146: Insurance | E146: =E229 -> 445322.1672 | G146: value | I146: Reset Rate> | J146: =GM_INFO!B157 | K146: =GM_INFO!B157 -> 2 | M146: /$'000 | Q146: =K146/1000*E146 -> 890.6443344
C147: Water | E147: ='Merino SR Input'!$E$9 -> 2420 | G147: DSE's | I147: Reset Rate> | J147: =GM_INFO!E129 | K147: =GM_INFO!E129 -> 2.5 | M147: /DSE's | Q147: =K147*E147 -> 6050
C148: Veh Fuel, R&M | E148: ='Merino SR Input'!$E$9 -> 2420 | G148: DSE's | I148: Reset Rate> | J148: =GM_INFO!E130 | K148: =GM_INFO!E130 -> 1.2 | M148: /DSE's | Q148: =K148*E148 -> 2904
C149: Other | E149: ='Merino SR Input'!$E$9 -> 2420 | G149: DSE's | I149: Reset Rate> | J149: =GM_INFO!E131 | K149: =GM_INFO!E131 -> 0.5 | M149: /DSE's | Q149: =K149*E149 -> 1210
C170: TOTAL VARIABLE COSTS | Q170: =SUM(Q48:Q166) -> 88808.3407
C172: GROSS MARGIN TOTAL | Q172: =Q37-Q170 -> 158247.3422
C174: GROSS MARGIN/DSE | Q174: =Q172/Q6 -> 65.39146374
C194: PRODUCTION DATA
AA196: SHEEP GROSS MARGIN
AA197: PRIME LAMB -
C199: Number of ewes mated | E199: ='Merino SR Input'!E8 -> 1000 | K199: Culling Rate (% from each group)
C200: Ram percentage | E200: ='Merino SR Input'!E14 -> 0.025 | K200: Age Group | M200: Ewes | O200: Wethers
C201: Age ewes 1st mating | E201: ='Merino SR Input'!E11 -> 1.5 | K201: 0.5 | M201: =AF213 -> 0
C202: Age ewes culled | E202: ='Merino SR Input'!E12 -> 6.5 | K202: 1.5 | M202: 0.492220025 | AA202: Ewes mated | AC202: ='Merino SR Input'!E8 -> 1000 | AF202: Ram % | AG202: =E200 -> 0.025
B203: =VLOOKUP(r[0]c3&"No Ops",CHOOSE({1,2},tbl_ops[Name]&tbl_ops[Category],INDIRECT("tbl_ops["&var_crop&"]")),2,0) | C203: Years rams kept | E203: ='Merino SR Input'!I7 -> 4 | K203: 2.5 | M203: 0.05 | AA203: Age at 1st mating | AC203: =E201 -> 1.5 | AF203: Price of rams | AG203: ='Merino SR Input'!E30 -> 2500
B204: =VLOOKUP(r[0]c3&"No Ops",CHOOSE({1,2},tbl_ops[Name]&tbl_ops[Category],INDIRECT("tbl_ops["&var_crop&"]")),2,0) | C204: Flock death rate | E204: ='Merino SR Input'!I8 -> 0.03 | K204: 3.5 | M204: 0.05 | AA204: Age ewes sold | AC204: =E202 -> 6.5 | AF204: Years rams kept | AG204: =E203 -> 4
B205: =VLOOKUP(r[0]c3&"No Ops",CHOOSE({1,2},tbl_ops[Name]&tbl_ops[Category],INDIRECT("tbl_ops["&var_crop&"]")),2,0) | C205: Average weaning rate | E205: =AC205 -> 0.95 | K205: 4.5 | M205: 0.05 | AA205: Av Weaning % | AC205: ='Merino SR Input'!E13 -> 0.95 | AF205: Age wethers sold | AG205: 0.5
B206: =VLOOKUP(r[0]c3&"No Ops",CHOOSE({1,2},tbl_ops[Name]&tbl_ops[Category],INDIRECT("tbl_ops["&var_crop&"]")),2,0) | C206: % Lambs carried over | E206: 0 | K206: 5.5 | M206: 0.05 | AA206: dse/ewe | AC206: 1.6 | AF206: Flock death rate | AG206: =E204 -> 0.03
C207: Age wethers sold | E207: =AG205 -> 0.5 | K207: 6.5 | M207: 1
B208: =VLOOKUP(r[0]c3&var_rain,CHOOSE({1,2},tbl_ops[Name]&tbl_ops[Rainfall],INDIRECT("tbl_ops["&var_crop&"]")),2,0)
B209: =VLOOKUP(r[0]c3&var_rain,CHOOSE({1,2},tbl_ops[Name]&tbl_ops[Rainfall],INDIRECT("tbl_ops["&var_crop&"]")),2,0) | C209: SALES | E209: Number | G209: Price/hd | I209: Total
B210: =VLOOKUP(r[0]c3&var_rain,CHOOSE({1,2},tbl_ops[Name]&tbl_ops[Rainfall],INDIRECT("tbl_ops["&var_crop&"]")),2,0) | C210: c.f.a ewes | E210: =AG220 -> 203.9596235 | G210: ='Merino SR Input'!E18 -> 170 | I210: =ROUND(E210,0)*G210 -> 34680
B211: =VLOOKUP(r[0]c3&var_rain,CHOOSE({1,2},tbl_ops[Name]&tbl_ops[Rainfall],INDIRECT("tbl_ops["&var_crop&"]")),2,0) | C211: c.f.a merino rams | E211: =AG244 -> 5.788387001 | G211: ='Merino SR Input'!E19 -> 140 | I211: =ROUND(E211,0)*G211 -> 840 | AA211: EWES | AB211: OPENING | AC211: NATURAL | AD211: PURCHASES | AE211: DEATHS | AF211: % sold | AG211: SALES | AH211: CLOSING
C212: Ewe hoggets | E212: =AG222 -> 226.7903765 | G212: ='Merino SR Input'!E20 -> 270 | I212: =ROUND(E212,0)*G212 -> 61290 | AA212: AGE | AB212: NUMBERS | AC212: INCREASE | AF212: culled | AH212: NUMBERS
C213: Wether lambs | E213: =AG230 -> 475 | G213: ='Merino SR Input'!E21 -> 145 | I213: =ROUND(E213,0)*G213 -> 68875 | AA213: 0-0.5yr | AC213: =AC202*AC205/2 -> 475 | AE213: =AB213*$AG$206 -> 0 | AF213: 0 | AG213: =AC213*AF213 -> 0 | AH213: =AB213+AC213+AD213-AE213-AG213 -> 475
C214: TOTAL | E214: =SUM(E210:E213) -> 911.538387 | G214: =I214/E214 -> 181.7641499 | I214: =SUM(I210:I213) -> 165685 | AA214: 0.5-1.5yr | AB214: =AH213 -> 475 | AE214: 14.25 | AF214: =(AB214*(1-AG206)-AB215)/(AB214-AE214) -> 0.492220025 | AG214: =AB214-AE214-AB215 -> 226.7903765 | AH214: 233.9596235
AA215: 1.5-2.5yr | AB215: =AC202/(1+(1-AG206)*(1-AF215)*(1+(1-AG206)*(1-AF216)*(1+(1-AG206)*(1-AF217)*(1+(1-AG206)*(1-AF218))))) -> 233.9596235 | AE215: 7.018788705 | AF215: 0.05 | AG215: =(AB215-AE215)*AF215 -> 11.34704174 | AH215: 215.5937931
AA216: 2.5-3.5yr | AB216: =AH215 -> 215.5937931 | AE216: 6.467813792 | AF216: 0.05 | AG216: =(AB216-AE216)*AF216 -> 10.45629896 | AH216: 198.6696803
AA217: 3.5-4.5yr | AB217: =AH216 -> 198.6696803 | AE217: 5.960090409 | AF217: 0.05 | AG217: =(AB217-AE217)*AF217 -> 9.635479495 | AH217: 183.0741104
E218: Number of Times | AA218: 4.5-5.5yr | AB218: =AH217 -> 183.0741104 | AE218: 5.492223312 | AF218: =IF(AC204=5.5,1,5%) -> 0.05 | AG218: =(AB218-AE218)*AF218 -> 8.879094354 | AH218: =AB218+AC218+AD218-AE218-AG218 -> 168.7027927
C219: STOCK HEALTH REQUIREMENTS | E219: Number | G219: Drench | I219: Vacc. | K219: Blowfly | M219: DSE | AA219: 5.5-6.5yr | AB219: =AH218 -> 168.7027927 | AE219: 5.061083782 | AF219: =IF(AC204=6.5,100%,0) -> 1 | AG219: =(AB219-AE219)*AF219 -> 163.641709 | AH219: 0
C220: Ewes | E220: ='Merino SR Input'!E8 -> 1000 | G220: ='Merino SR Input'!F58 -> 1 | I220: ='Merino SR Input'!G58 -> 1 | K220: ='Merino SR Input'!H58 -> 1 | M220: 1.8 | AA220: Ewes | AB220: =SUM(AB215:AB219) -> 1000 | AC220: =SUM(AC213:AC217) -> 475 | AD220: =SUM(AD213:AD219) -> 0 | AE220: =SUM(AE213:AE218) -> 39.18891622 | AG220: =SUM(AG215:AG219) -> 203.9596235 | AH220: =SUM(AH214:AH218) -> 1000
C221: Ewe hoggets | E221: =AB222 -> 475 | G221: ='Merino SR Input'!F59 -> 1 | I221: ='Merino SR Input'!G59 -> 1 | K221: ='Merino SR Input'!H59 -> 1 | M221: 1.2 | AA221: d.s.e's | AB221: =AB214+AC206*(AB215+AB216+AB217+AB218) -> 1805.075532
C222: Wether weaners | E222: =AB228 -> 0 | G222: ='Merino SR Input'!F60 -> 1 | I222: ='Merino SR Input'!G60 -> 1 | K222: ='Merino SR Input'!H60 -> 1 | M222: 0.8 | AA222: Ewe Hoggets | AB222: =AB214 -> 475 | AG222: =AG214 -> 226.7903765 | AH222: =AH213 -> 475
C223: Merino lambs | E223: =AC213+AC227 -> 950 | G223: ='Merino SR Input'!F61 -> 1 | I223: ='Merino SR Input'!G61 -> 2 | K223: ='Merino SR Input'!H61 -> 0 | M223: 0
C224: Merino rams | E224: =AB244 -> 25 | G224: ='Merino SR Input'!F62 -> 2 | I224: ='Merino SR Input'!G62 -> 1 | K224: ='Merino SR Input'!H62 -> 1 | M224: 2 | AA224: WETHERS | AB224: OPENING | AC224: NATURAL | AD224: PURCHASES | AE224: DEATHS | AF224: % sold | AG224: SALES | AH224: CLOSING
AA225: AGE | AB225: NUMBERS | AC225: INCREASE | AF225: culled | AH225: NUMBERS
AA227: 0-0.5yr | AC227: =AC205*AC202/2 -> 475 | AE227: =AB227*$AG$206 -> 0 | AF227: =IF(AG205=0.5,100%,0) -> 1 | AG227: =AC227*AF227 -> 475 | AH227: =AB227+AC227+AD227-AE227-AG227 -> 0
C228: TOTAL | E228: =SUM(E220:E227) -> 2450 | G228: =SUMPRODUCT($E$220:$E$227,G220:G227) -> 2475 | I228: =SUMPRODUCT($E$220:$E$227,I220:I227) -> 3400 | K228: =SUMPRODUCT($E$220:$E$227,K220:K227) -> 1500 | M228: =SUMPRODUCT($E$220:$E$227,M220:M227) -> 2420 | AA228: 0.5-1.5yr | AB228: =AH227 -> 0 | AE228: =AB228*$AG$206 -> 0 | AF228: =IF(AG205=1.5,100%,0) -> 0 | AG228: =(AB228-AE228)*AF228 -> 0 | AH228: =AB228+AC228+AD228-AE228-AG228 -> 0
C229: TOTAL VALUE | E229: =E228*G214 -> 445322.1672 | AA229: 1.5-2.5 | AB229: =AH228 -> 0 | AE229: =AB229*$AG$206 -> 0 | AF229: =IF(AG205=2.5,100%,0) -> 0 | AG229: =(AB229-AE229)*AF229 -> 0
AA230: Wth lambs | AB230: =AB227 -> 0 | AC230: =AC227 -> 475 | AD230: 0 | AE230: =AE227 -> 0 | AG230: =AG227 -> 475 | AH230: 0
G231: Wool Cut kg/hd | I231: Total | K231: Wool Price | M231: Total | AA231: Wth hgts | AB231: =AB228 -> 0 | AC231: 0 | AD231: 0 | AE231: =AE228 -> 0 | AG231: 0 | AH231: 0
C232: SHEARING | E232: Number | I232: Greasy kg | K232: cents/kg | AA232: Wethers | AB232: =AB229 -> 0 | AC232: 0 | AD232: 0 | AE232: =AE229 -> 0 | AG232: 0 | AH232: 0
C233: Ewes | E233: =AB220-0.5*AE220 -> 980.4055419 | G233: ='Merino SR Input'!F44 -> 6.5 | I233: =G233*E233 -> 6372.636022 | K233: ='Merino SR Input'!G44 -> 734.4 | M233: =K233*G233*E233/100 -> 46800.63895 | AA233: d.s.e's | AB233: =AB231+AB232 -> 0
C234: Ewe hoggets | E234: =AB214-0.5*AE214 -> 467.875 | G234: ='Merino SR Input'!F45 -> 5.5 | I234: =G234*E234 -> 2573.3125 | K234: ='Merino SR Input'!G45 -> 734.4 | M234: =K234*G234*E234/100 -> 18898.407
C235: Wether weaners | E235: =AB228-0.5*AE228 -> 0 | G235: ='Merino SR Input'!F46 -> 5 | I235: =G235*E235 -> 0 | K235: ='Merino SR Input'!G46 -> 734.4 | M235: =K235*G235*E235/100 -> 0
C236: Lambs | E236: =AC213+AC227 -> 950 | G236: ='Merino SR Input'!F47 -> 2 | I236: =G236*E236 -> 1900 | K236: ='Merino SR Input'!G47 -> 734.4 | M236: =K236*G236*E236/100 -> 13953.6 | AA236: RAMS | AB236: OPENING | AC236: NATURAL | AD236: PURCHASES | AE236: DEATHS | AF236: % sold | AG236: SALES | AH236: CLOSING
C237: Merino rams | E237: =AB244-0.5*AE244 -> 24.625 | G237: ='Merino SR Input'!F48 -> 9.5 | I237: =G237*E237 -> 233.9375 | K237: ='Merino SR Input'!G48 -> 734.4 | M237: =K237*G237*E237/100 -> 1718.037 | AA237: AGE | AB237: NUMBERS | AC237: INCREASE | AF237: culled | AH237: NUMBERS
AA239: 0.5-1.5yr | AD239: =AB240/(1-AF239) -> 6.538387001 | AH239: =AB239+AC239+AD239-AE239-AG239 -> 6.538387001
AA240: 1.5-2.5yr | AB240: =IF(AG204=3,(AC202*AG202)/(1+(1-AG206)*(1-AF240)*(1+(1-AG206)*(1-AF241)*(1+(1-AG206)*(1-AF242)))),IF(AG204=4,(AC202*AG202)/(1+(1-AG206)*(1-AF240)*(1+(1-AG206)*(1-AF241)*(1+(1-AG206)*(1-AF242)*(1+(1-AG206)*(1-AF243))))),0)) -> 6.538387001 | AE240: =AB240*$AG$206 -> 0.19615161 | AF240: 0 | AG240: =(SUM(AB240:AD240)-AE240)*AF240 -> 0 | AH240: =AB240+AC240+AD240-AE240-AG240 -> 6.342235391
C241: TOTAL | E241: =SUM(E233:E239) -> 2422.905542 | G241: =SUMPRODUCT(E233:E234,G233:G234) -> 8945.948522 | I241: =SUM(I233:I239) -> 11079.88602 | M241: =SUM(M233:M239) -> 81370.68295 | AA241: 2.5-3.5yr | AB241: =AH240 -> 6.342235391 | AE241: =AB241*$AG$206 -> 0.1902670617 | AF241: 0 | AG241: =(SUM(AB241:AD241)-AE241)*AF241 -> 0 | AH241: =AB241+AC241+AD241-AE241-AG241 -> 6.151968329
AA242: 3.5-4.5yr | AB242: =AH241 -> 6.151968329 | AE242: =AB242*$AG$206 -> 0.1845590499 | AF242: =IF(AG204=3,100%,0) -> 0 | AG242: =(SUM(AB242:AD242)-AE242)*AF242 -> 0 | AH242: =AB242+AC242+AD242-AE242-AG242 -> 5.967409279
AA243: 4.5-5.5yr | AB243: =AH242 -> 5.967409279 | AE243: =AB243*$AG$206 -> 0.1790222784 | AF243: =IF(AG204=4,100%,0) -> 1 | AG243: =AB243-AE243 -> 5.788387001 | AH243: =AB243+AC243+AD243-AE243-AG243 -> 0
G244: Hay Cost ($/T) | I244: Kg Fed per Week | K244: No of Weeks Feeding | M244: Total Cost ($) | AB244: =AB239+AB240+AB241+AB242+AB243 -> 25 | AD244: =AD239+AD240+AD241+AD242+AD243 -> 6.538387001 | AE244: =AE239+AE240+AE241+AE242+AE243 -> 0.75 | AG244: =AG239+AG240+AG241+AG242+AG243 -> 5.788387001 | AH244: =AH239+AH240+AH241+AH242+AH243 -> 25
C245: FEEDING | E245: Number | AA245: d.s.e's | AB245: =AB244*2 -> 50
C246: Ewes | E246: ='Merino SR Input'!E70 -> 1000 | G246: ='Merino SR Input'!F70 -> 160 | I246: ='Merino SR Input'!G70 -> 2 | K246: ='Merino SR Input'!H70 -> 10 | M246: =(E246*G246*I246*K246)/1000 -> 3200
C247: Weaner | E247: ='Merino SR Input'!E71 -> 0 | G247: ='Merino SR Input'!F71 -> 0 | I247: ='Merino SR Input'!G71 -> 0 | K247: ='Merino SR Input'!H71 -> 0 | M247: =(E247*G247*I247*K247)/1000 -> 0
C248: Ewe hoggets | E248: ='Merino SR Input'!E72 -> 0 | G248: ='Merino SR Input'!F72 -> 0 | I248: ='Merino SR Input'!G72 -> 0 | K248: ='Merino SR Input'!H72 -> 0 | M248: =(E248*G248*I248*K248)/1000 -> 0
C249: Merino lambs | E249: ='Merino SR Input'!E73 -> 0 | G249: ='Merino SR Input'!F73 -> 0 | I249: ='Merino SR Input'!G73 -> 0 | K249: ='Merino SR Input'!H73 -> 0 | M249: =(E249*G249*I249*K249)/1000 -> 0
C250: Merino rams | E250: ='Merino SR Input'!E74 -> 0 | G250: ='Merino SR Input'!F74 -> 0 | I250: ='Merino SR Input'!G74 -> 0 | K250: ='Merino SR Input'!H74 -> 0 | M250: =(E250*G250*I250*K250)/1000 -> 0
G251: Grain Cost ($/T) | I251: Kg Fed per Week | K251: No of Weeks Feeding | M251: Total Cost ($)
E252: Number
C253: Weaner | E253: ='Merino SR Input'!E78 -> 475 | G253: ='Merino SR Input'!F78 -> 410 | I253: ='Merino SR Input'!G78 -> 1 | K253: ='Merino SR Input'!H78 -> 10 | M253: =(E253*G253*I253*K253)/1000 -> 1947.5
C254: Ewes | E254: ='Merino SR Input'!E79 -> 1000 | G254: ='Merino SR Input'!F79 -> 300 | I254: ='Merino SR Input'!G79 -> 2.4 | K254: ='Merino SR Input'!H79 -> 10 | M254: =(E254*G254*I254*K254)/1000 -> 7200
C255: Ewe hoggets | E255: ='Merino SR Input'!E80 -> 0 | G255: ='Merino SR Input'!F80 -> 0 | I255: ='Merino SR Input'!G80 -> 0 | K255: ='Merino SR Input'!H80 -> 0 | M255: =(E255*G255*I255*K255)/1000 -> 0
C256: Merino lambs | E256: ='Merino SR Input'!E81 -> 0 | G256: ='Merino SR Input'!F81 -> 0 | I256: ='Merino SR Input'!G81 -> 0 | K256: ='Merino SR Input'!H81 -> 0 | M256: =(E256*G256*I256*K256)/1000 -> 0
C257: Merino rams | E257: ='Merino SR Input'!E82 -> 0 | G257: ='Merino SR Input'!F82 -> 0 | I257: ='Merino SR Input'!G82 -> 0 | K257: ='Merino SR Input'!H82 -> 0 | M257: =(E257*G257*I257*K257)/1000 -> 0
C258: TOTAL FEED COST | M258: =SUM(M246:M250,M253:M257) -> 12347.5
C263: GM SENSITIVITY
C264: Gross Margin/DSE | E264: Average Greasy Wool Price (c/Kg)
G265: 550 | I265: 600 | K265: 700 | M265: 710 | O265: 750 | Q265: 800
E266: 105 | G266: =(G$265*$E$34*(1-$K$131)/100+$E266*$E$35*(1-$K$124)-($Q$170-$Q$124-$Q$131))/$Q$6 -> 29.75106344 | I266: =(I$265*$E$34*(1-$K$131)/100+$E266*$E$35*(1-$K$124)-($Q$170-$Q$124-$Q$131))/$Q$6 -> 32.0059576 | K266: =(K$265*$E$34*(1-$K$131)/100+$E266*$E$35*(1-$K$124)-($Q$170-$Q$124-$Q$131))/$Q$6 -> 36.51574592 | M266: =(M$265*$E$34*(1-$K$131)/100+$E266*$E$35*(1-$K$124)-($Q$170-$Q$124-$Q$131))/$Q$6 -> 36.96672475 | O266: =(O$265*$E$34*(1-$K$131)/100+$E266*$E$35*(1-$K$124)-($Q$170-$Q$124-$Q$131))/$Q$6 -> 38.77064008 | Q266: =(Q$265*$E$34*(1-$K$131)/100+$E266*$E$35*(1-$K$124)-($Q$170-$Q$124-$Q$131))/$Q$6 -> 41.02553423
E267: 110 | G267: 31.5308233 | I267: 33.78571746 | K267: 38.29550578 | M267: 38.74648461 | O267: 40.55039994 | Q267: 42.8052941
C268: Average Sheep Sale Price($/hd) | E268: 115 | G268: 33.31058317 | I268: 35.56547733 | K268: 40.07526565 | M268: 40.52624448 | O268: 42.33015981 | Q268: 44.58505397
E269: 120 | G269: 35.09034304 | I269: 37.3452372 | K269: 41.85502552 | M269: 42.30600435 | O269: 44.10991968 | Q269: 46.36481384
E270: 125 | G270: 36.87010291 | I270: 39.12499707 | K270: 43.63478538 | M270: 44.08576422 | O270: 45.88967954 | Q270: 48.1445737
E271: 130 | G271: 38.64986277 | I271: 40.90475693 | K271: 45.41454525 | M271: 45.86552408 | O271: 47.66943941 | Q271: 49.92433357
E272: 171.5725879 | G272: 53.44770747 | I272: 55.70260163 | K272: 60.21238994 | M272: 60.66336878 | O272: 62.4672841 | Q272: 64.72217826
E273: 140 | G273: 42.20938251 | I273: 44.46427667 | K273: 48.97406499 | M273: 49.42504382 | O273: 51.22895915 | Q273: 53.4838533
E274: 145 | G274: 43.98914237 | I274: 46.24403653 | K274: 50.75382485 | M274: 51.20480368 | O274: 53.00871901 | Q274: 55.26361317
E275: 150 | G275: 45.76890224 | I275: 48.0237964 | K275: 52.53358472 | M275: 52.98456355 | O275: 54.78847888 | Q275: 57.04337304
E276: 155 | G276: 47.54866211 | I276: 49.80355627 | K276: 54.31334459 | M276: 54.76432342 | O276: 56.56823875 | Q276: 58.82313291
C279: FLOCK STRUCTURE | E279: This table shows the number of merino sheep in each age group at mating
E280: Age Group
C281: Class of Sheep | E281: 0.5 y.o. | G281: 1.5 y.o. | I281: 2.5 y.o. | K281: 3.5 y.o. | M281: 4.5 y.o. | O281: 5.5 y.o. | Q281: 6.5 y.o.
C282: Ewes | E282: =$AB214 -> 475 | G282: =$AB215 -> 233.9596235 | I282: =$AB216 -> 215.5937931 | K282: =$AB217 -> 198.6696803 | M282: =$AB218 -> 183.0741104 | O282: =$AB219 -> 168.7027927 | Q282: 0
C283: Wethers | E283: =$AB228 -> 0 | G283: =$AB229 -> 0 | I283: 0 | K283: 0 | M283: 0 | O283: 0 | Q283: 0
C284: Rams | G284: =$AB240 -> 6.538387001 | I284: =$AB241 -> 6.342235391 | K284: =$AB242 -> 6.151968329 | M284: =$AB243 -> 5.967409279 | O284: 0 | Q284: 0

Sheet Wethers Input (hidden)
C2: ="WETHERS GROSS MARGIN - "&TEXT(m_year,"0000") -> WETHERS GROSS MARGIN - 2022
C4: GENERAL INFORMATION
C5: This represents a merino wether flock, producing 21 micron wool. Adjust wool price if different micron wool is produced. Following are the various assumptions used in the calculation of the Gross Margin. Cells with yellow highlight can be changed. No allowance has been made for pasture expenses such as seed, fertiliser and chemicals. Refer to pasture gross margins in the “Cropping Gross Margin Plan” for annual and perennial pasture costs. Use the livestock gross margin per DSE as income for the pasture gross margin.
C7: No of Wethers | E7: 1000
C9: Age Wethers sold | E9: 5.5
C10: Age Wethers bought | E10: 0.5
C13: Flock death Rate | E13: 0.03
C14: DSE rating/wether | E14: 1.2
C17: LIVESTOCK SALES | E17: Price/Hd | F17: Number | G17: Total | L17: Estimated 2022 Sheep Sale Prices
C18: Wethers | E18: 185 | F18: =ROUND(Wethers!AG220,0) -> 182 | G18: =E18*F18 -> 33670 | M18: Agricultural | N18: Pastoral
L24: Store lambs 35kg lwt | M24: 145 | N24: 140
C25: TOTAL SALES | F25: =SUM(F18:F23) -> 182 | G25: =SUM(G18:G23) -> 33670 | L25: Cast for age Wethers | M25: 175 | N25: 155
C28: LIVESTOCK PURCHASES | E28: Price/Hd | F28: Number | G28: Total
C29: Wethers | E29: 145 | F29: =ROUND(Wethers!AD220,0) -> 212 | G29: =E29*F29 -> 30740
L30: Ewe Lambs | M30: 175 | N30: 160
C32: TOTAL PURCHASES | F32: =SUM(F29:F30) -> 212 | G32: =SUM(G29:G30) -> 30740
C35: WOOL PRICE (cents/kg) | F35: =TEXT(m_year-3,"0000")&" Average (Clean)" -> 2019 Average (Clean) | G35: =TEXT(m_year-2,"0000")&" Average (Clean)" -> 2020 Average (Clean) | H35: =TEXT(m_year-1,"0000")&" Average (Clean)" -> 2021 Average (Clean) | I35: Budget Base (Clean) | J35: Budget Base (Greasy) | L35: Wool Type | M35: Budget Clean Price
E36: Cereal Zone 21 mic 68% yield | F36: 1995 | G36: 1319 | H36: 1271 | I36: 1200 | J36: =I36*I37 -> 816 | L36: 19 mic | M36: 1500
E37: Estimated wool yield | I37: 0.68 | L37: 21 mic | M37: 1200
C38: Allow 90% to account for lower value of bellies, skirtings etc. | J38: =J36*0.9 -> 734.4 | L38: 22 mic | M38: 1150
C42: WOOL SALES - SHEARING | F42: Wool Cut | G42: Wool Price
E43: Number | F43: kg/hd | G43: cents/kg
C44: Wethers | E44: =Wethers!E233 -> 970 | F44: 7.5 | G44: =J38 -> 734.4
C52: TOTAL | E52: =SUM(E44:E51) -> 970 | F52: =SUMPRODUCT(E44:E50,F44:F50) -> 7275
C55: STOCK HEALTH REQUIREMENTS | E55: =HYPERLINK("http://paraboss.com.au","for more info on drench, lice and blowfly product selection refer to www.paraboss.com.au") -> for more info on drench, lice and blowfly product selection refer to www.paraboss.com.au
G56: Number of times
E57: Number | F57: Drench | G57: Vacc. | H57: Blowfly
C58: Wethers | E58: =Wethers!E220 -> 1000 | F58: 1 | G58: 1 | H58: 1
C64: TOTAL | E64: =SUM(E58:E62) -> 1000 | F64: =SUMPRODUCT($E$58:$E$62,F58:F62) -> 1000 | G64: =SUMPRODUCT($E$58:$E$62,G58:G62) -> 1000 | H64: =SUMPRODUCT($E$58:$E$62,H58:H62) -> 1000
C67: FEEDING
C68: HAY | F68: Hay | G68: Kgs Fed | H68: No Weeks | I68: Total
E69: Number | F69: Cost ($/T) | G69: per Week | H69: of Feeding | I69: Cost ($)
C70: Cereal Hay | E70: =Wethers!E220 -> 1000 | F70: 160 | G70: 1.5 | H70: 10 | I70: =(H70*G70*E70)/1000*F70 -> 2400
C71: Legume Hay | I71: =(H71*G71*E71)/1000*F71 -> 0
I72: =(H72*G72*E72)/1000*F72 -> 0
C74: GRAIN | F74: Grain | G74: Kgs Fed | H74: No Weeks | I74: Total
E75: Number | F75: Cost ($/T) | G75: per Week | H75: of Feeding | I75: Cost ($)
C76: Lupins | E76: =Wethers!E220 -> 1000 | F76: 320 | I76: =(H76*G76*E76)/1000*F76 -> 0
C77: Barley | I77: =(H77*G77*E77)/1000*F77 -> 0
C78: Oats | I78: =(H78*G78*E78)/1000*F78 -> 0
H80: Total Feed Cost | I80: =SUM(I70:I72,I76:I78) -> 2400

Sheet Wethers (hidden)
C1: WHETHERS
C2: ="WETHERS GROSS MARGIN - "&TEXT(m_year,"0000") -> WETHERS GROSS MARGIN - 2022
C4: ASSUMPTIONS
C6: Ave Wether Fibre Diameter | E6: 21 | O6: Gross Margin per Ha | Q6: =Q172/E198 -> 152.0842688
C7: Number of Wethers | E7: ='Wethers Input'!$E$7 -> 1000 | O7: Gross Margin per DSE | Q7: =Q174 -> 25.34737813
C8: Stocking Rate (DSE/Ha) | E8: =E196 -> 6 | O8: Gross Margin/Wether | Q8: =Q172/E199 -> 30.41685375
C32: INCOME | Q32: $
C34: Wool (kg greasy) | E34: =I234 -> 7275 | G34: kg | I34: av price | K34: ='Wethers Input'!J38 -> 734.4 | M34: c/kg | Q34: =E34*K34/100 -> 53427.6
C35: Sales | E35: =E211 -> 182.3653636 | G35: animals | I35: av price | K35: =G210 -> 185 | M35: /head | Q35: =K35*E35 -> 33737.59227
C37: Gross Income | Q37: =SUM(Q34:Q35) -> 87165.19227
AA45: STOCK VALUE AND D.S.E REQUIREMENT
C46: VARIABLE COSTS
C47: Shearing | K47: Rate
C48: Shearing | E48: =E234 -> 970 | G48: sheep | I48: Reset Rate> | J48: =GM_INFO!C79 | K48: =GM_INFO!C79 -> 331.98 | M48: /100 | Q48: =K48/100*ROUND(E48,0) -> 3220.206
C50: Shed labour | E50: 4 | G50: days | I50: Reset Rate> | J50: =GM_INFO!C81 | K50: =GM_INFO!C81 -> 250.95 | M50: /day | Q50: =K50*ROUND(E50,0) -> 1003.8
C51: Woolclasser | E51: 2 | G51: days | I51: Reset Rate> | J51: =GM_INFO!C82 | K51: =GM_INFO!C82 -> 319.91 | M51: /day | Q51: =K51*E51 -> 639.82
C52: Superannuation (on ord wages only) | I52: Reset Rate> | J52: =GM_INFO!C83 | K52: =GM_INFO!C83 -> 0.1 | M52: wages | Q52: =(Q48+Q50+Q51)*K52 -> 486.3826
C53: W/Cover (incl. super + otime etc) | I53: Reset Rate> | J53: =GM_INFO!C84 | K53: =GM_INFO!C84 -> 0.04 | M53: total | Q53: =(Q48+Q49+Q50+Q51+Q52)*K53 -> 214.008344
C54: Wool packs | E54: =E122 -> 42.79411765 | G54: packs | I54: Reset Rate> | J54: =GM_INFO!C77 | K54: =GM_INFO!C77 -> 16 | M54: /pack | Q54: =K54*ROUND(E54,0) -> 688
C55: Shed sundries | E55: =E48 -> 970 | G55: sheep | I55: Reset Rate> | J55: =GM_INFO!C85 | K55: =GM_INFO!C85 -> 0.2 | M55: /head | Q55: =K55*ROUND(E55,0) -> 194
C56: Lice control | E56: =E48 -> 970 | G56: sheep | I56: Reset Rate> | J56: =GM_INFO!C66 | K56: =GM_INFO!C66 -> 1.695 | M56: /head | Q56: =K56*ROUND(E56,0) -> 1644.15
C57: Crutching | E57: =E228 -> 1000 | G57: sheep | I57: Reset Rate> | J57: =GM_INFO!C87 | K57: =GM_INFO!C87 -> 96.27 | M57: /100 | Q57: =K57/100*ROUND(E57,0) -> 962.7
AS79: RAMS | AT79: OPENING | AU79: NATURAL | AV79: PURCHASES | AW79: DEATHS | AX79: % sold | AY79: SALES | AZ79: CLOSING
AS80: AGE | AT80: NUMBERS | AU80: INCREASE | AX80: culled | AZ80: NUMBERS
AS82: 0.5-1.5yr | AV82: =AT83/(1-AX82) -> 0 | AW82: =AT82*$R$81 -> 0 | AZ82: =AT82+AU82+AV82-AW82-AY82 -> 0
AS83: 1.5-2.5yr | AT83: =IF(AY53=3,(AU51*AY51)/(1+(1-AY55)*(1-AX83)*(1+(1-AY55)*(1-AX84)*(1+(1-AY55)*(1-AX85)))),IF(AY53=4,(AU51*AY51)/(1+(1-AY55)*(1-AX83)*(1+(1-AY55)*(1-AX84)*(1+(1-AY55)*(1-AX85)*(1+(1-AY55)*(1-AX86))))),0)) -> 0 | AW83: =AT83*$R$81 -> 0 | AZ83: =AT83+AU83+AV83-AW83-AY83 -> 0
AS84: 2.5-3.5yr | AT84: =AZ83 -> 0 | AW84: =AT84*$R$81 -> 0 | AZ84: =AT84+AU84+AV84-AW84-AY84 -> 0
AS85: 3.5-4.5yr | AT85: =AZ84 -> 0 | AW85: =AT85*$R$81 -> 0 | AX85: =IF(AY53=3,100%,0) -> 0 | AY85: =(AT85-AW85)*AX85 -> 0 | AZ85: =AT85+AU85+AV85-AW85-AY85 -> 0
AS86: 4.5-5.5yr | AT86: =AZ85 -> 0 | AW86: =AT86*$R$81 -> 0 | AX86: =IF(AY53=4,100%,0) -> 0 | AY86: =AT86-AW86 -> 0 | AZ86: =AT86+AU86+AV86-AW86-AY86 -> 0
AT87: =AT82+AT83+AT84+AT85+AT86 -> 0 | AV87: =AV82+AV83+AV84+AV85+AV86 -> 0 | AW87: =AW82+AW83+AW84+AW85+AW86 -> 0 | AY87: =AY82+AY83+AY84+AY85+AY86 -> 0 | AZ87: =AZ82+AZ83+AZ84+AZ85+AZ86 -> 0
AS88: d.s.e's | AT88: =AT87*AE49 -> 0
C89: Animal Health
C90: Drench | E90: =G228 -> 1000 | G90: sheep | I90: Reset Rate> | J90: =GM_INFO!C69 | K90: =GM_INFO!C69 -> 0.552 | M90: /head | Q90: =K90*ROUND(E90,0) -> 552
C91: Vaccinate | E91: =I228 -> 1000 | G91: sheep | I91: Reset Rate> | J91: =GM_INFO!C72 | K91: =GM_INFO!C72 -> 0.28 | M91: /head | Q91: =K91*ROUND(E91,0) -> 280
C92: Blowfly control | E92: =K228 -> 1000 | G92: sheep | I92: Reset Rate> | J92: =GM_INFO!C76 | K92: =GM_INFO!C76 -> 1.434 | M92: /head | Q92: =K92*ROUND(E92,0) -> 1434
C93: Other expenses | G93: sheep | I93: Reset Rate> | M93: /head | Q93: =K93*ROUND(E93,0) -> 0
C104: Stock purchases
C105: Purchases | E105: =ROUND(E213,0) -> 212 | G105: wethers | I105: Reset Rate> | J105: ='Wethers Input'!E29 | K105: ='Wethers Input'!E29 -> 145 | M105: /head | Q105: =K105*E105 -> 30740
C117: Sale Costs
C118: Freight
C119: Livestock | E119: =E211+E213 -> 394.7307272 | G119: sheep | I119: Reset Rate> | J119: =GM_INFO!B161 | K119: =GM_INFO!B161 -> 4 | M119: /head | Q119: =K119*ROUND(E119,0) -> 1580
I120: Reset Rate> | M120: /head
I121: Reset Rate> | M121: /head
C122: Wool | E122: =I234/170 -> 42.79411765 | G122: bales | I122: Reset Rate> | J122: =GM_INFO!B164 | K122: =GM_INFO!B164 -> 15 | M122: /bale | Q122: =K122*ROUND(E122,0) -> 645
C123: Stock selling charges
C124: Commission/insurance | I124: Reset Rate> | J124: =GM_INFO!C98 | K124: =GM_INFO!C98 -> 0.055 | M124: gross $ | Q124: =K124*Q35 -> 1855.567575
C125: Yard fees | E125: =E211 -> 182.3653636 | G125: sheep | I125: Reset Rate> | J125: =GM_INFO!C99 | K125: =GM_INFO!C99 -> 0.85 | M125: /head | Q125: =K125*ROUND(E125,0) -> 154.7
C126: Levy trans-sheep | E126: =E211 -> 182.3653636 | G126: sheep | I126: Reset Rate> | J126: =GM_INFO!C100 | K126: =GM_INFO!C100 -> 0.2 | M126: /head | Q126: =K126*ROUND(E126,0) -> 36.4
C128: SA sheep industry levy | E128: =E211 -> 182.3653636 | G128: sheep | I128: Reset Rate> | J128: =GM_INFO!C102 | K128: =GM_INFO!C102 -> 0.67 | M128: /head | Q128: =K128*ROUND(E128,0) -> 121.94
C129: Wool selling charges
C130: Brokerage/testing/insurance | I130: Reset Rate> | J130: =GM_INFO!C103 | K130: =GM_INFO!C103 -> 0.27 | M130: /kg | Q130: =K130*E34 -> 1964.25
C131: Wool levy | I131: Reset Rate> | J131: =GM_INFO!C104 | K131: =GM_INFO!C104 -> 0.015 | M131: gross | Q131: =K131*Q34 -> 801.414
C143: Feed and Other Costs
C144: Hand Feeding | Q144: ='Wethers Input'!I80 -> 2400
C146: Insurance | E146: =E239*G239 -> 165000 | G146: value | I146: Reset Rate> | J146: =GM_INFO!B157 | K146: =GM_INFO!B157 -> 2 | M146: /$'000 | Q146: =K146/1000*E146 -> 330
C147: Water | E147: =$E$197 -> 1200 | G147: DSE's | I147: Reset Rate> | J147: =GM_INFO!G129 | K147: =GM_INFO!G129 -> 2.5 | M147: /DSE's | Q147: =K147*E147 -> 3000
C148: Veh Fuel, R&M | E148: =$E$197 -> 1200 | G148: DSE's | I148: Reset Rate> | J148: =GM_INFO!G130 | K148: =GM_INFO!G130 -> 1 | M148: /DSE's | Q148: =K148*E148 -> 1200
C149: Other | E149: =$E$197 -> 1200 | G149: DSE's | I149: Reset Rate> | J149: =GM_INFO!G131 | K149: =GM_INFO!G131 -> 0.5 | M149: /DSE's | Q149: =K149*E149 -> 600
C170: TOTAL VARIABLE COSTS | Q170: =SUM(Q48:Q166) -> 56748.33852
C172: GROSS MARGIN TOTAL | Q172: =Q37-Q170 -> 30416.85375
C174: GROSS MARGIN/DSE | Q174: =Q172/E197 -> 25.34737813
C194: PRODUCTION DATA
C196: Stocking rate (DSE/Ha) | E196: 6 | K196: Culling Rate (% from each group) | Q196: Stock | AA196: SHEEP GROSS MARGIN
C197: Total DSE's | E197: ='Wethers Input'!E7*'Wethers Input'!E14 -> 1200 | K197: Age Group | M197: Ewes | O197: Wethers | Q197: No's
C198: SHEEP GRAZING AREA | E198: =E197/E196 -> 200 | K198: 0.5 | O198: =AF214 -> 0 | Q198: =AH214 -> 212.3653636
C199: Number of wethers | E199: ='Wethers Input'!E7 -> 1000 | K199: 1.5 | O199: 0 | Q199: 205.9944027
C200: Flock death rate | E200: ='Wethers Input'!E13 -> 0.03 | K200: 2.5 | O200: 0 | Q200: 199.8145706
C201: Age wethers bought | E201: ='Wethers Input'!E10 -> 0.5 | K201: 3.5 | O201: 0 | Q201: 193.8201335
C202: Age wethers culled | E202: ='Wethers Input'!E9 -> 5.5 | K202: 4.5 | O202: 0 | Q202: 188.0055295 | AA202: No of wethers | AC202: ='Wethers Input'!E7 -> 1000
B203: =VLOOKUP(r[0]c3&"No Ops",CHOOSE({1,2},tbl_ops[Name]&tbl_ops[Category],INDIRECT("tbl_ops["&var_crop&"]")),2,0) | K203: 5.5 | O203: 1 | Q203: 0 | AA203: Age wethers purchased | AC203: =E201 -> 0.5
B204: =VLOOKUP(r[0]c3&"No Ops",CHOOSE({1,2},tbl_ops[Name]&tbl_ops[Category],INDIRECT("tbl_ops["&var_crop&"]")),2,0) | AA204: Age wethers sold | AC204: =E202 -> 5.5
B205: =VLOOKUP(r[0]c3&"No Ops",CHOOSE({1,2},tbl_ops[Name]&tbl_ops[Category],INDIRECT("tbl_ops["&var_crop&"]")),2,0) | AA205: Flock death rate | AC205: =E200 -> 0.03
B206: =VLOOKUP(r[0]c3&"No Ops",CHOOSE({1,2},tbl_ops[Name]&tbl_ops[Category],INDIRECT("tbl_ops["&var_crop&"]")),2,0) | AA206: dse/wether | AC206: ='Wethers Input'!E14 -> 1.2
B208: =VLOOKUP(r[0]c3&var_rain,CHOOSE({1,2},tbl_ops[Name]&tbl_ops[Rainfall],INDIRECT("tbl_ops["&var_crop&"]")),2,0)
B209: =VLOOKUP(r[0]c3&var_rain,CHOOSE({1,2},tbl_ops[Name]&tbl_ops[Rainfall],INDIRECT("tbl_ops["&var_crop&"]")),2,0) | C209: SALES | E209: Number | G209: Price/hd | I209: Age | K209: Total
B210: =VLOOKUP(r[0]c3&var_rain,CHOOSE({1,2},tbl_ops[Name]&tbl_ops[Rainfall],INDIRECT("tbl_ops["&var_crop&"]")),2,0) | C210: c.f.a wethers | E210: =AG220 -> 182.3653636 | G210: ='Wethers Input'!E18 -> 185 | I210: =E202 -> 5.5 | K210: =ROUND(E210,0)*G210 -> 33670
B211: =VLOOKUP(r[0]c3&var_rain,CHOOSE({1,2},tbl_ops[Name]&tbl_ops[Rainfall],INDIRECT("tbl_ops["&var_crop&"]")),2,0) | C211: TOTAL | E211: =E210 -> 182.3653636 | K211: =K210 -> 33670 | AA211: WETHERS | AB211: OPENING | AC211: NATURAL | AD211: PURCHASES | AE211: DEATHS | AF211: % sold | AG211: SALES | AH211: CLOSING
C212: PURCHASES | E212: Number | G212: Price/hd | I212: Age | K212: Total | AA212: AGE | AB212: NUMBERS | AC212: INCREASE | AF212: culled | AH212: NUMBERS
C213: Wethers | E213: =AD220 -> 212.3653636 | G213: ='Wethers Input'!E29 -> 145 | I213: =E201 -> 0.5 | K213: =ROUND(E213,0)*G213 -> 30740
AA214: 0-0.5yr | AD214: =IF(AC203=0.5,AB215-AE214-AG214,0) -> 212.3653636 | AE214: =AB214*$AC$205 -> 0 | AF214: =IF(AC204=0.5,100%,0) -> 0 | AG214: =AC214*AF214 -> 0 | AH214: =AB214+AC214+AD214-AE214-AG214 -> 212.3653636
AA215: 0.5-1.5yr | AB215: =IF(AC203=0.5,AC202/(1+(1-AC205)*(1-AF215)*(1+(1-AC205)*(1-AF216)*(1+(1-AC205)*(1-AF217)*(1+(1-AC205)*(1-AF218))))),0) -> 212.3653636 | AD215: =IF(AC203=1.5,AB216-AE215-AG215,0) -> 0 | AE215: 6.370960909 | AF215: =IF(AC204=1.5,100%,0) -> 0 | AG215: =(AB215-AE215)*AF215 -> 0 | AH215: 205.9944027
AA216: 1.5-2.5yr | AB216: =IF(AC203=1.5,AC202/(1+(1-AC205)*(1-AF216)*(1+(1-AC205)*(1-AF217)*(1+(1-AC205)*(1-AF218)))),AH215) -> 205.9944027 | AE216: 6.179832081 | AF216: =IF(AC204=2.5,100%,0) -> 0 | AG216: =(AB216-AE216)*AF216 -> 0 | AH216: 199.8145706
AA217: 2.5-3.5yr | AB217: =AH216 -> 199.8145706 | AE217: 5.994437119 | AF217: =IF(AC204=3.5,100%,0) -> 0 | AG217: =(AB217-AE217)*AF217 -> 0 | AH217: 193.8201335
E218: Number of Times | AA218: 3.5-4.5yr | AB218: =AH217 -> 193.8201335 | AE218: 5.814604005 | AF218: =IF(AC204=4.5,100%,0) -> 0 | AG218: =(AB218-AE218)*AF218 -> 0 | AH218: 188.0055295
C219: STOCK HEALTH REQUIREMENTS | E219: Number | G219: Drench | I219: Vacc. | K219: Blowfly | AA219: 4.5-5.5yr | AB219: =AH218 -> 188.0055295 | AE219: 5.640165885 | AF219: =IF(AC204=5.5,100%,0) -> 1 | AG219: =(AB219-AE219)*AF219 -> 182.3653636 | AH219: 0
C220: Wethers | E220: =ROUND('Wethers Input'!E7,0) -> 1000 | G220: ='Wethers Input'!F58 -> 1 | I220: ='Wethers Input'!G58 -> 1 | K220: ='Wethers Input'!H58 -> 1 | AA220: Total | AB220: =SUM(AB215:AB219) -> 1000 | AD220: =SUM(AD214:AD219) -> 212.3653636 | AE220: =SUM(AE214:AE219) -> 30 | AG220: =SUM(AG214:AG219) -> 182.3653636 | AH220: =SUM(AH214:AH219) -> 1000
AA221: d.s.e's | AB221: =AB220*AC206 -> 1200
C228: TOTAL | E228: =SUM(E220:E227) -> 1000 | G228: =SUMPRODUCT($E$220:$E$227,G220:G227) -> 1000 | I228: =SUMPRODUCT($E$220:$E$227,I220:I227) -> 1000 | K228: =SUMPRODUCT($E$220:$E$227,K220:K227) -> 1000
G231: Wool Cut kg/hd | I231: Total | K231: Wool Price
C232: SHEARING | E232: Number | I232: Greasy kg | K232: cents/kg
C233: Wethers | E233: =AB220-AE220 -> 970 | G233: ='Wethers Input'!F44 -> 7.5 | I233: =G233*E233 -> 7275 | K233: ='Wethers Input'!G44 -> 734.4
C234: TOTAL | E234: =E233 -> 970 | I234: =I233 -> 7275
C237: STOCK VALUE | G237: Value
E238: Number | G238: $/head
C239: Wethers | E239: =E199 -> 1000 | G239: =(G213+G210)/2 -> 165
C240: TOTAL | E240: =E239 -> 1000
G244: Hay Cost ($/T) | I244: Kg Fed per Week | K244: No of Weeks Feeding | M244: Total Cost ($)
C245: FEEDING | E245: Number
C246: Wethers | E246: ='Wethers Input'!E70 -> 1000 | G246: ='Wethers Input'!F70 -> 160 | I246: ='Wethers Input'!G70 -> 1.5 | K246: ='Wethers Input'!H70 -> 10 | M246: =(E246*G246*I246*K246)/1000 -> 2400
E247: ='Wethers Input'!E71 -> 0 | G247: ='Wethers Input'!F71 -> 0 | I247: ='Wethers Input'!G71 -> 0 | K247: ='Wethers Input'!H71 -> 0 | M247: =(E247*G247*I247*K247)/1000 -> 0
E248: ='Wethers Input'!E72 -> 0 | G248: ='Wethers Input'!F72 -> 0 | I248: ='Wethers Input'!G72 -> 0 | K248: ='Wethers Input'!H72 -> 0 | M248: =(E248*G248*I248*K248)/1000 -> 0
G249: Grain Cost ($/T) | I249: Kg Fed per Week | K249: No of Weeks Feeding | M249: Total Cost ($)
E250: Number
C251: Wethers | E251: ='Wethers Input'!E76 -> 1000 | G251: ='Wethers Input'!F76 -> 320 | I251: ='Wethers Input'!G76 -> 0 | K251: ='Wethers Input'!H76 -> 0 | M251: =(E251*G251*I251*K251)/1000 -> 0
E252: ='Wethers Input'!E77 -> 0 | G252: ='Wethers Input'!F77 -> 0 | I252: ='Wethers Input'!G77 -> 0 | K252: ='Wethers Input'!H77 -> 0 | M252: =(E252*G252*I252*K252)/1000 -> 0
E253: ='Wethers Input'!E78 -> 0 | G253: ='Wethers Input'!F78 -> 0 | I253: ='Wethers Input'!G78 -> 0 | K253: ='Wethers Input'!H78 -> 0 | M253: =(E253*G253*I253*K253)/1000 -> 0
C254: TOTAL FEED COST | M254: =SUM(M246:M248,M251:M253) -> 2400
C259: GM SENSITIVITY
C260: Gross Margin/DSE | E260: Average Greasy Wool Price (c/Kg)
G261: 550 | I261: 600 | K261: 700 | M261: 710 | O261: 750 | Q261: 800
E262: 160 | G262: =(G$261*$E$34*(1-$K$131)/100+$E262*$E$35*(1-$K$124)-($Q$170-$Q$124-$Q$131))/$E$197 -> 10.74549878 | I262: =(I$261*$E$34*(1-$K$131)/100+$E262*$E$35*(1-$K$124)-($Q$170-$Q$124-$Q$131))/$E$197 -> 13.73128003 | K262: =(K$261*$E$34*(1-$K$131)/100+$E262*$E$35*(1-$K$124)-($Q$170-$Q$124-$Q$131))/$E$197 -> 19.70284253 | M262: =(M$261*$E$34*(1-$K$131)/100+$E262*$E$35*(1-$K$124)-($Q$170-$Q$124-$Q$131))/$E$197 -> 20.29999878 | O262: =(O$261*$E$34*(1-$K$131)/100+$E262*$E$35*(1-$K$124)-($Q$170-$Q$124-$Q$131))/$E$197 -> 22.68862378 | Q262: =(Q$261*$E$34*(1-$K$131)/100+$E262*$E$35*(1-$K$124)-($Q$170-$Q$124-$Q$131))/$E$197 -> 25.67440503
E263: 165 | G263: 11.4635624 | I263: 14.44934365 | K263: 20.42090615 | M263: 21.0180624 | O263: 23.4066874 | Q263: 26.39246865
C264: Average Sheep Sale Price($/hd) | E264: 170 | G264: 12.18162602 | I264: 15.16740727 | K264: 21.13896977 | M264: 21.73612602 | O264: 24.12475102 | Q264: 27.11053227
E265: 175 | G265: 12.89968964 | I265: 15.88547089 | K265: 21.85703339 | M265: 22.45418964 | O265: 24.84281464 | Q265: 27.82859589
E266: 180 | G266: 13.61775326 | I266: 16.60353451 | K266: 22.57509701 | M266: 23.17225326 | O266: 25.56087826 | Q266: 28.54665951
E267: 185 | G267: 14.33581688 | I267: 17.32159813 | K267: 23.29316063 | M267: 23.89031688 | O267: 26.27894188 | Q267: 29.26472313
E268: 190 | G268: 15.0538805 | I268: 18.03966175 | K268: 24.01122425 | M268: 24.6083805 | O268: 26.9970055 | Q268: 29.98278675
E269: 195 | G269: 15.77194411 | I269: 18.75772536 | K269: 24.72928786 | M269: 25.32644411 | O269: 27.71506911 | Q269: 30.70085036
E270: 200 | G270: 16.49000773 | I270: 19.47578898 | K270: 25.44735148 | M270: 26.04450773 | O270: 28.43313273 | Q270: 31.41891398
E271: 205 | G271: 17.20807135 | I271: 20.1938526 | K271: 26.1654151 | M271: 26.76257135 | O271: 29.15119635 | Q271: 32.1369776
E272: 210 | G272: 17.92613497 | I272: 20.91191622 | K272: 26.88347872 | M272: 27.48063497 | O272: 29.86925997 | Q272: 32.85504122

Sheet Cleanskin Sheep Input (hidden)
C2: ="CLEANSKIN SHEEP GROSS MARGIN - "&TEXT(m_year,"0000") -> CLEANSKIN SHEEP GROSS MARGIN - 2022
C4: GENERAL INFORMATION
C5: This represents a fully wool shedding self-replacing flock, with no shearing, crutching or lice control. Assumes only one lambing each year. Following are the various assumptions used in the calculation of the Gross Margin. Cells with yellow highlight can be changed. No allowance has been made for pasture expenses such as seed, fertiliser and chemicals. Refer to pasture gross margins in the “Cropping Gross Margin Plan” for annual and perennial pasture costs. Use the livestock gross margin per DSE as income for the pasture gross margin.
C7: Ewes mated | E7: 1000
C8: Age ewes 1st mating | E8: 1 | L8: Average Weaning Perentage
C9: Age ewes sold | E9: 6.5 | M9: Agricultural | N9: Pastoral
C10: Av Weaning % | E10: 1.5 | L10: Av % | M10: 1.5 | N10: 1.3
C11: Ram percentage | E11: 0.025
C12: Years Rams Kept | E12: 4
C13: Flock death Rate | E13: 0.03
C17: LIVESTOCK SALES | E17: Price/Hd | F17: Number | G17: Total | L17: Estimated 2022 Sheep Sale Prices
C18: c.f.a Ewes | E18: 170 | F18: ='Cleanskin Sheep'!AG220 -> 203.9596235 | G18: =E18*ROUND(F18,0) -> 34680 | M18: Agricultural | N18: Pastoral
C19: c.f.a Rams | E19: 130 | F19: ='Cleanskin Sheep'!AG244 -> 5.788387001 | G19: =E19*ROUND(F19,0) -> 780 | L19: Store lambs 35kg lwt | M19: 155 | N19: 145
C20: ewe hoggets | E20: 240 | F20: ='Cleanskin Sheep'!AG222 -> 493.5403765 | G20: =E20*ROUND(F20,0) -> 118560 | L20: Wether lambs 55 kg lwt | M20: 200 | N20: 190
C21: wether lambs | E21: 210 | F21: ='Cleanskin Sheep'!AG230 -> 750 | G21: =E21*ROUND(F21,0) -> 157500 | L21: Cast for age ewes | M21: 170 | N21: 150
L22: Cast for age rams | M22: 140 | N22: 120
L24: Cast for age rams | M24: 140 | N24: 120
C25: TOTAL SALES | F25: =SUM(F18:F23) -> 1453.288387 | G25: =SUM(G18:G23) -> 311520
C28: LIVESTOCK PURCHASES | E28: Price/Hd | F28: Number | G28: Total
C30: Rams | E30: 1850 | F30: =ROUND('Cleanskin Sheep'!AD244,0) -> 7 | G30: =E30*F30 -> 12950
C32: TOTAL PURCHASES | F32: =SUM(F29:F30) -> 7 | G32: =SUM(G29:G30) -> 12950
C54: STOCK HEALTH REQUIREMENTS | E54: =HYPERLINK("http://paraboss.com.au","for more info on drench, lice and blowfly product selection refer to www.paraboss.com.au") -> for more info on drench, lice and blowfly product selection refer to www.paraboss.com.au
G55: Number of times
E56: Number | F56: Drench | G56: Vacc. | H56: Blowfly | I56: Lice
C57: Ewes | E57: ='Cleanskin Sheep'!E220 -> 1000 | F57: 1 | G57: 1
C58: Ewe hoggets | E58: ='Cleanskin Sheep'!E221 -> 750 | F58: 1 | G58: 1
C59: Wether weaners | E59: ='Cleanskin Sheep'!E222 -> 0 | F59: 1 | G59: 1
C60: Lambs | E60: ='Cleanskin Sheep'!E223 -> 1500 | F60: 1 | G60: 2
C61: Rams | E61: ='Cleanskin Sheep'!E224 -> 25 | F61: 2 | G61: 1
C63: TOTAL | E63: =SUM(E57:E61) -> 3275 | F63: =SUMPRODUCT($E$57:$E$61,F57:F61) -> 3300 | G63: =SUMPRODUCT($E$57:$E$61,G57:G61) -> 4775 | H63: =SUMPRODUCT($E$57:$E$61,H57:H61) -> 0 | I63: =SUMPRODUCT($E$57:$E$61,I57:I61) -> 0
C66: FEEDING
C67: HAY | F67: Hay | G67: Kgs Fed | H67: No Weeks | I67: Total
E68: Number | F68: Cost ($/T) | G68: per Week | H68: of Feeding | I68: Cost ($)
C69: Hay | E69: ='Cleanskin Sheep'!E220 -> 1000 | F69: 160 | G69: 2 | H69: 10 | I69: =(H69*G69*E69)/1000*F69 -> 3200
I70: 0
I71: 0
I72: 0
I73: 0
I74: 0
C76: GRAIN | F76: Grain | G76: Kgs Fed | H76: No Weeks | I76: Total
E77: Number | F77: Cost ($/T) | G77: per Week | H77: of Feeding | I77: Cost ($)
C78: Oats/barley | E78: ='Cleanskin Sheep'!E220 -> 1000 | F78: 300 | G78: 2.4 | H78: 10 | I78: =(H78*G78*E78)/1000*F78 -> 7200
C79: Lupins | E79: ='Cleanskin Sheep'!E221 -> 750 | F79: 410 | G79: 1 | H79: 10 | I79: =(H79*G79*E79)/1000*F79 -> 3075
I80: =(H80*G80*E80)/1000*F80 -> 0
I81: =(H81*G81*E81)/1000*F81 -> 0
I82: =(H82*G82*E82)/1000*F82 -> 0
H84: Total Feed Cost | I84: =SUM(I69:I74,I78:I82) -> 13475

Sheet Cleanskin Sheep (hidden)
C1: CLEANSKIN SHEEP
C2: =UPPER(Var_Animal)&" GROSS MARGIN - "&TEXT(m_year,"0000") -> CLEANSKIN SHEEP GROSS MARGIN - 2022
C4: ASSUMPTIONS
O6: Total DSE's | Q6: =E197 -> 2950
C7: No. of breeding ewes | E7: ='Cleanskin Sheep Input'!$E$7 -> 1000 | O7: Stocking Rate (DSE/Ha) | Q7: =E196 -> 6
C32: INCOME | Q32: $
C35: Sales | E35: =ROUND(E214,0) -> 1453 | G35: animals | I35: av price | K35: =G214 -> 214.3552531 | M35: /head | Q35: =I214 -> 311520
C37: Gross Income | Q37: =SUM(Q34:Q35) -> 311520
AA45: STOCK VALUE AND D.S.E REQUIREMENT
C46: VARIABLE COSTS
C75: Marking | K75: Rate
C76: Lamb marking | E76: =E199*E203 -> 1500 | G76: lambs | I76: Reset Rate> | J76: =GM_INFO!C91 | K76: =GM_INFO!C91 -> 1.25 | M76: /head | Q76: =K76*ROUND(E76,0) -> 1875
C77: Ear tags | E77: =E76 -> 1500 | G77: lambs | I77: Reset Rate> | J77: =GM_INFO!C92 | K77: =GM_INFO!C92 -> 0.3 | M77: /head | Q77: =K77*ROUND(E77,0) -> 450
AS79: RAMS | AT79: OPENING | AU79: NATURAL | AV79: PURCHASES | AW79: DEATHS | AX79: % sold | AY79: SALES | AZ79: CLOSING
AS80: AGE | AT80: NUMBERS | AU80: INCREASE | AX80: culled | AZ80: NUMBERS
AS82: 0.5-1.5yr | AV82: =AT83/(1-AX82) -> 0 | AW82: =AT82*$R$81 -> 0 | AZ82: =AT82+AU82+AV82-AW82-AY82 -> 0
AS83: 1.5-2.5yr | AT83: =IF(AY53=3,(AU51*AY51)/(1+(1-AY55)*(1-AX83)*(1+(1-AY55)*(1-AX84)*(1+(1-AY55)*(1-AX85)))),IF(AY53=4,(AU51*AY51)/(1+(1-AY55)*(1-AX83)*(1+(1-AY55)*(1-AX84)*(1+(1-AY55)*(1-AX85)*(1+(1-AY55)*(1-AX86))))),0)) -> 0 | AW83: =AT83*$R$81 -> 0 | AZ83: =AT83+AU83+AV83-AW83-AY83 -> 0
AS84: 2.5-3.5yr | AT84: =AZ83 -> 0 | AW84: =AT84*$R$81 -> 0 | AZ84: =AT84+AU84+AV84-AW84-AY84 -> 0
AS85: 3.5-4.5yr | AT85: =AZ84 -> 0 | AW85: =AT85*$R$81 -> 0 | AX85: =IF(AY53=3,100%,0) -> 0 | AY85: =(AT85-AW85)*AX85 -> 0 | AZ85: =AT85+AU85+AV85-AW85-AY85 -> 0
AS86: 4.5-5.5yr | AT86: =AZ85 -> 0 | AW86: =AT86*$R$81 -> 0 | AX86: =IF(AY53=4,100%,0) -> 0 | AY86: =AT86-AW86 -> 0 | AZ86: =AT86+AU86+AV86-AW86-AY86 -> 0
AT87: =AT82+AT83+AT84+AT85+AT86 -> 0 | AV87: =AV82+AV83+AV84+AV85+AV86 -> 0 | AW87: =AW82+AW83+AW84+AW85+AW86 -> 0 | AY87: =AY82+AY83+AY84+AY85+AY86 -> 0 | AZ87: =AZ82+AZ83+AZ84+AZ85+AZ86 -> 0
AS88: d.s.e's | AT88: =AT87*AE49 -> 0
C89: Animal Health
C90: Drench | E90: =G228 -> 3300 | G90: sheep | I90: Reset Rate> | J90: =GM_INFO!C69 | K90: =GM_INFO!C69 -> 0.552 | M90: /head | Q90: =K90*ROUND(E90,0) -> 1821.6
C91: Vaccinate | E91: =I228 -> 4775 | G91: sheep | I91: Reset Rate> | J91: =GM_INFO!C72 | K91: =GM_INFO!C72 -> 0.28 | M91: /head | Q91: =K91*ROUND(E91,0) -> 1337
C92: Blowfly control | E92: =K228 -> 0 | G92: sheep | I92: Reset Rate> | J92: =GM_INFO!C76 | K92: =GM_INFO!C76 -> 1.434 | M92: /head | Q92: =K92*ROUND(E92,0) -> 0
C93: Lice control | E93: =M228 -> 0 | G93: sheep | I93: Reset Rate> | J93: =GM_INFO!C66 | K93: =GM_INFO!C66 -> 1.695 | M93: /head | Q93: =K93*ROUND(E93,0) -> 0
C104: Stock purchases
C105: Purchases | E105: =ROUND(AD244,0) -> 7 | G105: rams | I105: Reset Rate> | J105: ='Cleanskin Sheep Input'!E30 | K105: ='Cleanskin Sheep Input'!E30 -> 1850 | M105: /head | Q105: =K105*E105 -> 12950
C117: Sale Costs
C118: Freight
C119: ewes | E119: =E210 -> 203.9596235 | G119: sheep | I119: Reset Rate> | J119: =GM_INFO!B161 | K119: =GM_INFO!B161 -> 4 | M119: /head | Q119: =K119*ROUND(E119,0) -> 816
C120: rams | E120: =E211 -> 5.788387001 | G120: sheep | I120: Reset Rate> | J120: =GM_INFO!B165 | K120: =GM_INFO!B165 -> 4 | M120: /head | Q120: =K120*ROUND(E120,0) -> 24
C121: hoggets | E121: =E212 -> 493.5403765 | G121: sheep | I121: Reset Rate> | J121: =GM_INFO!B166 | K121: =GM_INFO!B166 -> 4 | M121: /head | Q121: =K121*ROUND(E121,0) -> 1976
C122: lambs | E122: =E213 -> 750 | G122: sheep | I122: Reset Rate> | J122: =GM_INFO!B163 | K122: =GM_INFO!B163 -> 4 | M122: /head | Q122: =K122*ROUND(E122,0) -> 3000
C123: Stock selling charges
C124: Commission/insurance | I124: Reset Rate> | J124: =GM_INFO!C98 | K124: =GM_INFO!C98 -> 0.055 | M124: gross $ | Q124: =K124*Q35 -> 17133.6
C125: Yard fees | E125: =E214 -> 1453.288387 | G125: sheep | I125: Reset Rate> | J125: =GM_INFO!C99 | K125: =GM_INFO!C99 -> 0.85 | M125: /head | Q125: =K125*ROUND(E125,0) -> 1235.05
C126: Levy trans-sheep | E126: =SUM(E210:E212) -> 703.288387 | G126: sheep | I126: Reset Rate> | J126: =GM_INFO!C100 | K126: =GM_INFO!C100 -> 0.2 | M126: /head | Q126: =K126*ROUND(E126,0) -> 140.6
C127: Levy trans-lambs | E127: =E213 -> 750 | G127: sheep | I127: Reset Rate> | J127: =GM_INFO!C101 | K127: =GM_INFO!C101 -> 1.5 | M127: /head | Q127: =K127*ROUND(E127,0) -> 1125
C128: SA sheep industry levy | E128: =E214 -> 1453.288387 | G128: sheep | I128: Reset Rate> | J128: =GM_INFO!C102 | K128: =GM_INFO!C102 -> 0.67 | M128: /head | Q128: =K128*ROUND(E128,0) -> 973.51
C143: Feed and Other Costs
C144: Hand Feeding | Q144: ='Cleanskin Sheep Input'!I84 -> 13475
C146: Insurance | E146: =E229 -> 702013.4539 | G146: value | I146: Reset Rate> | J146: =GM_INFO!B157 | K146: =GM_INFO!B157 -> 2 | M146: /$'000 | Q146: =K146/1000*E146 -> 1404.026908
C147: Water | E147: =$E$197 -> 2950 | G147: DSE's | I147: Reset Rate> | J147: =GM_INFO!H129 | K147: =GM_INFO!H129 -> 2.5 | M147: /DSE's | Q147: =K147*E147 -> 7375
C148: Veh Fuel, R&M | E148: =$E$197 -> 2950 | G148: DSE's | I148: Reset Rate> | J148: =GM_INFO!H130 | K148: =GM_INFO!H130 -> 0.8 | M148: /DSE's | Q148: =K148*E148 -> 2360
C149: Other | E149: =$E$197 -> 2950 | G149: DSE's | I149: Reset Rate> | J149: =GM_INFO!H131 | K149: =GM_INFO!H131 -> 0.5 | M149: /DSE's | Q149: =K149*E149 -> 1475
C170: TOTAL VARIABLE COSTS | Q170: =SUM(Q48:Q166) -> 70946.38691
C172: GROSS MARGIN TOTAL | Q172: =Q37-Q170 -> 240573.6131
C174: GROSS MARGIN/DSE | Q174: =Q172/Q6 -> 81.55037732
C194: PRODUCTION DATA
C196: Stocking rate (DSE/Ha) | E196: 6 | K196: Culling Rate (% from each group) | AA196: SHEEP GROSS MARGIN
C197: Total DSE's | E197: =O228 -> 2950 | K197: Age Group | M197: Ewes | O197: Wethers | AA197: PRIME LAMB -
C198: SHEEP GRAZING AREA | E198: =E197/E196 -> 491.6666667 | K198: 0.5 | M198: =AF213 -> 0 | O198: =AF227 -> 1
C199: Number of ewes mated | E199: ='Cleanskin Sheep Input'!E7 -> 1000 | K199: 1.5 | M199: 0.6784060158 | O199: 0
C200: Ram percentage | E200: ='Cleanskin Sheep Input'!E11 -> 0.025 | K200: 2.5 | M200: 0.05 | O200: 0
C201: Years rams kept | E201: ='Cleanskin Sheep Input'!E12 -> 4 | K201: 3.5 | M201: 0.05 | O201: 0
C202: Flock death rate | E202: ='Cleanskin Sheep Input'!E13 -> 0.03 | K202: 4.5 | M202: 0.05 | O202: 0 | AA202: Ewes mated | AC202: ='Cleanskin Sheep Input'!E7 -> 1000 | AF202: Ram % | AG202: =E200 -> 0.025
B203: =VLOOKUP(r[0]c3&"No Ops",CHOOSE({1,2},tbl_ops[Name]&tbl_ops[Category],INDIRECT("tbl_ops["&var_crop&"]")),2,0) | C203: Average weaning rate | E203: =AC205 -> 1.5 | K203: 5.5 | M203: 0.05 | O203: 0 | AA203: Age at 1st mating | AC203: ='Cleanskin Sheep Input'!E8 -> 1 | AF203: Price of rams | AG203: ='Cleanskin Sheep Input'!E30 -> 1850
B204: =VLOOKUP(r[0]c3&"No Ops",CHOOSE({1,2},tbl_ops[Name]&tbl_ops[Category],INDIRECT("tbl_ops["&var_crop&"]")),2,0) | C204: Age wethers sold | E204: =AG205 -> 0.5 | K204: 6.5 | M204: 1 | O204: 0 | AA204: Age ewes sold | AC204: ='Cleanskin Sheep Input'!E9 -> 6.5 | AF204: Years rams kept | AG204: =E201 -> 4
B205: =VLOOKUP(r[0]c3&"No Ops",CHOOSE({1,2},tbl_ops[Name]&tbl_ops[Category],INDIRECT("tbl_ops["&var_crop&"]")),2,0) | AA205: Av Weaning % | AC205: ='Cleanskin Sheep Input'!E10 -> 1.5 | AF205: Age wethers sold | AG205: 0.5
B206: =VLOOKUP(r[0]c3&"No Ops",CHOOSE({1,2},tbl_ops[Name]&tbl_ops[Category],INDIRECT("tbl_ops["&var_crop&"]")),2,0) | AA206: dse/ewe | AC206: 1.6 | AF206: Flock death rate | AG206: =E202 -> 0.03
B208: =VLOOKUP(r[0]c3&var_rain,CHOOSE({1,2},tbl_ops[Name]&tbl_ops[Rainfall],INDIRECT("tbl_ops["&var_crop&"]")),2,0)
B209: =VLOOKUP(r[0]c3&var_rain,CHOOSE({1,2},tbl_ops[Name]&tbl_ops[Rainfall],INDIRECT("tbl_ops["&var_crop&"]")),2,0) | C209: SALES | E209: Number | G209: Price/hd | I209: Total
B210: =VLOOKUP(r[0]c3&var_rain,CHOOSE({1,2},tbl_ops[Name]&tbl_ops[Rainfall],INDIRECT("tbl_ops["&var_crop&"]")),2,0) | C210: c.f.a ewes | E210: =AG220 -> 203.9596235 | G210: ='Cleanskin Sheep Input'!E18 -> 170 | I210: =ROUND(E210,0)*G210 -> 34680
B211: =VLOOKUP(r[0]c3&var_rain,CHOOSE({1,2},tbl_ops[Name]&tbl_ops[Rainfall],INDIRECT("tbl_ops["&var_crop&"]")),2,0) | C211: c.f.a rams | E211: =AG244 -> 5.788387001 | G211: ='Cleanskin Sheep Input'!E19 -> 130 | I211: =ROUND(E211,0)*G211 -> 780 | AA211: EWES | AB211: OPENING | AC211: NATURAL | AD211: PURCHASES | AE211: DEATHS | AF211: % sold | AG211: SALES | AH211: CLOSING
C212: Ewe hoggets | E212: =AG222 -> 493.5403765 | G212: ='Cleanskin Sheep Input'!E20 -> 240 | I212: =ROUND(E212,0)*G212 -> 118560 | AA212: AGE | AB212: NUMBERS | AC212: INCREASE | AF212: culled | AH212: NUMBERS
C213: Wether lambs | E213: =AG230 -> 750 | G213: ='Cleanskin Sheep Input'!E21 -> 210 | I213: =ROUND(E213,0)*G213 -> 157500 | AA213: 0-0.5yr | AC213: =AC202*AC205/2 -> 750 | AE213: =AB213*$AG$206 -> 0 | AF213: 0 | AG213: =AC213*AF213 -> 0 | AH213: =AB213+AC213+AD213-AE213-AG213 -> 750
C214: TOTAL | E214: =SUM(E210:E213) -> 1453.288387 | G214: =I214/E214 -> 214.3552531 | I214: =SUM(I210:I213) -> 311520 | AA214: 0.5-1.5yr | AB214: =AH213 -> 750 | AE214: 22.5 | AF214: =(AB214*(1-AG206)-AB215)/(AB214-AE214) -> 0.6784060158 | AG214: =AB214-AE214-AB215 -> 493.5403765 | AH214: 233.9596235
AA215: 1.5-2.5yr | AB215: =AC202/(1+(1-AG206)*(1-AF215)*(1+(1-AG206)*(1-AF216)*(1+(1-AG206)*(1-AF217)*(1+(1-AG206)*(1-AF218))))) -> 233.9596235 | AE215: 7.018788705 | AF215: 0.05 | AG215: =(AB215-AE215)*AF215 -> 11.34704174 | AH215: 215.5937931
AA216: 2.5-3.5yr | AB216: =AH215 -> 215.5937931 | AE216: 6.467813792 | AF216: 0.05 | AG216: =(AB216-AE216)*AF216 -> 10.45629896 | AH216: 198.6696803
AA217: 3.5-4.5yr | AB217: =AH216 -> 198.6696803 | AE217: 5.960090409 | AF217: 0.05 | AG217: =(AB217-AE217)*AF217 -> 9.635479495 | AH217: 183.0741104
E218: Number of Times | AA218: 4.5-5.5yr | AB218: =AH217 -> 183.0741104 | AE218: 5.492223312 | AF218: =IF(AC204=5.5,1,5%) -> 0.05 | AG218: =(AB218-AE218)*AF218 -> 8.879094354 | AH218: =AB218+AC218+AD218-AE218-AG218 -> 168.7027927
C219: STOCK HEALTH REQUIREMENTS | E219: Number | G219: Drench | I219: Vacc. | K219: Blowfly | M219: Lice | O219: DSE | AA219: 5.5-6.5yr | AB219: =AH218 -> 168.7027927 | AE219: 5.061083782 | AF219: =IF(AC204=6.5,100%,0) -> 1 | AG219: =(AB219-AE219)*AF219 -> 163.641709 | AH219: 0
C220: Ewes | E220: =ROUND('Cleanskin Sheep Input'!E7,0) -> 1000 | G220: ='Cleanskin Sheep Input'!F57 -> 1 | I220: ='Cleanskin Sheep Input'!G57 -> 1 | K220: ='Cleanskin Sheep Input'!H57 -> 0 | M220: ='Cleanskin Sheep Input'!I57 -> 0 | O220: 2 | AA220: Ewes | AB220: =SUM(AB215:AB219) -> 1000 | AC220: =SUM(AC213:AC217) -> 750 | AD220: =SUM(AD213:AD219) -> 0 | AE220: =SUM(AE213:AE218) -> 47.43891622 | AG220: =SUM(AG215:AG219) -> 203.9596235 | AH220: =SUM(AH214:AH218) -> 1000
C221: Ewe hoggets | E221: =ROUND(AB222,0) -> 750 | G221: ='Cleanskin Sheep Input'!F58 -> 1 | I221: ='Cleanskin Sheep Input'!G58 -> 1 | K221: ='Cleanskin Sheep Input'!H58 -> 0 | M221: ='Cleanskin Sheep Input'!I58 -> 0 | O221: 1.2 | AA221: d.s.e's | AB221: =AB214+AC206*(AB215+AB216+AB217+AB218) -> 2080.075532
C222: Wether weaners | E222: =ROUND(AB228,0) -> 0 | G222: ='Cleanskin Sheep Input'!F59 -> 1 | I222: ='Cleanskin Sheep Input'!G59 -> 1 | K222: ='Cleanskin Sheep Input'!H59 -> 0 | M222: ='Cleanskin Sheep Input'!I59 -> 0 | O222: 1 | AA222: Ewe Hoggets | AB222: =AB214 -> 750 | AG222: =AG214 -> 493.5403765 | AH222: =AH213 -> 750
C223: Lambs | E223: =ROUND(AC213+AC227,0) -> 1500 | G223: ='Cleanskin Sheep Input'!F60 -> 1 | I223: ='Cleanskin Sheep Input'!G60 -> 2 | K223: ='Cleanskin Sheep Input'!H60 -> 0 | M223: ='Cleanskin Sheep Input'!I60 -> 0 | O223: 0 | AA223: Ewe lambs | AG223: =AG213 -> 0
C224: Rams | E224: =ROUND(AB244,0) -> 25 | G224: ='Cleanskin Sheep Input'!F61 -> 2 | I224: ='Cleanskin Sheep Input'!G61 -> 1 | K224: ='Cleanskin Sheep Input'!H61 -> 0 | M224: ='Cleanskin Sheep Input'!I61 -> 0 | O224: 2 | AA224: WETHERS | AB224: OPENING | AC224: NATURAL | AD224: PURCHASES | AE224: DEATHS | AF224: % sold | AG224: SALES | AH224: CLOSING
AA225: AGE | AB225: NUMBERS | AC225: INCREASE | AF225: culled | AH225: NUMBERS
AA227: 0-0.5yr | AC227: =AC202*AC205/2 -> 750 | AE227: =AB227*$AG$206 -> 0 | AF227: =IF(AG205=0.5,100%,0) -> 1 | AG227: =AC227*AF227 -> 750 | AH227: =AB227+AC227+AD227-AE227-AG227 -> 0
C228: TOTAL | E228: =SUM(E220:E227) -> 3275 | G228: =SUMPRODUCT($E$220:$E$227,G220:G227) -> 3300 | I228: =SUMPRODUCT($E$220:$E$227,I220:I227) -> 4775 | K228: =SUMPRODUCT($E$220:$E$227,K220:K227) -> 0 | M228: =SUMPRODUCT($E$220:$E$227,M220:M227) -> 0 | O228: =SUMPRODUCT($E$220:$E$227,O220:O227) -> 2950 | AA228: 0.5-1.5yr | AB228: =AH227 -> 0 | AE228: =AB228*$AG$206 -> 0 | AF228: =IF(AG205=1.5,100%,0) -> 0 | AG228: =(AB228-AE228)*AF228 -> 0 | AH228: =AB228+AC228+AD228-AE228-AG228 -> 0
C229: TOTAL VALUE | E229: =E228*G214 -> 702013.4539 | AA229: 1.5-2.5 | AB229: =AH228 -> 0 | AE229: =AB229*$AG$206 -> 0 | AF229: =IF(AG205=2.5,100%,0) -> 0 | AG229: =(AB229-AE229)*AF229 -> 0
AA230: Wth lambs | AB230: =AB227 -> 0 | AC230: =AC227 -> 750 | AD230: =AD227 -> 0 | AE230: 0 | AG230: =AG227 -> 750 | AH230: 0
AA231: Wth hgts | AB231: 0 | AC231: 0 | AD231: 0 | AE231: 0 | AG231: 0 | AH231: 0
AA232: Wethers | AB232: 0 | AC232: 0 | AD232: 0 | AE232: 0 | AG232: 0 | AH232: 0
AA233: d.s.e's | AB233: =AB231+AB232 -> 0
AA236: RAMS | AB236: OPENING | AC236: NATURAL | AD236: PURCHASES | AE236: DEATHS | AF236: % sold | AG236: SALES | AH236: CLOSING
AA237: AGE | AB237: NUMBERS | AC237: INCREASE | AF237: culled | AH237: NUMBERS
AA239: 0.5-1.5yr | AD239: =AB240/(1-AF239) -> 6.538387001 | AH239: =AB239+AC239+AD239-AE239-AG239 -> 6.538387001
AA240: 1.5-2.5yr | AB240: =IF(AG204=3,(AC202*AG202)/(1+(1-AG206)*(1-AF240)*(1+(1-AG206)*(1-AF241)*(1+(1-AG206)*(1-AF242)))),IF(AG204=4,(AC202*AG202)/(1+(1-AG206)*(1-AF240)*(1+(1-AG206)*(1-AF241)*(1+(1-AG206)*(1-AF242)*(1+(1-AG206)*(1-AF243))))),0)) -> 6.538387001 | AE240: =AB240*$AG$206 -> 0.19615161 | AF240: 0 | AG240: =(SUM(AB240:AD240)-AE240)*AF240 -> 0 | AH240: =AB240+AC240+AD240-AE240-AG240 -> 6.342235391
AA241: 2.5-3.5yr | AB241: =AH240 -> 6.342235391 | AE241: =AB241*$AG$206 -> 0.1902670617 | AF241: 0 | AG241: =(SUM(AB241:AD241)-AE241)*AF241 -> 0 | AH241: =AB241+AC241+AD241-AE241-AG241 -> 6.151968329
AA242: 3.5-4.5yr | AB242: =AH241 -> 6.151968329 | AE242: =AB242*$AG$206 -> 0.1845590499 | AF242: =IF(AG204=3,100%,0) -> 0 | AG242: =(SUM(AB242:AD242)-AE242)*AF242 -> 0 | AH242: =AB242+AC242+AD242-AE242-AG242 -> 5.967409279
AA243: 4.5-5.5yr | AB243: =AH242 -> 5.967409279 | AE243: =AB243*$AG$206 -> 0.1790222784 | AF243: =IF(AG204=4,100%,0) -> 1 | AG243: =AB243-AE243 -> 5.788387001 | AH243: =AB243+AC243+AD243-AE243-AG243 -> 0
G244: Hay Cost ($/T) | I244: Kg Fed per Week | K244: No of Weeks Feeding | M244: Total Cost ($) | AB244: =AB239+AB240+AB241+AB242+AB243 -> 25 | AD244: =AD239+AD240+AD241+AD242+AD243 -> 6.538387001 | AE244: =AE239+AE240+AE241+AE242+AE243 -> 0.75 | AG244: =AG239+AG240+AG241+AG242+AG243 -> 5.788387001 | AH244: =AH239+AH240+AH241+AH242+AH243 -> 25
C245: FEEDING | E245: Number | AA245: d.s.e's | AB245: =AB244*2 -> 50
C246: Ewes | E246: ='Cleanskin Sheep Input'!E69 -> 1000 | G246: ='Cleanskin Sheep Input'!F69 -> 160 | I246: ='Cleanskin Sheep Input'!G69 -> 2 | K246: ='Cleanskin Sheep Input'!H69 -> 10 | M246: =(E246*G246*I246*K246)/1000 -> 3200
C247: Weaner | E247: ='Cleanskin Sheep Input'!E70 -> 0 | G247: ='Cleanskin Sheep Input'!F70 -> 0 | I247: ='Cleanskin Sheep Input'!G70 -> 0 | K247: ='Cleanskin Sheep Input'!H70 -> 0 | M247: =(E247*G247*I247*K247)/1000 -> 0
C248: Ewe hoggets | E248: ='Cleanskin Sheep Input'!E71 -> 0 | G248: ='Cleanskin Sheep Input'!F71 -> 0 | I248: ='Cleanskin Sheep Input'!G71 -> 0 | K248: ='Cleanskin Sheep Input'!H71 -> 0 | M248: =(E248*G248*I248*K248)/1000 -> 0
C249: Lambs | E249: ='Cleanskin Sheep Input'!E72 -> 0 | G249: ='Cleanskin Sheep Input'!F72 -> 0 | I249: ='Cleanskin Sheep Input'!G72 -> 0 | K249: ='Cleanskin Sheep Input'!H72 -> 0 | M249: =(E249*G249*I249*K249)/1000 -> 0
C250: Rams | E250: ='Cleanskin Sheep Input'!E73 -> 0 | G250: ='Cleanskin Sheep Input'!F73 -> 0 | I250: ='Cleanskin Sheep Input'!G73 -> 0 | K250: ='Cleanskin Sheep Input'!H73 -> 0 | M250: =(E250*G250*I250*K250)/1000 -> 0
G251: Grain Cost ($/T) | I251: Kg Fed per Week | K251: No of Weeks Feeding | M251: Total Cost ($)
E252: Number
C253: Ewes | E253: ='Cleanskin Sheep Input'!E78 -> 1000 | G253: ='Cleanskin Sheep Input'!F78 -> 300 | I253: ='Cleanskin Sheep Input'!G78 -> 2.4 | K253: ='Cleanskin Sheep Input'!H78 -> 10 | M253: =(E253*G253*I253*K253)/1000 -> 7200
C254: Weaner | E254: ='Cleanskin Sheep Input'!E79 -> 750 | G254: ='Cleanskin Sheep Input'!F79 -> 410 | I254: ='Cleanskin Sheep Input'!G79 -> 1 | K254: ='Cleanskin Sheep Input'!H79 -> 10 | M254: =(E254*G254*I254*K254)/1000 -> 3075
C255: Ewe hoggets | E255: ='Cleanskin Sheep Input'!E80 -> 0 | G255: ='Cleanskin Sheep Input'!F80 -> 0 | I255: ='Cleanskin Sheep Input'!G80 -> 0 | K255: ='Cleanskin Sheep Input'!H80 -> 0 | M255: =(E255*G255*I255*K255)/1000 -> 0
C256: Lambs | E256: ='Cleanskin Sheep Input'!E81 -> 0 | G256: ='Cleanskin Sheep Input'!F81 -> 0 | I256: ='Cleanskin Sheep Input'!G81 -> 0 | K256: ='Cleanskin Sheep Input'!H81 -> 0 | M256: =(E256*G256*I256*K256)/1000 -> 0
C257: Rams | E257: ='Cleanskin Sheep Input'!E82 -> 0 | G257: ='Cleanskin Sheep Input'!F82 -> 0 | I257: ='Cleanskin Sheep Input'!G82 -> 0 | K257: ='Cleanskin Sheep Input'!H82 -> 0 | M257: =(E257*G257*I257*K257)/1000 -> 0
C258: TOTAL FEED COST | M258: =SUM(M246:M250,M253:M257) -> 13475
C263: GM SENSITIVITY | AB263: Water,Fuel,Other | AE263: =SUM(Q146:Q149) -> 12614.02691 | AF263: Lamb Costs | AG263: No: | AH263: per head
C264: Gross Margin/DSE | E264: Average Weaning % | AB264: Animal health | AE264: =((E220*G220+E224*G224+AB215*G221)*K90+(E220*I220+E224*I224+AB215*I221)*K91+(E220*K220+E224*K224+AB215*K221)*K93) -> 1061.254407
G265: 1.2 | I265: 1.35 | K265: 1.5 | M265: 1.65 | O265: 1.8 | Q265: 1.95 | AB265: Stock Purchase | AE265: =Q105 -> 12950 | AF265: Marking | AG265: =E199*G265 -> 1200 | AH265: =SUM(K76:K77) -> 1.55
E266: 194.3552531 | G266: =(($E$199*(G$265*100)*$E266/200+($E$199*(G$265*100)/200-$AB$215-$AE$214)*$G$212)*(1-$K$124)+SUM($I$210:$I$211)-$AE$273-($E$199*(G$265*100)*$AH$270/100)-($E$199*(G$265*100)/200-$AB$215-$AE$214)*$AC$285)/$E$197 -> 53.78447846 | I266: 63.45692882 | K266: 73.12937918 | M266: 82.80182954 | O266: 92.4742799 | Q266: 102.1467303 | AB266: Freight | AC266: sheep | AE266: =SUM(Q119:Q121) -> 2816 | AF266: Animal health | AH266: =G223*K90+I223*K91+K223*K93 -> 1.112
E267: 199.3552531 | G267: 54.74549541 | I267: 64.53807289 | K267: 74.33065036 | M267: 84.12322784 | O267: 93.91580532 | Q267: 103.7083828 | AC267: Wool | AF267: Freight | AH267: =K122 -> 4
C268: Average Sheep Sale Price($/hd) | E268: 204.3552531 | G268: 55.70651236 | I268: 65.61921695 | K268: 75.53192155 | M268: 85.44462615 | O268: 95.35733075 | Q268: 105.2700353 | AB268: Commission on livestock sales | AE268: =SUM(I210:I212)*K124 -> 8471.1 | AF268: Yard Fees | AH268: =K125 -> 0.85
E269: 209.3552531 | G269: 56.6675293 | I269: 66.70036102 | K269: 76.73319274 | M269: 86.76602445 | O269: 96.79885617 | Q269: 106.8316879 | AB269: Yard fees | AE269: =SUM(E210:E211)*K125 -> 178.2858089 | AF269: Levies | AH269: =SUM(K127:K128) -> 2.17
E270: 214.3552531 | G270: 57.62854625 | I270: 67.78150509 | K270: 77.93446392 | M270: 88.08742276 | O270: 98.24038159 | Q270: 108.3933404 | AB270: Levies | AE270: =SUM(E210:E211)*K126 -> 41.9496021 | AF270: TOTAL | AH270: =SUM(AH265:AH269) -> 9.682
E271: 219.3552531 | G271: 58.5895632 | I271: 68.86264916 | K271: 79.13573511 | M271: 89.40882106 | O271: 99.68190702 | Q271: 109.954993 | AB271: SASheep Industry | AE271: =SUM(E210:E211)*K128 -> 140.531167
E272: 224.3552531 | G272: 59.55058015 | I272: 69.94379322 | K272: 80.3370063 | M272: 90.73021937 | O272: 101.1234324 | Q272: 111.5166455 | AB272: Feed & other costs | AE272: =M253+M246+AB215*G254*I254*K254/1000 -> 11359.23446
E273: 229.3552531 | G273: 60.5115971 | I273: 71.02493729 | K273: 81.53827748 | M273: 92.05161767 | O273: 102.5649579 | Q273: 113.0782981 | AE273: =SUM(AE263:AE272) -> 49632.38235
E274: 234.3552531 | G274: 61.47261405 | I274: 72.10608136 | K274: 82.73954867 | M274: 93.37301598 | O274: 104.0064833 | Q274: 114.6399506
E275: 239.3552531 | G275: 62.433631 | I275: 73.18722543 | K275: 83.94081986 | M275: 94.69441428 | O275: 105.4480087 | Q275: 116.2016031
E276: 244.3552531 | G276: 63.39464795 | I276: 74.2683695 | K276: 85.14209104 | M276: 96.01581259 | O276: 106.8895341 | Q276: 117.7632557
AC277: Sale Ewe Hog Cost
C279: FLOCK STRUCTURE | E279: This table shows the number of merino sheep in each age group at mating | AB279: Feed | AC279: =G254*K254/1000 -> 4.1
E280: Age Group | AC280: =G221*K90+I221*K91+K221*K92+M221*K93 -> 0.832
C281: Class of Sheep | E281: 0.5 y.o. | G281: 1.5 y.o. | I281: 2.5 y.o. | K281: 3.5 y.o. | M281: 4.5 y.o. | O281: 5.5 y.o. | Q281: 6.5 y.o. | AC281: =K121 -> 4
C282: Ewes | E282: =$AB214 -> 750 | G282: =$AB215 -> 233.9596235 | I282: =$AB216 -> 215.5937931 | K282: =$AB217 -> 198.6696803 | M282: =$AB218 -> 183.0741104 | O282: =$AB219 -> 168.7027927 | Q282: 0 | AC282: =K125 -> 0.85
C283: Wethers | E283: =$AB228 -> 0 | G283: =$AB229 -> 0 | I283: 0 | K283: 0 | M283: 0 | O283: 0 | Q283: 0 | AC283: =K126 -> 0.2
C284: Rams | G284: =$AB240 -> 6.538387001 | I284: =$AB241 -> 6.342235391 | K284: =$AB242 -> 6.151968329 | M284: =$AB243 -> 5.967409279 | O284: 0 | Q284: 0 | AC284: =K128 -> 0.67
AB285: Total | AC285: =SUM(AC279:AC284) -> 10.652

Sheet Beef Input (hidden)
C2: ="BEEF GROSS MARGIN - "&TEXT(m_year,"0000") -> BEEF GROSS MARGIN - 2022
C4: GENERAL INFORMATION
C5: Cells with yellow highlight can be changed. No allowance has been made for pasture expenses such as seed, fertiliser and chemicals. Refer to pasture gross margins in the “Cropping Gross Margin Plan” for annual and perennial pasture costs. Use the livestock gross margin per DSE as income for the pasture gross margin.
C7: Breeding Cow | E7: 14.5 | F7: DSE
C8: Calf Weaning | E8: 0.9
C9: Herd Deaths | E9: 0.03
C10: Cows c.f.a | E10: 10 | F10: years old
C11: Carry over calf | E11: 8 | F11: DSE
C12: Weaned @ | E12: 8 | F12: months
C13: Heifers mated @ | E13: 15 | F13: months
C14: Stocking rate | E14: 5 | F14: DSE/ha
C15: Cow breeding herd | E15: 100
C16: Bull Percentage | E16: 0.03
C17: Vealers bought for | E17: 1134
C18: sold for | E18: 2500
C19: after | E19: 3 | F19: years
C20: carryover to heavier weights | E20: 0.5 | F20: including heifer replacements
C21: months extra carry over | E21: 6
C22: Drench cows | E22: 2 | F22: x
C23: Drench calves | E23: 1 | F23: x
C24: Bulls bought for | E24: 12000
C25: Supplementary Feed
C26: Hay | E26: 68 | F26: tonne
C27: Grain | E27: 0 | F27: tonne

Sheet Beef (hidden)
C1: BEEF
C2: =UPPER(Var_Animal)&" GROSS MARGIN - "&TEXT(m_year,"0000") -> BEEF GROSS MARGIN - 2022
C4: ASSUMPTIONS | E4: (Breeding young cattle for local trade, grass fattened)
C7: Breeding Cow | E7: ='Beef Input'!$E$7 -> 14.5 | G7: DSE | O7: Cow breeding herd | Q7: ='Beef Input'!E15 -> 100
C8: Calf Weaning | E8: ='Beef Input'!E8 -> 0.9 | O8: Cows replaced per year | Q8: =(Q7/E10)+(Q7*E9) -> 13
C9: Herd Deaths | E9: ='Beef Input'!E9 -> 0.03 | O9: Bull Percentage | Q9: ='Beef Input'!E16 -> 0.03
C10: Cows c.f.a | E10: ='Beef Input'!E10 -> 10 | G10: years old | O10: Bulls bought for | Q10: ='Beef Input'!E17 -> 1134
C11: Uses | E11: =Q8 -> 13 | G11: heifers as replacements | O11: sold for | Q11: ='Beef Input'!E18 -> 2500
C12: Carry over calf | E12: ='Beef Input'!E11 -> 8 | G12: DSE | O12: after | Q12: ='Beef Input'!E19 -> 3 | R12: years
C13: Weaned @ | E13: ='Beef Input'!E12 -> 8 | G13: months | O13: carryover to heavier weights | Q13: ='Beef Input'!E20 -> 0.5
C14: Heifers mated @ | E14: ='Beef Input'!E13 -> 15 | G14: months | O14: months extra carry over | Q14: ='Beef Input'!E21 -> 6
C15: Stocking rate | E15: ='Beef Input'!E14 -> 5 | G15: DSE/ha | O15: Herd DSE | Q15: =(Q7*E7)+(Q7*Q9*20)+(E11*E12*((E14-E13)/12))+(E11*E7*(24-E14)/12)+(E36*E12) -> 1960.041667
C16: Area required | E16: =Q15/E15 -> 392.0083333 | G16: hectares | O16: Drench cows | Q16: ='Beef Input'!E22 -> 2
O17: Drench calves | Q17: ='Beef Input'!E23 -> 1
C32: INCOME | Q32: $
I34: kg liveweight | M34: /kg L/W
B35: Stock Sales | D35: vealers | E35: =(1-Q13)*(Q7*E8) -> 45 | G35: Reset Rate> | H35: =GM_INFO!B170 | I35: =GM_INFO!B170 -> 280 | K35: Reset Rate> | L35: =GM_INFO!D170 | M35: =GM_INFO!D170 -> 6.05 | Q35: =M35*I35*E35 -> 76230
D36: yearlings | E36: =ROUND(((Q7*E8)-E35-E11)*(1-E9),0) -> 31 | G36: Reset Rate> | H36: =GM_INFO!B171 | I36: =GM_INFO!B171 -> 400 | K36: Reset Rate> | L36: =GM_INFO!D171 | M36: =GM_INFO!D171 -> 5 | Q36: =M36*I36*E36 -> 62000
B37: Culls | D37: cows | E37: =Q8*(1-E9)^E10 -> 9.58651365 | G37: Reset Rate> | H37: =GM_INFO!B172 | I37: =GM_INFO!B172 -> 550 | K37: Reset Rate> | L37: =GM_INFO!D172 | M37: =GM_INFO!D172 -> 3 | Q37: =M37*I37*E37 -> 15817.74752
D38: bull | E38: =Q7*Q9/Q12 -> 1 | Q38: ='Beef Input'!E18*E38 -> 2500
C41: Gross Income | Q41: =SUM(Q35:Q38) -> 156547.7475
C46: VARIABLE COSTS
C75: Bull Purchases | K75: Rate
C76: No. of Bulls | E76: =E38 -> 1 | G76: bulls | I76: Reset Rate> | J76: ='Beef Input'!E24 | K76: ='Beef Input'!E24 -> 12000 | M76: total | Q76: =K76*ROUND(E76,0) -> 12000
C89: Veterinary & Medicines
C90: Drench - cows 2x calves 1x | E90: =(Q7*Q16)+Q17*(Q7*E8) -> 290 | G90: head | I90: Reset Rate> | J90: =GM_INFO!D112 | K90: =GM_INFO!D112 -> 6.25 | M90: /head | Q90: =K90*ROUND(E90,0) -> 1812.5
C91: Ear Tags | E91: =Q7*E8 -> 90 | G91: head | I91: Reset Rate> | J91: =GM_INFO!D123 | K91: =GM_INFO!D123 -> 4.75 | M91: /tag | Q91: =K91*ROUND(E91,0) -> 427.5
C92: Lice Treatments | E92: =Q7 -> 100 | G92: head | I92: Reset Rate> | J92: =GM_INFO!D112 | K92: =GM_INFO!D112 -> 6.25 | M92: /dose | Q92: =K92*ROUND(E92,0) -> 625
C93: Vaccine (5 in 1) | E93: =Q7*E8*2 -> 180 | G93: head | I93: Reset Rate> | J93: =GM_INFO!D114 | K93: =GM_INFO!D114 -> 0.80368 | M93: /dose | Q93: =K93*ROUND(E93,0) -> 144.6624
C117: Sale Costs and other
C119: Insurance | E119: =(Q7*800)+(3*2500)+(Q7*E8*350) -> 119000 | I119: Reset Rate> | J119: =GM_INFO!B157 | K119: =GM_INFO!B157 -> 2 | M119: /$1000 | Q119: =K119*ROUND(E119,0)/1000 -> 238
C120: Water | E120: =Q15 -> 1960.041667 | G120: dse's | I120: Reset Rate> | J120: =GM_INFO!I129 | K120: =GM_INFO!I129 -> 2.5 | Q120: =K120*ROUND(E120,0) -> 4900
C121: Veh Fuel, R&M | E121: =Q15 -> 1960.041667 | G121: dse's | I121: Reset Rate> | J121: =GM_INFO!I130 | K121: =GM_INFO!I130 -> 1.2 | Q121: =K121*ROUND(E121,0) -> 2352
C122: Other | E122: =Q15 -> 1960.041667 | G122: dse's | I122: Reset Rate> | J122: =GM_INFO!I131 | K122: =GM_INFO!I131 -> 0.5 | Q122: =K122*ROUND(E122,0) -> 980
C123: Transport: | E123: =SUM(E35:E38) -> 86.58651365 | G123: head | I123: Reset Rate> | J123: =GM_INFO!D126 | K123: =GM_INFO!D126 -> 30 | M123: /head | Q123: =K123*E123 -> 2597.595409
C125: Commission | I125: Reset Rate> | J125: =GM_INFO!C98 | K125: =GM_INFO!C98 -> 0.055 | Q125: =Q41*K125 -> 8610.126114
C126: Levies | I126: Reset Rate> | J126: =GM_INFO!D127 | K126: =GM_INFO!D127 -> 5 | M126: /head | Q126: =K126*SUM(E35:E38) -> 432.9325682
C143: Supplementary Feed
C145: Grain
C146: Hay | E146: ='Beef Input'!E26 -> 68 | G146: tonne | I146: Reset Rate> | J146: =GM_INFO!D132 | K146: =GM_INFO!D132 -> 160 | M146: /tonne | Q146: =K146*E146 -> 10880
C147: Grain | E147: ='Beef Input'!E27 -> 0 | G147: tonne | I147: Reset Rate> | J147: =GM_INFO!D133 | K147: =GM_INFO!D133 -> 300 | M147: /tonne | Q147: =K147*E147 -> 0
C148: Blocks/ Mineral Mix | E148: =Q7 -> 100 | G148: @ | I148: Reset Rate> | J148: =GM_INFO!D135 | K148: =GM_INFO!D135 -> 5.5 | M148: /head | Q148: =K148*E148 -> 550
C170: TOTAL VARIABLE COSTS | Q170: =SUM(Q48:Q166) -> 46550.31649
C172: GROSS MARGIN TOTAL | Q172: =Q41-Q170 -> 109997.431
C174: GROSS MARGIN/DSE | Q174: =$Q$172/Q15 -> 56.11994525
C176: GROSS MARGIN/COW | Q176: =$Q$172/Q7 -> 1099.97431
C178: GROSS MARGIN/HA | Q178: =$Q$172/E16 -> 280.5997263
B203: =VLOOKUP(r[0]c3&"No Ops",CHOOSE({1,2},tbl_ops[Name]&tbl_ops[Category],INDIRECT("tbl_ops["&var_crop&"]")),2,0)
B204: =VLOOKUP(r[0]c3&"No Ops",CHOOSE({1,2},tbl_ops[Name]&tbl_ops[Category],INDIRECT("tbl_ops["&var_crop&"]")),2,0)
B205: =VLOOKUP(r[0]c3&"No Ops",CHOOSE({1,2},tbl_ops[Name]&tbl_ops[Category],INDIRECT("tbl_ops["&var_crop&"]")),2,0)
B206: =VLOOKUP(r[0]c3&"No Ops",CHOOSE({1,2},tbl_ops[Name]&tbl_ops[Category],INDIRECT("tbl_ops["&var_crop&"]")),2,0)
B208: =VLOOKUP(r[0]c3&var_rain,CHOOSE({1,2},tbl_ops[Name]&tbl_ops[Rainfall],INDIRECT("tbl_ops["&var_crop&"]")),2,0)
B209: =VLOOKUP(r[0]c3&var_rain,CHOOSE({1,2},tbl_ops[Name]&tbl_ops[Rainfall],INDIRECT("tbl_ops["&var_crop&"]")),2,0)
B210: =VLOOKUP(r[0]c3&var_rain,CHOOSE({1,2},tbl_ops[Name]&tbl_ops[Rainfall],INDIRECT("tbl_ops["&var_crop&"]")),2,0)
B211: =VLOOKUP(r[0]c3&var_rain,CHOOSE({1,2},tbl_ops[Name]&tbl_ops[Rainfall],INDIRECT("tbl_ops["&var_crop&"]")),2,0)
C259: GM SENSITIVITY
C260: Gross Margin per Cow | E260: ($/kg Liveweight(yearlings/steers))
G261: 3.7 | I261: 3.9 | K261: 4.1 | M261: 4.3 | O261: 4.5
E262: 0.6 | G262: =(((($Q$7*$E262*$Q$13-$E$11-1)*G$261*$I$36)+(($Q$7*$E262)*(1-$Q$13)*G$261*$I$35)+($E$37*$I$37*$M$37)+$Q$38)-$Q$170)/$Q$7 -> 265.2743103 | I262: =(((($Q$7*$E262*$Q$13-$E$11-1)*I$261*$I$36)+(($Q$7*$E262)*(1-$Q$13)*I$261*$I$35)+($E$37*$I$37*$M$37)+$Q$38)-$Q$170)/$Q$7 -> 294.8743103 | K262: =(((($Q$7*$E262*$Q$13-$E$11-1)*K$261*$I$36)+(($Q$7*$E262)*(1-$Q$13)*K$261*$I$35)+($E$37*$I$37*$M$37)+$Q$38)-$Q$170)/$Q$7 -> 324.4743103 | M262: =(((($Q$7*$E262*$Q$13-$E$11-1)*M$261*$I$36)+(($Q$7*$E262)*(1-$Q$13)*M$261*$I$35)+($E$37*$I$37*$M$37)+$Q$38)-$Q$170)/$Q$7 -> 354.0743103 | O262: =(((($Q$7*$E262*$Q$13-$E$11-1)*O$261*$I$36)+(($Q$7*$E262)*(1-$Q$13)*O$261*$I$35)+($E$37*$I$37*$M$37)+$Q$38)-$Q$170)/$Q$7 -> 383.6743103
E263: 0.65 | G263: =(((($Q$7*$E263*$Q$13-$E$11-1)*G$261*$I$36)+(($Q$7*$E263)*(1-$Q$13)*G$261*$I$35)+($E$37*$I$37*$M$37)+$Q$38)-$Q$170)/$Q$7 -> 328.1743103 | I263: =(((($Q$7*$E263*$Q$13-$E$11-1)*I$261*$I$36)+(($Q$7*$E263)*(1-$Q$13)*I$261*$I$35)+($E$37*$I$37*$M$37)+$Q$38)-$Q$170)/$Q$7 -> 361.1743103 | K263: =(((($Q$7*$E263*$Q$13-$E$11-1)*K$261*$I$36)+(($Q$7*$E263)*(1-$Q$13)*K$261*$I$35)+($E$37*$I$37*$M$37)+$Q$38)-$Q$170)/$Q$7 -> 394.1743103 | M263: =(((($Q$7*$E263*$Q$13-$E$11-1)*M$261*$I$36)+(($Q$7*$E263)*(1-$Q$13)*M$261*$I$35)+($E$37*$I$37*$M$37)+$Q$38)-$Q$170)/$Q$7 -> 427.1743103 | O263: =(((($Q$7*$E263*$Q$13-$E$11-1)*O$261*$I$36)+(($Q$7*$E263)*(1-$Q$13)*O$261*$I$35)+($E$37*$I$37*$M$37)+$Q$38)-$Q$170)/$Q$7 -> 460.1743103
C264: Weaning % | E264: 0.7 | G264: 391.0743103 | I264: 427.4743103 | K264: 463.8743103 | M264: 500.2743103 | O264: 536.6743103
E265: 0.75 | G265: 453.9743103 | I265: 493.7743103 | K265: 533.5743103 | M265: 573.3743103 | O265: 613.1743103
E266: 0.8 | G266: 516.8743103 | I266: 560.0743103 | K266: 603.2743103 | M266: 646.4743103 | O266: 689.6743103
E267: 0.85 | G267: 579.7743103 | I267: 626.3743103 | K267: 672.9743103 | M267: 719.5743103 | O267: 766.1743103
E268: 0.9 | G268: 642.6743103 | I268: 692.6743103 | K268: 742.6743103 | M268: 792.6743103 | O268: 842.6743103
E269: 0.95 | G269: 705.5743103 | I269: 758.9743103 | K269: 812.3743103 | M269: 865.7743103 | O269: 919.1743103
E270: 1 | G270: 768.4743103 | I270: 825.2743103 | K270: 882.0743103 | M270: 938.8743103 | O270: 995.6743103
C275: GM SENSITIVITY
C276: Gross Margin per DSE | E276: ($/kg Liveweight(yearlings/steers))
G277: 3.7 | I277: 3.9 | K277: 4.1 | M277: 4.3 | O277: 4.5
E278: 0.6 | G278: =(((($Q$7*$E278*$Q$13-$E$11-1)*G$277*$I$36)+(($Q$7*$E278)*(1-$Q$13)*G$277*$I$35)+($E$37*$I$37*$M$37)+$Q$38)-$Q$170)/$Q$15 -> 13.53411587 | I278: =(((($Q$7*$E278*$Q$13-$E$11-1)*I$277*$I$36)+(($Q$7*$E278)*(1-$Q$13)*I$277*$I$35)+($E$37*$I$37*$M$37)+$Q$38)-$Q$170)/$Q$15 -> 15.04428785 | K278: =(((($Q$7*$E278*$Q$13-$E$11-1)*K$277*$I$36)+(($Q$7*$E278)*(1-$Q$13)*K$277*$I$35)+($E$37*$I$37*$M$37)+$Q$38)-$Q$170)/$Q$15 -> 16.55445983 | M278: =(((($Q$7*$E278*$Q$13-$E$11-1)*M$277*$I$36)+(($Q$7*$E278)*(1-$Q$13)*M$277*$I$35)+($E$37*$I$37*$M$37)+$Q$38)-$Q$170)/$Q$15 -> 18.0646318 | O278: =(((($Q$7*$E278*$Q$13-$E$11-1)*O$277*$I$36)+(($Q$7*$E278)*(1-$Q$13)*O$277*$I$35)+($E$37*$I$37*$M$37)+$Q$38)-$Q$170)/$Q$15 -> 19.57480378
E279: 0.65 | G279: =(((($Q$7*$E279*$Q$13-$E$11-1)*G$277*$I$36)+(($Q$7*$E279)*(1-$Q$13)*G$277*$I$35)+($E$37*$I$37*$M$37)+$Q$38)-$Q$170)/$Q$15 -> 16.74323132 | I279: =(((($Q$7*$E279*$Q$13-$E$11-1)*I$277*$I$36)+(($Q$7*$E279)*(1-$Q$13)*I$277*$I$35)+($E$37*$I$37*$M$37)+$Q$38)-$Q$170)/$Q$15 -> 18.426869 | K279: =(((($Q$7*$E279*$Q$13-$E$11-1)*K$277*$I$36)+(($Q$7*$E279)*(1-$Q$13)*K$277*$I$35)+($E$37*$I$37*$M$37)+$Q$38)-$Q$170)/$Q$15 -> 20.11050668 | M279: =(((($Q$7*$E279*$Q$13-$E$11-1)*M$277*$I$36)+(($Q$7*$E279)*(1-$Q$13)*M$277*$I$35)+($E$37*$I$37*$M$37)+$Q$38)-$Q$170)/$Q$15 -> 21.79414436 | O279: =(((($Q$7*$E279*$Q$13-$E$11-1)*O$277*$I$36)+(($Q$7*$E279)*(1-$Q$13)*O$277*$I$35)+($E$37*$I$37*$M$37)+$Q$38)-$Q$170)/$Q$15 -> 23.47778204
C280: Weaning % | E280: 0.7 | G280: 19.95234678 | I280: 21.80945015 | K280: 23.66655353 | M280: 25.52365691 | O280: 27.38076029
E281: 0.75 | G281: 23.16146223 | I281: 25.19203131 | K281: 27.22260039 | M281: 29.25316946 | O281: 31.28373854
E282: 0.8 | G282: 26.37057768 | I282: 28.57461246 | K282: 30.77864724 | M282: 32.98268202 | O282: 35.18671679
E283: 0.85 | G283: 29.57969313 | I283: 31.95719361 | K283: 34.33469409 | M283: 36.71219457 | O283: 39.08969505
E284: 0.9 | G284: 32.78880859 | I284: 35.33977477 | K284: 37.89074094 | M284: 40.44170712 | O284: 42.9926733
E285: 0.95 | G285: 35.99792404 | I285: 38.72235592 | K285: 41.4467878 | M285: 44.17121967 | O285: 46.89565155
E286: 1 | G286: 39.20703949 | I286: 42.10493707 | K286: 45.00283465 | M286: 47.90073223 | O286: 50.79862981

Sheet Beef Trading Input (hidden)
C2: ="BEEF TRADING GROSS MARGIN - "&TEXT(m_year,"0000") -> BEEF TRADING GROSS MARGIN - 2022
C4: GENERAL INFORMATION
C5: Cells with yellow highlight can be changed. No allowance has been made for pasture expenses such as seed, fertiliser and chemicals. Refer to pasture gross margins in the “Cropping Gross Margin Plan” for annual and perennial pasture costs. Use the livestock gross margin per DSE as income for the pasture gross margin.
C7: Vealers | E7: 8 | F7: DSE
C8: Yearlings | E8: 12 | F8: DSE
C9: Herd Deaths | E9: 0.02
C10: Purchases-Vealers | E10: 200
C14: Stocking rate | E14: 10 | F14: DSE/ha
C15: Vealers Purchased at | E15: =280*6.05 -> 1694 | F15: /head
C18: Stock Sales-vealers | E18: 0
C20: Feeds | E20: 35 | F20: kg/DSE hay equivalent supplement
C22: Drench vealers | E22: 1 | F22: x
C25: Supplementary Feed
C27: Grain | E27: 0 | F27: tonne
C29: Cattle Prices | D29: Agricultural areas | E29: Agricultural | F29: Pastoral
C30: Vealers 280 kg | D30: 1700 | E30: 1700 | F30: 1600
C31: Yearling 400 kg | D31: 2000 | E31: 2000
C32: Yearling 420 kg | D32: 2100 | E32: 2100
C33: Cull cows 550 kg | D33: 1650 | E33: 1650 | F33: 1500
C34: Young stock 280 kg lwt | F34: 1600
C35: Bullocks 500 kg lwt | F35: 2000
C37: Cattle Purchases | E37: Agricultural | F37: Pastoral
C38: Bulls | D38: 12000 | E38: 12000 | F38: 8000
C39: Store vealers for grass finishing | D39: 1700 | E39: 1700
C40: Steer 240 kg lwt for feedlot | D40: 1500 | E40: 1500

Sheet Beef Trading (hidden)
C1: BEEF TRADING
C2: =UPPER(Var_Animal)&" GROSS MARGIN - "&TEXT(m_year,"0000") -> BEEF TRADING GROSS MARGIN - 2022
C4: ASSUMPTIONS | E4: (Finishing young cattle for local trade, grass fattened)
C9: Herd Deaths | E9: ='Beef Trading Input'!E9 -> 0.02
C10: Vealers | E10: ='Beef Trading Input'!E7 -> 8 | G10: DSE
C11: Yearlings | E11: ='Beef Trading Input'!E8 -> 12 | G11: DSE
C13: Herd DSE | E13: =AVERAGE(E10:E11)*E36 -> 1960
C14: Drench vealers | E14: ='Beef Trading Input'!E22 -> 1
C15: Stocking rate | E15: ='Beef Trading Input'!E14 -> 10 | G15: DSE/ha
C16: Area required | E16: =E13/E15 -> 196 | G16: hectares
C17: Feeds | E17: ='Beef Trading Input'!E20 -> 35 | G17: kg/DSE hay equivalent supplement
C32: INCOME | Q32: $
I34: kg liveweight | M34: /kg L/W
B35: Stock Sales | D35: vealers | E35: ='Beef Trading Input'!E18 -> 0 | G35: Reset Rate> | H35: =GM_INFO!B175 | I35: =GM_INFO!B175 -> 280 | K35: Reset Rate> | L35: =GM_INFO!D170 | M35: =GM_INFO!D170 -> 6.05 | Q35: =M35*I35*E35 -> 0
D36: yearlings | E36: =ROUND(E76-(E76*E9),3)-E35 -> 196 | G36: Reset Rate> | H36: =GM_INFO!B176 | I36: =GM_INFO!B176 -> 420 | K36: Reset Rate> | L36: =GM_INFO!D171 | M36: =GM_INFO!D171 -> 5 | Q36: =M36*I36*E36 -> 411600
G37: Reset Rate> | H37: =GM_INFO!B122 | K37: Reset Rate> | L37: =GM_INFO!D122 | Q37: =M37*I37*E37 -> 0
Q38: ='Beef Trading Input'!E18*E38 -> 0
C41: Gross Income | Q41: =SUM(Q35:Q38) -> 411600
C46: VARIABLE COSTS
C75: Purchases | K75: Rate
C76: Vealers | E76: ='Beef Trading Input'!E10 -> 200 | I76: Reset Rate> | J76: ='Beef Trading Input'!E15 | K76: ='Beef Trading Input'!E15 -> 1694 | M76: head | Q76: =K76*ROUND(E76,0) -> 338800
C77: Transport | E77: ='Beef Trading Input'!E10 -> 200 | I77: Reset Rate> | J77: =GM_INFO!B167 | K77: =GM_INFO!B167 -> 30 | M77: head | Q77: =K77*ROUND(E77,0) -> 6000
C89: Veterinary & Medicines
C90: Drench - vealers 1x | E90: =E76 -> 200 | G90: head | I90: Reset Rate> | J90: =GM_INFO!D112 | K90: =GM_INFO!D112 -> 6.25 | M90: /head | Q90: =K90*ROUND(E90,0) -> 1250
C91: Ear Tags NLIS | E91: 196 | G91: head | I91: Reset Rate> | J91: =GM_INFO!D123 | K91: =GM_INFO!D123 -> 4.75 | M91: /tag | Q91: =K91*ROUND(E91,0) -> 931
C92: Lice Treatments | E92: =E76 -> 200 | G92: head | I92: Reset Rate> | J92: =GM_INFO!D112 | K92: =GM_INFO!D112 -> 6.25 | M92: /dose | Q92: =K92*ROUND(E92,0) -> 1250
C93: Vaccine (5 in 1) | E93: =E76 -> 200 | G93: head | I93: Reset Rate> | J93: =GM_INFO!D114 | K93: =GM_INFO!D114 -> 0.80368 | M93: /dose | Q93: =K93*ROUND(E93,0) -> 160.736
C117: Sale Costs and other
C119: Insurance | E119: =Q76 -> 338800 | I119: Reset Rate> | J119: =GM_INFO!B157 | K119: =GM_INFO!B157 -> 2 | M119: /$1000 | Q119: =K119*ROUND(E119,0)/1000 -> 677.6
C120: Water | E120: =E13 -> 1960 | G120: dse's | I120: Reset Rate> | J120: =GM_INFO!J129 | K120: =GM_INFO!J129 -> 1.5 | Q120: =K120*ROUND(E120,0) -> 2940
C121: Veh Fuel, R&M | E121: =E13 -> 1960 | G121: dse's | I121: Reset Rate> | J121: =GM_INFO!J130 | K121: =GM_INFO!J130 -> 1.2 | Q121: =K121*ROUND(E121,0) -> 2352
C122: Other | E122: =E13 -> 1960 | G122: dse's | I122: Reset Rate> | J122: =GM_INFO!J131 | K122: =GM_INFO!J131 -> 0.5 | Q122: =K122*ROUND(E122,0) -> 980
C123: Transport: | E123: =SUM(E35:E38) -> 196 | G123: head | I123: Reset Rate> | J123: =GM_INFO!D126 | K123: =GM_INFO!D126 -> 30 | M123: /head | Q123: =K123*E123 -> 5880
C125: Commission | I125: Reset Rate> | J125: =GM_INFO!C98 | K125: =GM_INFO!C98 -> 0.055 | Q125: =Q41*K125 -> 22638
C126: Levies | I126: Reset Rate> | J126: =GM_INFO!D127 | K126: =GM_INFO!D127 -> 5 | M126: /head | Q126: =K126*SUM(E35:E38) -> 980
C143: Supplementary Feed
C145: Grain
C146: Hay | E146: =(E17*E13)/1000 -> 68.6 | G146: tonne | I146: Reset Rate> | J146: =GM_INFO!D132 | K146: =GM_INFO!D132 -> 160 | M146: /tonne | Q146: =K146*E146 -> 10976
C147: Grain | E147: ='Beef Trading Input'!E27 -> 0 | G147: tonne | I147: Reset Rate> | J147: =GM_INFO!D133 | K147: =GM_INFO!D133 -> 300 | M147: /tonne | Q147: =K147*E147 -> 0
C148: Blocks/ Mineral Mix | E148: =Q7 -> 0 | G148: @ | I148: Reset Rate> | J148: =GM_INFO!D135 | K148: =GM_INFO!D135 -> 5.5 | M148: /head | Q148: =K148*E148 -> 0
C170: TOTAL VARIABLE COSTS | Q170: =SUM(Q48:Q166) -> 395815.336
C172: GROSS MARGIN TOTAL | Q172: =Q41-Q170 -> 15784.664
C174: GROSS MARGIN/DSE | Q174: =Q172/E13 -> 8.0534
C178: GROSS MARGIN/HA | Q178: =Q172/E16 -> 80.534
B203: =VLOOKUP(r[0]c3&"No Ops",CHOOSE({1,2},tbl_ops[Name]&tbl_ops[Category],INDIRECT("tbl_ops["&var_crop&"]")),2,0)
B204: =VLOOKUP(r[0]c3&"No Ops",CHOOSE({1,2},tbl_ops[Name]&tbl_ops[Category],INDIRECT("tbl_ops["&var_crop&"]")),2,0)
B205: =VLOOKUP(r[0]c3&"No Ops",CHOOSE({1,2},tbl_ops[Name]&tbl_ops[Category],INDIRECT("tbl_ops["&var_crop&"]")),2,0)
B206: =VLOOKUP(r[0]c3&"No Ops",CHOOSE({1,2},tbl_ops[Name]&tbl_ops[Category],INDIRECT("tbl_ops["&var_crop&"]")),2,0)
B208: =VLOOKUP(r[0]c3&var_rain,CHOOSE({1,2},tbl_ops[Name]&tbl_ops[Rainfall],INDIRECT("tbl_ops["&var_crop&"]")),2,0)
B209: =VLOOKUP(r[0]c3&var_rain,CHOOSE({1,2},tbl_ops[Name]&tbl_ops[Rainfall],INDIRECT("tbl_ops["&var_crop&"]")),2,0)
B210: =VLOOKUP(r[0]c3&var_rain,CHOOSE({1,2},tbl_ops[Name]&tbl_ops[Rainfall],INDIRECT("tbl_ops["&var_crop&"]")),2,0)
B211: =VLOOKUP(r[0]c3&var_rain,CHOOSE({1,2},tbl_ops[Name]&tbl_ops[Rainfall],INDIRECT("tbl_ops["&var_crop&"]")),2,0)
C275: GM SENSITIVITY
C276: Gross Margin per DSE | E276: ($/kg Liveweight(yearlings/steers))
G277: 4.6 | I277: 4.8 | K277: 5 | M277: 5.2 | O277: 5.4
E278: 2.6 | G278: =(((((G$277*$I$36)*($E$36/$E$76)-($I$35*$E278))/10-(SUM($Q$77:$Q$166)/$E$13)))) -> 87.44654286 | I278: 95.67854286 | K278: 103.9105429 | M278: 112.1425429 | O278: 120.3745429
E279: 2.7 | G279: 84.64654286 | I279: 92.87854286 | K279: 101.1105429 | M279: 109.3425429 | O279: 117.5745429
C280: $/kg Liveweight Purchases (Vealers) | E280: 2.8 | G280: 81.84654286 | I280: 90.07854286 | K280: 98.31054286 | M280: 106.5425429 | O280: 114.7745429
E281: 2.9 | G281: 79.04654286 | I281: 87.27854286 | K281: 95.51054286 | M281: 103.7425429 | O281: 111.9745429
E282: 3 | G282: 76.24654286 | I282: 84.47854286 | K282: 92.71054286 | M282: 100.9425429 | O282: 109.1745429
E283: 3.1 | G283: 73.44654286 | I283: 81.67854286 | K283: 89.91054286 | M283: 98.14254286 | O283: 106.3745429
E284: 3.2 | G284: 70.64654286 | I284: 78.87854286 | K284: 87.11054286 | M284: 95.34254286 | O284: 103.5745429
E285: 3.3 | G285: 67.84654286 | I285: 76.07854286 | K285: 84.31054286 | M285: 92.54254286 | O285: 100.7745429
E286: 3.4 | G286: 65.04654286 | I286: 73.27854286 | K286: 81.51054286 | M286: 89.74254286 | O286: 97.97454286

Sheet Beef Feed Lot Input (hidden)
C2: ="BEEF FEED LOT GROSS MARGIN - "&TEXT(m_year,"0000") -> BEEF FEED LOT GROSS MARGIN - 2022
C4: GENERAL INFORMATION
C5: This sheet not used. Please enter all data in the Beef Feed Lot sheet

Sheet Beef Feed Lot (hidden)
C1: BEEF FEED LOT
C2: =UPPER(Var_Animal)&" GROSS MARGIN - "&TEXT(m_year,"0000") -> BEEF FEED LOT GROSS MARGIN - 2022
C4: ASSUMPTIONS | E4: ('Local supermarket, 210kg HSCW Carcase, AUSMEAT Fat Score 3-4)
C8: Steer Costs:
C9: Steer purchase | E9: =I9*M9 -> 960 | G9: for | I9: 240 | K9: kg@ | M9: 4 | O9: /kg liveweight
C10: Transport In | E10: 30 | G10: /head | M10: Average weight gain | O10: 1.8 | Q10: kg/hd/day
C11: Est. dressing % | E11: 0.55 | M11: Carcase weight specification | O11: =ROUND((E11*O12),0) -> 230 | Q11: kg HSCW
M12: Final liveweight in lot | O12: 418 | Q12: kg
M13: Avge liveweight in lot | O13: 329 | Q13: kg
M14: Est. time on feed | O14: 100 | Q14: days
C15: Feed Costs: | M15: Avge daily Feed intake | O15: =O13*0.035 -> 11.515 | Q15: kg
C16: Total feed consumed | G16: =ROUNDDOWN(O14*O15,0) -> 1151 | I16: kg | M16: (3.5% of Liveweight)
C17: Feed Wastage | E17: 0.05 | G17: =G16*E17 -> 57.55 | I17: kg | M17: Death Rate | O17: 0.01
C18: Feed cost per tonne | G18: 265 | I18: without premix / supplement
C32: INCOME | Q32: $
C35: Finished steers | E35: 0.97 | G35: % Steer @ | H35: =GM_INFO!B125 | I35: =O11 -> 230 | K35: kg carcass @ | L35: =GM_INFO!D120 | M35: 9.7 | O35: /kg HSCW | Q35: =M35*I35*E35 -> 2164.07
C36: Poor performers sold at 30 days | E36: =SUM(1,-E35,-E37) -> 0.02 | G36: % Steer @ | H36: =GM_INFO!B126 | I36: 240 | K36: kg liveweight | L36: =GM_INFO!D121 | M36: 6.3 | O36: /kg LVWT | Q36: =M36*I36*E36 -> 30.24
C37: Deaths | E37: =O17 -> 0.01 | G37: % Steer @ | H37: =GM_INFO!B122 | I37: 0 | L37: =GM_INFO!D122 | M37: 0 | Q37: 0
Q38: ='Beef Feed Lot Input'!E18*E38 -> 0
D39: TOTAL (must be 100%) | E39: =SUM(E35:E38) -> 1
C41: Gross Income | Q41: =SUM(Q35:Q38) -> 2194.31
C46: VARIABLE COSTS
C75: Purchases | K75: Rate
C76: Steer purchase | E76: 1 | G76: head | K76: 1500 | M76: /head | Q76: =K76*ROUND(E76,0) -> 1500
C77: Feeding Out & Feed
C78: Feed purchased | E78: =(E35*(G16+G17)+(E36*(G16+G17)*30/O14)) -> 1179.5448 | G78: kg | K78: =G18 -> 265 | M78: /tonne | Q78: =E78*K78/1000 -> 312.579372
C79: Premix cost per tonne mixed feed | E79: =E78 -> 1179.5448 | G79: kg | I79: Reset Rate> | J79: =GM_INFO!I118 | K79: =GM_INFO!I118 -> 50 | M79: /tonne | Q79: =E79*K79/1000 -> 58.97724
C80: Milling costs + Labour | E80: 1 | I80: Reset Rate> | J80: =GM_INFO!I119 | K80: =GM_INFO!I119 -> 28 | M80: /head | Q80: 28
C81: Water | E81: 1 | I81: Reset Rate> | J81: =GM_INFO!I120 | K81: =GM_INFO!I120 -> 20 | M81: /head | Q81: 20
C89: Veterinary & Medicines
C90: Drench, Dectomax | E90: 1 | G90: head | I90: Reset Rate> | J90: =GM_INFO!I111 | K90: =GM_INFO!I111 -> 5.64 | M90: /head | Q90: =K90*ROUND(E90,0) -> 5.64
C91: Ear Tags | E91: 1 | G91: head | I91: Reset Rate> | J91: =GM_INFO!I112 | K91: =GM_INFO!I112 -> 0.5 | M91: /tag | Q91: 0.5
C92: HGP implant , Synovex | E92: 0 | G92: head | I92: Reset Rate> | J92: =GM_INFO!I113 | K92: =GM_INFO!I113 -> 2.5 | M92: /dose | Q92: 0
C93: Lice Treatments | E93: 0 | G93: head | I93: Reset Rate> | J93: =GM_INFO!I114 | K93: =GM_INFO!I114 -> 0 | M93: /dose | Q93: 0
C94: Vaccine | E94: 1 | G94: head | I94: Reset Rate> | J94: =GM_INFO!I115 | K94: =GM_INFO!I115 -> 0.58 | M94: /dose | Q94: 0.58
C95: Veterinary | E95: 1 | G95: head | I95: Reset Rate> | J95: =GM_INFO!I116 | K95: =GM_INFO!I116 -> 1.25 | M95: /dose | Q95: 1.25
C96: Vitamin injection | E96: 0 | G96: head | I96: Reset Rate> | J96: =GM_INFO!I117 | K96: =GM_INFO!I117 -> 1.5 | M96: /dose | Q96: 0
C116: Losses | E116: 0.006 | G116: % | J116: =(Q76+Q78)*E116 | K116: =(Q76+Q78)*E116 -> 10.87547623 | M116: /head | Q116: =K116 -> 10.87547623
C117: Sale Costs and other
C119: Insurance | E119: =Q76 -> 1500 | I119: Reset Rate> | J119: =GM_INFO!I121 | K119: =GM_INFO!I121 -> 3 | M119: /$1000 | Q119: =K119*ROUND(E119,0)/1000 -> 4.5
C122: Transport In | E122: 1 | G122: dse's | I122: Reset Rate> | J122: =GM_INFO!I122 | K122: =GM_INFO!I122 -> 15 | Q122: =K122*ROUND(E122,0) -> 15
C123: Transport Out | E123: 1 | G123: head | I123: Reset Rate> | J123: =GM_INFO!I123 | K123: =GM_INFO!I123 -> 30 | M123: /head | Q123: =K123*E123 -> 30
C125: Commission | I125: Reset Rate> | J125: =GM_INFO!I124 | K125: =GM_INFO!I124 -> 0.055 | Q125: =Q41*K125 -> 120.68705
C126: Levies | I126: Reset Rate> | J126: =GM_INFO!I125 | K126: =GM_INFO!I125 -> 5 | M126: /head | Q126: =K126*SUM(E35:E36) -> 4.95
C143: Accreditation costs on a 600 hd/year throughput | Q143: 1
C170: TOTAL VARIABLE COSTS | Q170: =SUM(Q48:Q166) -> 2114.539138
C172: GROSS MARGIN PER HEAD | Q172: =Q41-Q170 -> 79.77086177
C174: Current interest rate | E174: 0.05
C175: Interest on cattle | K175: =K76*E174*O14/365 -> 20.54794521
C176: Interest on feed | K176: =Q78*E174*O14/365 -> 4.281909205
C178: GROSS MARGIN AFTER INTEREST | Q178: =SUM(Q172,-K175,-K176) -> 54.94100736
C180: Break even sale price :-- c/kg on purchase price, costs & interest | Q180: =((Q170+K175+K176-Q36)/(E35*I35))*100 -> 945.3738201
C182: Break even purchase price :-- c/kg on sale price & costs | Q182: =(-K176-K175+Q35-SUM(Q78:Q166))/I9*100 -> 635.2920864
B203: =VLOOKUP(r[0]c3&"No Ops",CHOOSE({1,2},tbl_ops[Name]&tbl_ops[Category],INDIRECT("tbl_ops["&var_crop&"]")),2,0)
B204: =VLOOKUP(r[0]c3&"No Ops",CHOOSE({1,2},tbl_ops[Name]&tbl_ops[Category],INDIRECT("tbl_ops["&var_crop&"]")),2,0)
B205: =VLOOKUP(r[0]c3&"No Ops",CHOOSE({1,2},tbl_ops[Name]&tbl_ops[Category],INDIRECT("tbl_ops["&var_crop&"]")),2,0)
B206: =VLOOKUP(r[0]c3&"No Ops",CHOOSE({1,2},tbl_ops[Name]&tbl_ops[Category],INDIRECT("tbl_ops["&var_crop&"]")),2,0)
B208: =VLOOKUP(r[0]c3&var_rain,CHOOSE({1,2},tbl_ops[Name]&tbl_ops[Rainfall],INDIRECT("tbl_ops["&var_crop&"]")),2,0)
B209: =VLOOKUP(r[0]c3&var_rain,CHOOSE({1,2},tbl_ops[Name]&tbl_ops[Rainfall],INDIRECT("tbl_ops["&var_crop&"]")),2,0)
B210: =VLOOKUP(r[0]c3&var_rain,CHOOSE({1,2},tbl_ops[Name]&tbl_ops[Rainfall],INDIRECT("tbl_ops["&var_crop&"]")),2,0)
B211: =VLOOKUP(r[0]c3&var_rain,CHOOSE({1,2},tbl_ops[Name]&tbl_ops[Rainfall],INDIRECT("tbl_ops["&var_crop&"]")),2,0)
C275: GM SENSITIVITY
C276: Gross Margin | E276: Per head ($/kg HSCW Carcase)
G277: 9.1 | H277: 5.5 | I277: 9.4 | J277: 6.5 | K277: 9.7 | M277: 10 | O277: 10.3
E278: 235 | G278: =($E$35*$I$35*G$277)+($E$36*$I$36*$M$36)-$Q$170+$Q$78-(($E$78*$E278)/1000) -> -18.70279423 | H278: -821.8627942 | I278: 48.22720577 | J278: -598.7627942 | K278: 115.1572058 | L278: -2048.912794 | M278: 182.0872058 | N278: -2048.912794 | O278: 249.0172058
E279: 245 | G279: -30.49824223 | H279: -833.6582422 | I279: 36.43175777 | J279: -610.5582422 | K279: 103.3617578 | L279: -2060.708242 | M279: 170.2917578 | N279: -2060.708242 | O279: 237.2217578
C280: Feed Cost/tonne | E280: 255 | G280: -42.29369023 | H280: -845.4536902 | I280: 24.63630977 | J280: -622.3536902 | K280: 91.56630977 | L280: -2072.50369 | M280: 158.4963098 | N280: -2072.50369 | O280: 225.4263098
E281: 265 | G281: -54.08913823 | H281: -857.2491382 | I281: 12.84086177 | J281: -634.1491382 | K281: 79.77086177 | L281: -2084.299138 | M281: 146.7008618 | N281: -2084.299138 | O281: 213.6308618
E282: 275 | G282: -65.88458623 | H282: -869.0445862 | I282: 1.045413768 | J282: -645.9445862 | K282: 67.97541377 | L282: -2096.094586 | M282: 134.9054138 | N282: -2096.094586 | O282: 201.8354138
E283: 285 | G283: -77.68003423 | H283: -880.8400342 | I283: -10.75003423 | J283: -657.7400342 | K283: 56.17996577 | L283: -2107.890034 | M283: 123.1099658 | N283: -2107.890034 | O283: 190.0399658
E284: 295 | G284: -89.47548223 | H284: -892.6354822 | I284: -22.54548223 | J284: -669.5354822 | K284: 44.38451777 | L284: -2119.685482 | M284: 111.3145178 | N284: -2119.685482 | O284: 178.2445178
E285: 305 | G285: -101.2709302 | H285: -904.4309302 | I285: -34.34093023 | J285: -681.3309302 | K285: 32.58906977 | L285: -2131.48093 | M285: 99.51906977 | N285: -2131.48093 | O285: 166.4490698
E286: 315 | G286: -113.0663782 | H286: -916.2263782 | I286: -46.13637823 | J286: -693.1263782 | K286: 20.79362177 | L286: -2143.276378 | M286: 87.72362177 | N286: -2143.276378 | O286: 154.6536218
